Workbook

Sheet AER CF (hidden)
B1: AER CONDITIONAL FORMATTING
B4: CONDITIONAL FORMATTING MAP
F5: =INDEX(dms_CF_3.6.1, MATCH(dms_TradingName,dms_CF_TradingName))="Y" | G5: =INDEX(dms_CF_3.6.5, MATCH(dms_TradingName,dms_CF_TradingName))="Y" | H5: =INDEX(dms_CF_3.6.6, MATCH(dms_TradingName,dms_CF_TradingName))="Y" | I5: =INDEX(dms_CF_3.6.7.1, MATCH(dms_TradingName,dms_CF_TradingName))="Y" | J5: =INDEX(dms_CF_3.6.7.2, MATCH(dms_TradingName,dms_CF_TradingName))="Y" | K5: =INDEX(dms_CF_3.6.7.3, MATCH(dms_TradingName,dms_CF_TradingName))="Y" | L5: =INDEX(dms_CF_3.6.7.4, MATCH(dms_TradingName,dms_CF_TradingName))="Y" | M5: =INDEX(dms_CF_3.6.8, MATCH(dms_TradingName,dms_CF_TradingName))="Y" | N5: =INDEX(dms_CF_4.1, MATCH(dms_TradingName,dms_CF_TradingName))="Y" | O5: =INDEX(dms_CF_6.6.1, MATCH(dms_TradingName,dms_CF_TradingName))="Y" | P5: =INDEX(dms_CF_6.8, MATCH(dms_TradingName,dms_CF_TradingName))="Y" | Q5: =INDEX(dms_CF_7.12, MATCH(dms_TradingName,dms_CF_TradingName))="Y" | R5: =INDEX(dms_CF_8.1_A, MATCH(dms_TradingName,dms_CF_TradingName))="Y" | S5: =INDEX(dms_CF_8.1_B, MATCH(dms_TradingName,dms_CF_TradingName))="Y" | T5: =INDEX(dms_CF_8.1_Neg, MATCH(dms_TradingName,dms_CF_TradingName))="Y" | U5: =INDEX(dms_CF_4.4.1_Neg, MATCH(dms_TradingName,dms_CF_TradingName))="Y"
B6: dms_CF_TradingName | C6: JurisdictionList | D6: Sector | E6: Segment | F6: dms_CF_3.6.1 | G6: dms_CF_3.6.5 | H6: dms_CF_3.6.6 | I6: dms_CF_3.6.7.1 | J6: dms_CF_3.6.7.2 | K6: dms_CF_3.6.7.3 | L6: dms_CF_3.6.7.4 | M6: dms_CF_3.6.8 | N6: dms_CF_4.1 | O6: dms_CF_6.6.1 | P6: dms_CF_6.8 | Q6: dms_CF_7.12 | R6: dms_CF_8.1_A | S6: dms_CF_8.1_B | T6: dms_CF_8.1_Neg | U6: dms_CF_4.4.1 | V6: dms_CF_MAIFI_flag | W6: Spare1 | X6: Spare2
B7: ActewAGL Distribution | C7: ACT | D7: Electricity | E7: Distribution | G7: Y | I7: Y | J7: Y | K7: N | L7: Y | M7: N | N7: Y | O7: N | P7: Y | Q7: Y | R7: N | S7: Y | T7: Y | U7: N | V7: N | W7: N | X7: N
B8: Ausgrid | C8: NSW | D8: Electricity | E8: Distribution | G8: Y | I8: N | J8: N | K8: N | L8: Y | M8: N | N8: Y | O8: N | P8: Y | Q8: Y | R8: N | S8: Y | T8: Y | U8: N | V8: N | W8: N | X8: N
B9: AusNet (D) | C9: Vic | D9: Electricity | E9: Distribution | G9: N | I9: N | J9: N | K9: N | L9: N | M9: N | N9: Y | O9: N | P9: Y | Q9: N | R9: N | S9: N | T9: Y | U9: N | V9: N | W9: N | X9: N
B10: AusNet (T) | C10: Vic | D10: Electricity | E10: Transmission | G10: N | I10: N | J10: N | K10: N | L10: N | M10: N | N10: Y | O10: N | P10: Y | Q10: N | R10: N | S10: N | T10: Y | U10: N | V10: N | W10: N | X10: N
B11: CitiPower | C11: Vic | D11: Electricity | E11: Distribution | G11: N | I11: N | J11: N | K11: N | L11: N | M11: N | N11: Y | O11: N | P11: Y | Q11: N | R11: N | S11: N | T11: Y | U11: N | V11: N | W11: N | X11: N
B12: Directlink | C12: Qld | D12: Electricity | E12: Transmission | G12: N | I12: N | J12: N | K12: N | L12: N | M12: N | N12: Y | O12: N | P12: Y | Q12: N | R12: N | S12: Y | T12: Y | U12: N | V12: N | W12: N | X12: N
B13: ElectraNet | C13: SA | D13: Electricity | E13: Transmission | G13: N | I13: N | J13: N | K13: N | L13: N | M13: N | N13: Y | O13: N | P13: Y | Q13: N | R13: N | S13: Y | T13: Y | U13: N | V13: N | W13: N | X13: N
B14: Endeavour Energy | C14: NSW | D14: Electricity | E14: Distribution | G14: Y | I14: N | J14: N | K14: N | L14: Y | M14: N | N14: Y | O14: N | P14: Y | Q14: Y | R14: N | S14: Y | T14: Y | U14: Y | V14: N | W14: N | X14: N
B15: Energex | C15: Qld | D15: Electricity | E15: Distribution | G15: Y | I15: N | J15: N | K15: N | L15: N | M15: N | N15: Y | O15: N | P15: Y | Q15: Y | R15: N | S15: Y | T15: Y | U15: Y | V15: N | W15: N | X15: N
B16: Ergon Energy | C16: Qld | D16: Electricity | E16: Distribution | G16: Y | I16: N | J16: N | K16: N | L16: N | M16: N | N16: Y | O16: N | P16: Y | Q16: Y | R16: N | S16: Y | T16: Y | U16: N | V16: N | W16: N | X16: N
B17: Essential Energy | C17: NSW | D17: Electricity | E17: Distribution | G17: Y | I17: N | J17: N | K17: N | L17: Y | M17: N | N17: Y | O17: N | P17: Y | Q17: Y | R17: N | S17: Y | T17: Y | U17: N | V17: N | W17: N | X17: N
B18: Jemena Electricity | C18: Vic | D18: Electricity | E18: Distribution | G18: N | I18: N | J18: N | K18: N | L18: N | M18: N | N18: Y | O18: N | P18: Y | Q18: N | R18: N | S18: N | T18: Y | U18: N | V18: N | W18: N | X18: N
B19: Murraylink | C19: SA | D19: Electricity | E19: Transmission | G19: N | I19: N | J19: N | K19: N | L19: N | M19: N | N19: Y | O19: N | P19: Y | Q19: N | R19: N | S19: Y | T19: Y | U19: N | V19: N | W19: N | X19: N
B20: Power and Water | C20: NT | D20: Electricity | E20: Distribution | G20: N | I20: N | J20: Y | K20: N | L20: N | M20: Y | N20: Y | O20: Y | P20: Y | Q20: Y | R20: N | S20: Y | T20: Y | U20: N | V20: N | W20: N | X20: N
B21: Powercor Australia | C21: Vic | D21: Electricity | E21: Distribution | G21: N | I21: N | J21: N | K21: N | L21: N | M21: N | N21: Y | O21: N | P21: Y | Q21: N | R21: N | S21: N | T21: Y | U21: N | V21: N | W21: N | X21: N
B22: Powerlink | C22: Qld | D22: Electricity | E22: Transmission | G22: N | I22: N | J22: N | K22: N | L22: N | M22: N | N22: Y | O22: N | P22: Y | Q22: N | R22: N | S22: Y | T22: Y | U22: N | V22: N | W22: N | X22: N
B23: SA Power Networks | C23: SA | D23: Electricity | E23: Distribution | G23: Y | I23: N | J23: N | K23: N | L23: N | M23: N | N23: Y | O23: N | P23: Y | Q23: Y | R23: Y | S23: Y | T23: N | U23: N | V23: N | W23: N | X23: N
B24: TasNetworks (D) | C24: Tas | D24: Electricity | E24: Distribution | G24: Y | I24: N | J24: N | K24: N | L24: N | M24: N | N24: Y | O24: N | P24: Y | Q24: Y | R24: N | S24: Y | T24: Y | U24: N | V24: N | W24: N | X24: N
B25: TasNetworks (T) | C25: Tas | D25: Electricity | E25: Transmission | G25: N | I25: N | J25: N | K25: N | L25: N | M25: N | N25: Y | O25: N | P25: Y | Q25: N | R25: N | S25: Y | T25: Y | U25: N | V25: N | W25: N | X25: N
B26: TransGrid | C26: NSW | D26: Electricity | E26: Transmission | G26: N | I26: N | J26: N | K26: N | L26: N | M26: N | N26: Y | O26: N | P26: Y | Q26: N | R26: N | S26: Y | T26: Y | U26: N | V26: N | W26: N | X26: N
B27: United Energy | C27: Vic | D27: Electricity | E27: Distribution | G27: N | I27: N | J27: N | K27: N | L27: N | M27: N | N27: Y | O27: N | P27: Y | Q27: N | R27: N | S27: N | T27: Y | U27: N | V27: N | W27: N | X27: N
B30: Confidential
B31: Amended
B33: Worksheet 6.2 STPIS reliability
B34: Formula | F34: Applied to:
B36: =INDEX(dms_CBD_flag,MATCH(dms_TradingName,dms_TradingName_List))="NO" | F36: $D$11,$D$17,$D$23,$D$33,$D$39,$D$45,$D$55,$D$61,$D$67,$D$77,$D$83,$D$89
B37: =INDEX(dms_Urban_flag,MATCH(dms_TradingName,dms_TradingName_List))="NO" | F37: $D$12,$D$18,$D$24,$D$56,$D$62,$D$78,$D$68,$D$84
B38: =INDEX(dms_ShortRural_flag,MATCH(dms_TradingName,dms_TradingName_List))="NO" | F38: $D$13,$D$19,$D$25,$D$57,$D$63,$D$69,$D$79,$D$85
B39: =INDEX(dms_LongRural_flag,MATCH(dms_TradingName,dms_TradingName_List))="NO" | F39: $D$14,$D$20,$D$26,$D$58,$D$64,$D$65,$D$70,$D$71,$D$80,$D$86
B40: =INDEX(dms_FeederType_5_flag,MATCH(dms_TradingName,dms_TradingName_List))="NO" | F40: $D$87,$D$81,$D$71,$D$65,$D$59,$D$49,$D$43,$D$37,$D$21,$D$15
B41: =dms_MAIFI_Flag="No" | F41: $D$55:$D$72
B44: Business & other details
B45: =(INDEX(dms_Model_Span,MATCH(dms_Model,dms_Model_List))>1)
B46: =(INDEX(dms_Model_Span,MATCH(dms_Model,dms_Model_List))=1)
B49: STYLES IN USE
C50: dms_1
C51: dms_2
C52: dms_3
C53: dms_4
C54: dms_5
C55: dms_NUM
C56: dms_NUM%
C57: dms_Row_Locked
C58: dms_Row1
C59: dms_Row2
C60: dms_T1
C61: dms_T2
C62: dms_BH
C63: dms_BY1
C64: dms_BY2
C65: dms_GH
C66: dms_GY1
C67: dms_GY2
C126: 0
C127: =IFERROR(IF(dms_Model="ARR",(MAX(0,dms_0608_LastRow-dms_0608_OffsetRows)),"not an ARR"),"0") -> not an ARR

Sheet AER NRs (hidden)
B1: AER NAMED RANGES
B3: DROP DOWN SELECTORS USED IN WORKBOOKS
B5: COVER SHEET | C5: dms_DataQuality_List | D5: dms_Confid_status_List
C6: -- select -- | D6: -- select --
C7: Actual | D7: Public
C8: Estimate | D8: Confidential
C9: Consolidated
C12: For all files either AER or business needs to be able to specify the type of submission | D12: For PTRM & RFM templates we must provide a choice in case they change their form of control - otherwise it is drawn from the business specific lookup table above.
C13: dms_SourceList | D13: dms_FormControl_Choices
C14: -- select -- | D14: Revenue cap
C15: After appeal | D15: Revenue yield
C16: Draft decision | D16: Weighted average price cap
C17: Final decision
C18: PTRM update 1
C19: PTRM update 2
C20: PTRM update 3
C21: PTRM update 4
C22: PTRM update 5
C23: PTRM update 6
C24: PTRM update 7
C25: Regulatory proposal
C26: Reporting
C27: Revised regulatory proposal
L30: This is used to create an image to insert on 6.3 STPIS sheet - not for dropdown lists.
B31: CA & RESET RINS DNSP | C31: dms_DNSP_020301_SubstationType | D31: dms_DNSP_020301_ProjectType | E31: dms_DNSP_020301_ProjectTrigger | F31: dms_DNSP_020302_ProjectType | G31: dms_DNSP_020302_ProjectTrigger | H31: dms_STPIS_Exclusion_List | I31: dms_Reason_Interruption | J31: dms_Reason_Interruption_Detailed | L31: Reason for interruption
C32: Subtransmission substation | D32: New substation establishment | E32: Demand growth | F32: New line on new route - single circuit | G32: Demand growth | H32: Weather | I32: Animal | J32: Animal impact | L32: Animal | M32: Animal impact
C33: Zone substation | D33: Substation upgrade - capacity | E33: Voltage issues | F33: New line on new route - dual circuit | G33: Voltage issues | H33: Equipment failure | I33: Asset failure | J33: Animal nesting/burrowing, etc and other | M33: Animal nesting/burrowing, etc and other
C34: Switching station | D34: Substation upgrade - voltage | E34: Reactive power issue | F34: New line on new route - other | G34: Reactive power issue | H34: Operational error | I34: Other | J34: Other | M34: Other
C35: Other | D35: Other | E35: Fault level issues | F35: Line rebuild over existing route - single circuit | G35: Fault level issues | H35: Vegetation | I35: Overloads | J35: LV | L35: Asset failure | M35: LV
E36: Safety | F36: Line rebuild over existing route - dual circuit | G36: Net market benefit | H36: Animals | I36: Planned | J36: Distribution substation | M36: Distribution substation
E37: Environment | F37: Reconductor - Single circuit | G37: Safety | H37: Third party impacts | I37: Network business | J37: HV | M37: HV
E38: Other | F38: Reconductor - Dual circuit | G38: Environment | H38: Transmission failure | I38: Third party | J38: Zone substation | M38: Zone substation
F39: Reconductor - Other | G39: Other | H39: Load shedding | I39: Unknown | J39: Subtransmission | M39: Subtransmission
F40: Line upgrade - raising/retensoring | H40: Inter-distributor connection failure | I40: Vegetation | J40: insert description of 'other' | L40: Other | M40: insert description of 'other'
F41: Line upgrade - voltage upgrade | H41: Other | I41: Weather | J41: Network error | L41: Overloads
F42: Line upgrade - capacity | I42: 2 - STPIS Exclusion (3.3)(a) | J42: Switching and protection error | L42: Planned
F43: String spare circuit | I43: 3 - STPIS Exclusion (3.3)(a) | J43: Fire | L43: Network business | M43: Network error
F44: Other | I44: 4 - STPIS Exclusion (3.3)(a) | J44: Other | M44: Switching and protection error
I45: 5 - STPIS Exclusion (3.3)(a) | J45: Dig-in | L45: Third party | M45: Fire
I46: 6 - STPIS Exclusion (3.3)(a) | J46: Unauthorised access | M46: Other
I47: 7 - STPIS Exclusion (3.3)(a) | J47: Vehicle impact | M47: Dig-in
J48: Unknown | M48: Unauthorised access
J49: Blow-in/Fall-in - NSP responsibility | M49: Vehicle impact
J50: Grow-in - NSP responsibility | L50: Unknown | M50: Unknown
J51: Blow-in/Fall-in - Other responsible party | L51: Vegetation | M51: Blow-in/Fall-in - NSP responsibility
J52: Grow-in - Other responsible party | M52: Grow-in - NSP responsibility
M53: Blow-in/Fall-in - Other responsible party
M54: Grow-in - Other responsible party
L55: Weather
L56: 2 - STPIS Exclusion (3.3)(a)
L57: 3 - STPIS Exclusion (3.3)(a)
L58: 4 - STPIS Exclusion (3.3)(a)
L59: 5 - STPIS Exclusion (3.3)(a)
L60: 6 - STPIS Exclusion (3.3)(a)
L61: 7 - STPIS Exclusion (3.3)(a)
B64: CA & RESET RINS TNSP | C64: dms_TNSP_0203_SubstationType | D64: dms_TNSP_020301_ProjectType | E64: dms_TNSP_020301_ProjectTrigger | F64: dms_TNSP_020302_ProjectType | G64: dms_TNSP_0203_ProjectTrigger
C65: Terminal station | D65: New substation establishment | E65: Demand growth | F65: New line on new route - single circuit | G65: Demand growth
C66: Switching station | D66: Capacity upgrade | E66: Voltage issues | F66: New line on new route - dual circuit | G66: Voltage issues
C67: Transmission substation | D67: Voltage upgrade | E67: Reactive power issue | F67: New line on new route - other | G67: Reactive power issue
C68: Other | D68: Other | E68: Fault level issues | F68: Line rebuild over existing route - single circuit | G68: Fault level issues
E69: Net market benefit | F69: Line rebuild over existing route - dual circuit | G69: Net market benefit
E70: Safety | F70: Reconductor - Single circuit | G70: Safety
E71: Environment | F71: Reconductor - Dual circuit | G71: Environment
E72: Other | F72: Reconductor - Other | G72: Other
F73: Line upgrade - raising/retensoring
F74: Line upgrade - voltage upgrade
F75: Line upgrade - capacity
F76: String spare circuit
F77: Other
B81: NAMED RANGES USED IN ETL PROCESS
B83: CA & RESET RINS DNSP ONLY | C83: dms_020303_01_UOM | D83: dms_020501_01_UOM | E83: dms_020501_02_UOM | F83: dms_020501_03_UOM | G83: dms_020501_04_UOM | H83: dms_020701_01_UOM | I83: dms_020701_02_UOM | J83: dms_020701_01_Rows | K83: dms_040102_01_UOM | L83: dms_040102_04_UOM
C84: Circuit line length in km | D84: 0's | E84: 0's | F84: 0's | G84: 0's | H84: km | I84: km | J84: Route line length within zone | K84: 0's | L84: days
C85: Circuit line length in km | D85: 0's | E85: 0's | F85: 0's | G85: 0's | H85: 0's | I85: 0's | J85: Number of maintenance spans | K85: 0's | L85: 0's
C86: Circuit line length in km | D86: MVA added | E86: MVA added | F86: MVA added | G86: MVA added | H86: km | I86: km | J86: Total length of maintenance spans | K86: 0's | L86: $0s
C87: Circuit line length in km | D87: 0's | E87: 0's | F87: 0's | G87: 0's | H87: km | I87: km | J87: Length of vegetation corridors | K87: $0s | L87: 0's
C88: Number | D88: total spend $0s | E88: total spend $0s | F88: total spend $0s | G88: total spend $0s | H88: 0's | I88: 0's | J88: Average number of trees per maintenance span
C89: Number | D89: net circuit km added | E89: net circuit km added | F89: net circuit km added | G89: net circuit km added | H89: years | I89: years | J89: Average frequency of cutting cycle
C90: Number | D90: total spend $0s | E90: total spend $0s | F90: total spend $0s | G90: total spend $0s
D91: net circuit km added | E91: net circuit km added | F91: net circuit km added | G91: net circuit km added
D92: total spend $0s | E92: total spend $0s | F92: total spend $0s | G92: total spend $0s
D93: 0's | F93: $0s
D94: 0's
D95: 0's
D96: $0s
B99: CA & RESET RINS TNSP ONLY | C99: dms_020701_01_UOM
C100: km
C101: 0's
C102: km
C103: 0's
C104: km
C105: metres
C106: years
B109: CA & RESET RINS DNSP & TNSP | C109: dms_020603_01_UOM
C110: 0's
C111: 0's
C112: 0's
C113: 0's
C114: (per cent)
B117: EB & RESET RINS DNSP ONLY | C117: dms_030601_01_UOM | D117: dms_030601_02_UOM | E117: dms_030701_01_UOM | F117: dms_030702_01_UOM | G117: dms_030703_01_UOM
C118: minutes/customer | D118: minutes/customer | E118: Customer / km | F118: % | G118: km
C119: minutes/customer | D119: minutes/customer | E119: MWh/customer | F119: Number of spans
C120: interruptions/customer | D120: interruptions/customer | E120: kVA / customer | F120: Number of spans
C121: interruptions/customer | D121: interruptions/customer | F121: Number of spans
F122: Number of spans
F123: Years
F124: Years
F125: Trees
F126: Trees
F127: Defects
F128: Defects
F129: Spans
F130: km
F131: Spans
C133: WHEN INSERTING COVER SHEET INTO A TNSP FILE - APPLY THESE NAMED RANGES
B134: EB & RESET RINS TNSP ONLY | C134: dms_030601_01_UOM | E134: dms_030701_01_UOM | F134: dms_030702_01_UOM
C135: % | E135: Number of spans | F135: km
C136: number | E136: Years | F136: %
C137: number | E137: Trees | F137: km
C138: % | E138: Defects | F138: number
C139: number | E139: Number of spans
C140: number | E140: km
C141: % | E141: km
C142: number | E142: Number of spans
C143: number
C144: %
C145: number
C146: %
C147: number
C148: %
C149: number
B151: EB & RESET RINS DNSP & TNSP | C151: dms_EB_RAB_PIT
C152: Beginning of year
C153: End of year
C154: End of year
C155: End of year
C156: End of year
C157: End of year
B159: ARR DNSP ONLY | C159: dms_030605_UOM | D159: dms_03060703_UOM | E159: Spare | F159: Spare
C160: number | D160: number
C161: number | D161: number
C162: number | D162: number
C163: number | D163: number
C164: number | D164: (per cent)
C165: number
C166: number
C167: number
C168: number
C169: number
C170: number
C171: number
C172: (per cent)
C173: (per cent)
B175: RFM | C175: dms_Beg | D175: dms_Mid | E175: dms_End
C176: Beginning of year | D176: Mid year | E176: End of Year
B178: PTRM | C178: dms_PTRM_RAB_PIT | D178: dms_PTRM_TAB_PIT | E178: DMS_Xfactor
C179: Beginning of year | D179: Beginning of year | E179: x factors
C180: End of year | D180: End of year
C181: End of year | D181: End of year
C182: End of year | D182: End of year
C183: End of year
B186: STPIS & MIC NAMED RANGES
B188: These "row descriptions" are the column headings in the various templates but become row descriptions in the ETL process
B190: Table 6.3 sustained interruptions - row descriptions | C190: dms_060301_CustNo_Affected_Row | D190: dms_060301_Avg_Duration_Sustained_Int_Row | E190: dms_060301_Effect_unplanned_SAIDI_Row | F190: dms_060301_Effect_unplanned_SAIFI_Row
C191: Number of customers affected by the interruption | D191: Average duration of sustained customer interruption | E191: Effect on unplanned SAIDI | F191: Effect on unplanned SAIFI
B194: Table 6.1 telephone answering - row descriptions and start date | C194: dms_060101_Rows | D194: dms_060102_Rows | E194: dms_060101_StartDateTxt
C195: Total number of calls (after removing excluded events) | D195: Number of calls answered within 30 seconds (after excluding excluded events) | E195: =dms_060701_StartDateTxt -> 1-Jul-2006
B198: Table 6.8.1 - row descriptions | C198: dms_060801_01_Rows | D198: dms_060801_02_Rows | E198: dms_060801_03_Rows | F198: dms_060801_04_Rows
C199: Number of interruptions | D199: Duration of interruptions | E199: Total unplanned minutes off supply | F199: Effect on unplanned MAIFI
B202: Table 7.9.4 - market impact component - row descriptions | C202: dms_070904_01_Rows | D202: without exclusions | E202: with exclusions
B205: These headings (Lists) are determined from the INDEX/MATCH function on the NSP selected on the Business & other details sheet
B207: Table 6.7.1 - daily performance data - unplanned - MAIFI -- row descriptions and header named range values | C207: dms_060701_Feeder_Header_Lvl4 | D207: =INDEX(dms_FeederName_1,MATCH(dms_TradingName,dms_TradingName_List)) -> CBD | E207: =INDEX(dms_FeederName_1,MATCH(dms_TradingName,dms_TradingName_List)) -> CBD | F207: =INDEX(dms_FeederName_2,MATCH(dms_TradingName,dms_TradingName_List)) -> Urban | G207: =INDEX(dms_FeederName_2,MATCH(dms_TradingName,dms_TradingName_List)) -> Urban | H207: =INDEX(dms_FeederName_3,MATCH(dms_TradingName,dms_TradingName_List)) -> Short rural | I207: =INDEX(dms_FeederName_3,MATCH(dms_TradingName,dms_TradingName_List)) -> Short rural | J207: =INDEX(dms_FeederName_4,MATCH(dms_TradingName,dms_TradingName_List)) -> Long rural | K207: =INDEX(dms_FeederName_4,MATCH(dms_TradingName,dms_TradingName_List)) -> Long rural | L207: =IF((INDEX(dms_FeederName_5,MATCH(dms_TradingName,dms_TradingName_List))=0),"Network",(INDEX(dms_FeederName_5,MATCH(dms_TradingName,dms_TradingName_List)))) -> Network | M207: =IF((INDEX(dms_FeederName_5,MATCH(dms_TradingName,dms_TradingName_List))=0),"Network",(INDEX(dms_FeederName_5,MATCH(dms_TradingName,dms_TradingName_List)))) -> Network | N207: Network | O207: Network
C209: dms_060701_Rows | D209: All events | E209: After removing excluded events | F209: All events | G209: After removing excluded events | H209: All events | I209: After removing excluded events | J209: All events | K209: After removing excluded events | L209: All events | M209: After removing excluded events | N209: All events | O209: After removing excluded events
D210: the number of column headings changes from 10 to 12 depending on the number of feeder categories for the NSP
C212: dms_0603_FeederList | D212: =INDEX(dms_FeederName_1,MATCH(dms_TradingName,dms_TradingName_List)) -> CBD | E212: =INDEX(dms_FeederName_2,MATCH(dms_TradingName,dms_TradingName_List)) -> Urban | F212: =INDEX(dms_FeederName_3,MATCH(dms_TradingName,dms_TradingName_List)) -> Short rural | G212: =INDEX(dms_FeederName_4,MATCH(dms_TradingName,dms_TradingName_List)) -> Long rural
B215: Use these to add to specific worksheets in existing files | C215: Use these to add to specific worksheets in existing files
B218: ARRs 6.7 STPIS daily performance | C218: dms_060101_Values | D218: dms_060102_Values | E218: dms_060701_Values
C219: dms_LeapYear
B222: ARR's 6.8 STPIS exclusions | C222: dms_060801_Event_Date | D222: dms_060801_OutageID | E222: dms_060801_FeederID | F222: dms_060801_FeederClass | G222: dms_060801_CauseID | H222: dms_060801_01_Values | I222: dms_060801_02_Values | J222: dms_060801_03_Values | K222: dms_060801_Excl_Cat | L222: dms_060801_04_Values
C223: dms_060801_StartCell
B226: CA 6.3 sustained interruptions | C226: dms_060301_Event_Date | D226: dms_060301_Event_Time | E226: dms_060301_AssetID | F226: dms_060301_FeederClass | G226: dms_060301_Reason | H226: dms_060301_DetailedReason | I226: dms_060301_CustNo_Affected_Values | J226: dms_060301_Avg_Duration_Sustained_Int_Values | K226: dms_060301_Effect_unplanned_SAIDI_Values | L226: dms_060301_Effect_unplanned_SAIFI_Values | M226: dms_060301_MED

Sheet AER lookups (hidden)
B1: AER LOOKUP TABLES
B3: Data in these columns used for data validation and database purposes.
B4: Date last modified: | C4: 2017-01-16 | D4: added (Albury and Victora) for AGN
C5: 2016-10-17 | D5: updated TransGrid's correct legal name, corrected TasNetworks (T) to June financial year
C6: 2017-02-01 | D6: inserted Power and Water, added NRs (dms_FeederCat_1 and dms_FeederCat_2)
C7: 2017-03-03 | D7: inserted AEMO as a business | AB7: FOR ELECTRICITY BUSINESSES ONLY
C8: 2018-03-28 | D8: major changes to accommodate STPIS
C9: Template Version | D9: 5 | AB9: Feeder Types | AF9: TasNetworks (D) | AG9: MAIFI flag | AH9: Feeder Names
AB11: CBD | AC11: Urban | AD11: Short rural | AE11: long rural | AF11: EXTRA
B12: dms_TradingName_List | C12: dms_TradingNameFull_List | D12: dms_ABN_List | E12: dms_JurisdictionList | F12: dms_Sector_List | G12: dms_Segment_List | H12: dms_FormControl_List | I12: dms_RPT_List | J12: dms_RPTMonth_List | K12: dms_CRCPlength_List | L12: dms_FRCPlength_List | M12: dms_PRCPlength_List | N12: dms_663_List | O12: dms_DeterminationRef_List | P12: dms_Addr1_List | Q12: dms_Addr2_List | R12: dms_Suburb_List | S12: dms_State_List | T12: dms_PostCode_List | U12: dms_PAddr1_List | V12: dms_PAddr2_List | W12: dms_PSuburb_List | X12: dms_PState_List | Y12: dms_PPostCode_List | Z12: dms_ContactName1_List | AA12: dms_ContactPh1_List | AB12: dms_ContactEmail_List | AC12: dms_CBD_flag | AD12: dms_Urban_flag | AE12: dms_ShortRural_flag | AF12: dms_LongRural_flag | AG12: dms_FeederType_5_flag | AH12: dms_MAIFI_flag_List | AI12: dms_FeederName_1 | AJ12: dms_FeederName_2 | AK12: dms_FeederName_3 | AL12: dms_FeederName_4 | AM12: dms_FeederName_5 | AN12: dms_Public_Lighting_List | AO12: Column1
B13: AusNet (D) | C13: AusNet Electricity Services Pty Ltd | D13: 91064651118 | E13: Vic | F13: Electricity | G13: Distribution | H13: Revenue cap | I13: Financial | J13: June | K13: 5 | L13: 5 | M13: 5 | N13: 2 | O13: 2016-20 Distribution Determination | P13: Level 32 | Q13: 2 Southbank Boulevard | R13: SOUTHBANK | S13: Vic | T13: 3006 | U13: Locked Bag 14051 | W13: MELBOURNE CITY MAIL CENTRE | X13: Vic | Y13: 8001 | Z13: Thomas Hall | AB13: thomas. hall@ausnetservices.com.au | AC13: NO | AD13: YES | AE13: YES | AF13: YES | AG13: NO | AH13: YES | AI13: CBD | AJ13: Urban | AK13: Short rural | AL13: Long rural | AN13: YES | AO13: AusNet (D)
B14: Australian Distribution Co. (Vic) | C14: Australian Distribution Co. | D14: 11222333444 | E14: Vic | F14: Electricity | G14: Distribution | H14: Revenue cap | I14: Financial | J14: June | K14: 5 | L14: 5 | M14: 5 | N14: 2 | O14: distribution determination | P14: 123 Straight Street | R14: MELBOURNE | S14: Vic | T14: 3000 | U14: PO Box 123 | W14: MELBOURNE | X14: Vic | Y14: 3000 | Z14: Bob Smith | AA14: 02 1234 5678 | AB14: bob@auselec.net.au | AC14: YES | AD14: YES | AE14: YES | AF14: YES | AG14: NO | AH14: NO | AI14: CBD | AJ14: Urban | AK14: Short rural | AL14: Long rural | AN14: YES | AO14: Australian Distribution Co.
B15: CitiPower | C15: CitiPower | D15: 76064651056 | E15: Vic | F15: Electricity | G15: Distribution | H15: Revenue cap | I15: Financial | J15: June | K15: 5 | L15: 5 | M15: 5 | N15: 2 | O15: 2016-20 Distribution Determination | P15: 40 Market Street | R15: MELBOURNE | S15: Vic | T15: 3000 | U15: Locked Bag 14090 | W15: MELBOURNE | X15: Vic | Y15: 8001 | Z15: Hannah Williams | AA15: 03 9683 4088 | AB15: hwilliams@powercor.com.au | AC15: YES | AD15: YES | AE15: NO | AF15: NO | AG15: NO | AH15: YES | AI15: CBD | AJ15: Urban | AK15: Short rural | AL15: Long rural | AN15: YES | AO15: CitiPower
B16: Jemena Electricity | C16: Jemena Electricity | D16: 82064651083 | E16: Vic | F16: Electricity | G16: Distribution | H16: Revenue cap | I16: Financial | J16: June | K16: 5 | L16: 5 | M16: 5 | N16: 2 | O16: 2016-20 Distribution Determination | P16: Level 16 | Q16: 567 Collins Street | R16: MELBOURNE | S16: Vic | T16: 3000 | U16: PO Box 16182 | W16: MELBOURNE | X16: Vic | Y16: 8001 | Z16: Matthew Serpell | AA16: 03 9173 8231 | AB16: matthew.serpell@jemena.com.au | AC16: NO | AD16: YES | AE16: YES | AF16: NO | AG16: NO | AH16: YES | AI16: CBD | AJ16: Urban | AK16: Short rural | AL16: Long rural | AN16: YES | AO16: Jemena Electricity
B17: Powercor Australia | C17: Powercor Australia | D17: 89064651109 | E17: Vic | F17: Electricity | G17: Distribution | H17: Revenue cap | I17: Financial | J17: June | K17: 5 | L17: 5 | M17: 5 | N17: 2 | O17: 2016-20 Distribution Determination | P17: 40 Market Street | R17: MELBOURNE | S17: Vic | T17: 3000 | U17: Locked bag 14090 | W17: MELBOURNE | X17: Vic | Y17: 8001 | Z17: Hannah Williams | AA17: 03 9683 4088 | AB17: hwilliams@powercor.com.au | AC17: NO | AD17: NO | AE17: YES | AF17: YES | AG17: NO | AH17: YES | AI17: CBD | AJ17: Urban | AK17: Short rural | AL17: Long rural | AN17: YES | AO17: Powercor Australia
B18: United Energy | C18: United Energy | D18: 70064651029 | E18: Vic | F18: Electricity | G18: Distribution | H18: Revenue cap | I18: Financial | J18: June | K18: 5 | L18: 5 | M18: 5 | N18: 2 | O18: 2016-20 Distribution Determination | P18: 43-45 Centreway | R18: MOUNT WAVERLEY | S18: Vic | T18: 3149 | U18: PO Box 449 | W18: MOUNT WAVERLEY | X18: Vic | Y18: 3170 | Z18: Mathew Abraham | AA18: 03 8846 9758 | AB18: mathew.abraham@ue.com.au | AC18: NO | AD18: NO | AE18: YES | AF18: NO | AG18: NO | AH18: YES | AI18: CBD | AJ18: Urban | AK18: Short rural | AL18: Long rural | AN18: YES | AO18: United Energy
B23: The Reg Year Ending (dms_RYE) must be set to the last year of the regulatory period. For forecast data is is usually (FRCP_y5) for actual it is a single year (CRY). For historical actual data the RYE will need to be set manually in the business details sheet by setting the dms_Multiyear_flag to 1 and putting the correct value in 'dms_Specified_FinalYear. See cells C67:C68
B24: dms_Model_List | C24: dms_Model_Name_Format1 | D24: dms_Worksheet_List | E24: dms_Model_Span_List
B25: ARR | C25: Annual Reporting | D25: =IF(dms_MultiYear_ResponseFlag="yes","RECAST HISTORICAL ANNUAL REPORTING","ANNUAL REPORTING") -> RECAST HISTORICAL ANNUAL REPORTING | E25: 1
B26: CA | C26: Category Analysis | D26: =IF(dms_MultiYear_ResponseFlag="yes","RECAST HISTORICAL CATEGORY ANALYSIS","CATEGORY ANALYSIS") -> RECAST HISTORICAL CATEGORY ANALYSIS | E26: 1
B27: CESS | C27: Capitlal Expenditure | D27: CAPITLAL EXPENDITURE SHARING SCHEMING | E27: 5
B28: CPI | C28: CPI | D28: CPI | E28: 5
B29: EB | C29: Economic Benchmarking | D29: HISTORICAL ECONOMIC BENCHMARKING - FINANCIAL YEARS | E29: 1
B30: Pricing | C30: Pricing Proposal | D30: PRICING PROPOSAL | E30: 5
B31: PTRM | C31: Post Tax Revenue Model | D31: POST TAX REVENUE MODEL | E31: 5
B32: Reset | C32: Regulatory Reporting (Reset) | D32: REGULATORY REPORTING STATEMENT | E32: 5
B33: RFM | C33: Roll Forward Model | D33: ROLL FORWARD MODEL | E33: 5
B34: WACC | C34: Weighted Average Cost of Capital | D34: WEIGHTED AVERAGE COST OF CAPITAL | E34: 1
B38: Financial | C38: Calendar | E38: PREVIOUS | G38: CURRENT | I38: FORTHCOMING
B39: 1987-88 | C39: 1988 | D39: PRCP_y1 | E39: =INDEX(INDIRECT(dms_RPT),dms_PRCP_start_row) -> 2011-12 | F39: CRCP_y1 | G39: =INDEX(INDIRECT(dms_RPT),dms_CRCP_start_row) -> 2016-17 | H39: =FRCP_y1 -> 2021-22 | I39: =INDEX(INDIRECT(dms_RPT),dms_FRCP_start_row) -> 2021-22
B40: 1988-89 | C40: 1989 | D40: PRCP_y2 | E40: =INDEX(INDIRECT(dms_RPT),dms_PRCP_start_row+1) -> 2012-13 | F40: CRCP_y2 | G40: =INDEX(INDIRECT(dms_RPT),dms_CRCP_start_row+1) -> 2017-18 | H40: FRCP_y2 | I40: =INDEX(INDIRECT(dms_RPT),dms_FRCP_start_row+1) -> 2022-23
B41: 1989-90 | C41: 1990 | D41: PRCP_y3 | E41: =INDEX(INDIRECT(dms_RPT),dms_PRCP_start_row+2) -> 2013-14 | F41: CRCP_y3 | G41: =INDEX(INDIRECT(dms_RPT),dms_CRCP_start_row+2) -> 2018-19 | H41: FRCP_y3 | I41: =INDEX(INDIRECT(dms_RPT),dms_FRCP_start_row+2) -> 2023-24
B42: 1990-91 | C42: 1991 | D42: PRCP_y4 | E42: =INDEX(INDIRECT(dms_RPT),dms_PRCP_start_row+3) -> 2014-15 | F42: CRCP_y4 | G42: =INDEX(INDIRECT(dms_RPT),dms_CRCP_start_row+3) -> 2019-20 | H42: FRCP_y4 | I42: =INDEX(INDIRECT(dms_RPT),dms_FRCP_start_row+3) -> 2024-25
B43: 1991-92 | C43: 1992 | D43: PRCP_y5 | E43: =INDEX(INDIRECT(dms_RPT),dms_PRCP_start_row+4) -> 2015-16 | F43: CRCP_y5 | G43: =INDEX(INDIRECT(dms_RPT),dms_CRCP_start_row+4) -> 2020-21 | H43: FRCP_y5 | I43: =INDEX(INDIRECT(dms_RPT),dms_FRCP_start_row+4) -> 2025-26
B44: 1992-93 | C44: 1993 | D44: PRCP_y6 | E44: =INDEX(INDIRECT(dms_RPT),dms_PRCP_start_row+5) -> 2016-17 | F44: CRCP_y6 | G44: =INDEX(INDIRECT(dms_RPT),dms_CRCP_start_row+5) -> 2021-22 | H44: FRCP_y6 | I44: =INDEX(INDIRECT(dms_RPT),dms_FRCP_start_row+5) -> 2026-27
B45: 1993-94 | C45: 1994 | D45: PRCP_y7 | E45: =INDEX(INDIRECT(dms_RPT),dms_PRCP_start_row+6) -> 2017-18 | F45: CRCP_y7 | G45: =INDEX(INDIRECT(dms_RPT),dms_CRCP_start_row+6) -> 2022-23 | H45: FRCP_y7 | I45: =INDEX(INDIRECT(dms_RPT),dms_FRCP_start_row+6) -> 2027-28
B46: 1994-95 | C46: 1995 | D46: PRCP_y8 | E46: =INDEX(INDIRECT(dms_RPT),dms_PRCP_start_row+7) -> 2018-19 | F46: CRCP_y8 | G46: =INDEX(INDIRECT(dms_RPT),dms_CRCP_start_row+7) -> 2023-24 | H46: FRCP_y8 | I46: =INDEX(INDIRECT(dms_RPT),dms_FRCP_start_row+7) -> 2028-29
B47: 1995-96 | C47: 1996 | D47: PRCP_y9 | E47: =INDEX(INDIRECT(dms_RPT),dms_PRCP_start_row+8) -> 2019-20 | F47: CRCP_y9 | G47: =INDEX(INDIRECT(dms_RPT),dms_CRCP_start_row+8) -> 2024-25 | H47: FRCP_y9 | I47: =INDEX(INDIRECT(dms_RPT),dms_FRCP_start_row+8) -> 2029-30
B48: 1996-97 | C48: 1997 | D48: PRCP_y10 | E48: =INDEX(INDIRECT(dms_RPT),dms_PRCP_start_row+9) -> 2020-21 | F48: CRCP_y10 | G48: =INDEX(INDIRECT(dms_RPT),dms_CRCP_start_row+9) -> 2025-26 | H48: FRCP_y10 | I48: =INDEX(INDIRECT(dms_RPT),dms_FRCP_start_row+9) -> 2030-31
B49: 1997-98 | C49: 1998 | D49: PRCP_y11 | E49: =INDEX(INDIRECT(dms_RPT),dms_PRCP_start_row+10) -> 2021-22 | F49: CRCP_y11 | G49: =INDEX(INDIRECT(dms_RPT),dms_CRCP_start_row+10) -> 2026-27 | H49: FRCP_y11 | I49: =INDEX(INDIRECT(dms_RPT),dms_FRCP_start_row+10) -> 2031-32
B50: 1998-99 | C50: 1999 | D50: PRCP_y12 | E50: =INDEX(INDIRECT(dms_RPT),dms_PRCP_start_row+11) -> 2022-23 | F50: CRCP_y12 | G50: =INDEX(INDIRECT(dms_RPT),dms_CRCP_start_row+11) -> 2027-28 | H50: FRCP_y12 | I50: =INDEX(INDIRECT(dms_RPT),dms_FRCP_start_row+11) -> 2032-33
B51: 1999-00 | C51: 2000 | D51: PRCP_y13 | E51: =INDEX(INDIRECT(dms_RPT),dms_PRCP_start_row+12) -> 2023-24 | F51: CRCP_y13 | G51: =INDEX(INDIRECT(dms_RPT),dms_CRCP_start_row+12) -> 2028-29 | H51: FRCP_y13 | I51: =INDEX(INDIRECT(dms_RPT),dms_FRCP_start_row+12) -> 2033-34
B52: 2000-01 | C52: 2001 | D52: PRCP_y14 | E52: =INDEX(INDIRECT(dms_RPT),dms_PRCP_start_row+13) -> 2024-25 | F52: CRCP_y14 | G52: =INDEX(INDIRECT(dms_RPT),dms_CRCP_start_row+13) -> 2029-30 | H52: FRCP_y14 | I52: =INDEX(INDIRECT(dms_RPT),dms_FRCP_start_row+13) -> 2034-35
B53: 2001-02 | C53: 2002 | D53: PRCP_y15 | E53: =INDEX(INDIRECT(dms_RPT),dms_PRCP_start_row+14) -> 2025-26 | F53: CRCP_y15 | G53: =INDEX(INDIRECT(dms_RPT),dms_CRCP_start_row+14) -> 2030-31 | H53: FRCP_y15 | I53: =INDEX(INDIRECT(dms_RPT),dms_FRCP_start_row+14) -> 2035-36
B54: 2002-03 | C54: 2003 | D54: PRCP_y16 | E54: =INDEX(INDIRECT(dms_RPT),dms_PRCP_start_row+15) -> 2026-27 | F54: CRCP_y16 | G54: =INDEX(INDIRECT(dms_RPT),dms_CRCP_start_row+15) -> 2031-32 | H54: FRCP_y16 | I54: =INDEX(INDIRECT(dms_RPT),dms_FRCP_start_row+15) -> 2036-37
B55: 2003-04 | C55: 2004
B56: 2004-05 | C56: 2005
B57: 2005-06 | C57: 2006 | E57: CRY - FRY
B58: 2006-07 | C58: 2007 | D58: dms_y1 | E58: =IFERROR(INDEX(INDIRECT(dms_RPT),dms_CRY_start_row),0) -> 2006-07
B59: 2007-08 | C59: 2008 | D59: dms_y2 | E59: =IFERROR(INDEX(INDIRECT(dms_RPT),dms_CRY_start_row+1),0) -> 2007-08
B60: 2008-09 | C60: 2009 | D60: dms_y3 | E60: =IFERROR(INDEX(INDIRECT(dms_RPT),dms_CRY_start_row+2),0) -> 2008-09
B61: 2009-10 | C61: 2010 | D61: dms_y4 | E61: =IFERROR(INDEX(INDIRECT(dms_RPT),dms_CRY_start_row+3),0) -> 2009-10
B62: 2010-11 | C62: 2011 | D62: dms_y5 | E62: =IFERROR(INDEX(INDIRECT(dms_RPT),dms_CRY_start_row+4),0) -> 2010-11
B63: 2011-12 | C63: 2012 | D63: dms_y6 | E63: =IFERROR(INDEX(INDIRECT(dms_RPT),dms_CRY_start_row+5),0) -> 2011-12
B64: 2012-13 | C64: 2013 | D64: dms_y7 | E64: =IFERROR(INDEX(INDIRECT(dms_RPT),dms_CRY_start_row+6),0) -> 2012-13
B65: 2013-14 | C65: 2014 | D65: dms_y8 | E65: =IFERROR(INDEX(INDIRECT(dms_RPT),dms_CRY_start_row+7),0) -> 2013-14
B66: 2014-15 | C66: 2015 | D66: dms_y9 | E66: =IFERROR(INDEX(INDIRECT(dms_RPT),dms_CRY_start_row+8),0) -> 2014-15
B67: 2015-16 | C67: 2016 | D67: dms_y10 | E67: =IFERROR(INDEX(INDIRECT(dms_RPT),dms_CRY_start_row+9),0) -> 2015-16
B68: 2016-17 | C68: 2017 | D68: dms_y11 | E68: =IFERROR(INDEX(INDIRECT(dms_RPT),dms_CRY_start_row+10),0) -> 2016-17
B69: 2017-18 | C69: 2018 | D69: dms_y12 | E69: =IFERROR(INDEX(INDIRECT(dms_RPT),dms_CRY_start_row+11),0) -> 2017-18
B70: 2018-19 | C70: 2019 | D70: dms_y13 | E70: =IFERROR(INDEX(INDIRECT(dms_RPT),dms_CRY_start_row+12),0) -> 2018-19
B71: 2019-20 | C71: 2020 | D71: dms_y14 | E71: =IFERROR(INDEX(INDIRECT(dms_RPT),dms_CRY_start_row+13),0) -> 2019-20
B72: 2020-21 | C72: 2021 | D72: dms_y15 | E72: =IFERROR(INDEX(INDIRECT(dms_RPT),dms_CRY_start_row+14),0) -> 2020-21
B73: 2021-22 | C73: 2022 | D73: dms_y16 | E73: =IFERROR(INDEX(INDIRECT(dms_RPT),dms_CRY_start_row+15),0) -> 2021-22
B74: 2022-23 | C74: 2023
B75: 2023-24 | C75: 2024
B76: 2024-25 | C76: 2025
B77: 2025-26 | C77: 2026
B78: 2026-27 | C78: 2027
B79: 2027-28 | C79: 2028
B80: 2028-29 | C80: 2029
B81: 2029-30 | C81: 2030
B82: 2030-31 | C82: 2031
B83: 2031-32 | C83: 2032
B84: 2032-33 | C84: 2033
B85: 2033-34 | C85: 2034
B86: 2034-35 | C86: 2035
B87: 2035-36 | C87: 2036
B88: 2036-37 | C88: 2037

Sheet AER ETL (hidden)
B1: AER ETL INFORMATION
B3: USES NAMED RANGES FLAG | C3: yes | D3: dms_Defined_Names_Used
B5: IF THIS IS AN ABC RIN - make sure the the named range CRY is applied and the named range dms_dollar_nom_UOM is applied
B6: IF THIS IS A RESET RIN - make sure the named ranges CRY and dms_dollar_nom_UOM are NOT present in the workbook
B7: FOR ABC RINS THAT SPAN MULTIPLE YEARS - make sure MultiYear Flag is set and final year entered as required
B9: Full trading name | C9: =INDEX(dms_TradingNameFull_List,MATCH(dms_TradingName,dms_TradingName_List)) -> Jemena Electricity | E9: dms_TradingNameFull
A10: Selected here | B10: Model / RIN | C10: EB | D10: dms_Model
A11: Read from Business & other details | B11: Source | C11: =dms_Selected_Source -> Reporting | D11: dms_Source
B12: Data quality | C12: =dms_Selected_Quality -> Consolidated | D12: dms_DQ_1
B13: Data status | C13: =dms_Selected_Status -> Public | D13: dms_DQ_2
B14: Amendment reason | C14: =dms_Amendment_Text -> 0 | F14: dms_AmendmentReason
B15: Submission date | C15: =dms_Typed_Submission_Date -> 2020-01-31 | D15: dms_SubmissionDate
A17: Redundant | B17: EBSS - First application of scheme in forthcoming period? | C17: No
A18: Pre-populated from lookup table | B18: Data ingestion data quality | C18: Consolidated | D18: dms_DataQuality | E18: =IF(dms_DQ_2="Confidential","Consolidated","Public")
B19: Sector | C19: =INDEX(dms_Sector_List,MATCH(dms_TradingName,dms_TradingName_List)) -> Electricity | D19: dms_Sector | E19: =INDEX(dms_Sector_List,MATCH(dms_TradingName,dms_TradingName_List))
B20: Segment | C20: =INDEX(dms_Segment_List,MATCH(dms_TradingName,dms_TradingName_List)) -> Distribution | D20: dms_Segment | E20: =INDEX(dms_Segment_List,MATCH(dms_TradingName,dms_TradingName_List))
B21: Regulatory Year Ending | C21: =dms_RYE_result -> 2019 | D21: dms_RYE | E21: =IF(dms_MultiYear_Flag=1,LEFT(dms_Specified_FinalYear,2)&RIGHT(dms_Specified_FinalYear,2),INDEX(dms_RYE_Formula_Result,MATCH(dms_Model,dms_Model_List)))
B22: Reporting Period Type | C22: =INDEX(dms_RPT_List,MATCH(dms_TradingName,dms_TradingName_List)) -> Financial | D22: dms_RPT | E22: =INDEX(dms_RPT_List,MATCH(dms_TradingName,dms_TradingName_List))
B23: EB/CA Unit of Measure for Monetary Values | C23: $0s | D23: dms_dollar_nom_UOM | E23: If the cover sheet is attached to an ABC RIN apply the NAMED RANGE to the cell
B24: Security Classification | C24: Public | D24: dms_Classification | E24: Always Public
B25: Jurisdiction | C25: =INDEX(dms_JurisdictionList,MATCH(dms_TradingName,dms_TradingName_List)) -> Vic | D25: dms_Jurisdiction | E25: =INDEX(dms_JurisdictionList,MATCH(dms_TradingName,dms_TradingName_List))
A26: Relevant for PTRM, RFMs and Reset RINS | B26: $ REAL REFERENCES
B27: Does the named range CRY exist in this file? | C27: =IFERROR(CRY,"NO") -> 2006-07
B28: CRY-1 (last full calendar year before CRY) | C28: =IFERROR(IF(dms_RPT="calendar",CRY-1,LEFT(CRY,4)),"CRY not present") -> 2006 | D28: dms_Cal_Year_B4_CRY | E28: '=IF(dms_RPT="financial",VALUE(LEFT(dms_SingleYear_FinalYear_Result,4)),VALUE(LEFT(dms_SingleYear_FinalYear_Result,4)-1))
B29: Dollar $ real month | C29: =INDEX(dms_RPTMonth_List,MATCH(dms_TradingName,dms_TradingName_List)) -> June | D29: dms_RPTMonth | E29: =INDEX(dms_RPTMonth_List,MATCH(dms_TradingName,dms_TradingName_List))
B30: Dollar $ real (the last month before the FRCP_y1) | C30: =IF(dms_SingleYearModel="yes",CONCATENATE(dms_RPTMonth)&" "&VALUE((LEFT(CRY,2))&RIGHT(CRY,2)),CONCATENATE(dms_RPTMonth)&" "&dms_DollarReal_year) -> June 2007 | D30: dms_DollarReal | E30: =IF(SUM(dms_SingleYear_Model)>0,CONCATENATE(dms_RPTMonth)&" "&VALUE((LEFT(CRY,2))&RIGHT(CRY,2)),CONCATENATE(dms_RPTMonth)&" "&VALUE((LEFT(dms_RYE,2)&RIGHT(dms_RYE,2))))
B31: Dollar $ real previous year (PRCP_y5) | C31: =IF(dms_SingleYearModel="yes",CONCATENATE(dms_RPTMonth)&" "&VALUE((LEFT(CRY,2))&RIGHT(CRY,2)),CONCATENATE(dms_RPTMonth)&" "&dms_Previous_DollarReal_year) -> June 2007 | D31: dms_DollarReal_Prev | E31: =IF(SUM(dms_SingleYear_Model)>0,CONCATENATE(dms_RPTMonth)&" "&VALUE(((LEFT(CRY,2))&RIGHT(CRY,2))-1),CONCATENATE(dms_RPTMonth)&" "&VALUE(((LEFT(dms_CRCP_FirstYear_Result,2)&RIGHT(dms_CRCP_FirstYear_Result,2))))-1)
B32: PTRM/ RFMs
B33: Form of control | C33: =INDEX(dms_FormControl_List,MATCH(dms_TradingName,dms_TradingName_List)) -> Revenue cap | D33: dms_FormControl | E33: =INDEX(dms_FormControl_List,MATCH(dms_TradingName,dms_TradingName_List))
A34: All potential values for Regulatory Years or RYEs as calculated | B34: This block works out the various RYE's for ALL RIN types and MODELS
B35: dms_start_year | C35: =FRCP_y1 -> 2021-22 | D35: FRCP_y1 from cover sheet
B36: dms_CRY_start_year | C36: =IFERROR(CRY,CRCP_y4) -> 2006-07 | D36: If this has a year in it then named range CRY exists
B37: dms_CRY_start_row | C37: =IFERROR(MATCH(dms_CRY_start_year,INDIRECT(dms_RPT),0),0) -> 20
B38: dms_FRCP_start_row | C38: =MATCH(dms_start_year,INDIRECT(dms_RPT),0) -> 35 | D38: Uses FRCP_y1 as a start reference
B39: dms_CRCP_start_row | C39: =dms_FRCP_start_row-dms_CRCPlength_Num -> 30 | D39: Uses the value in dms_CRCPlength_Num
B40: dms_PRCP_start_row | C40: =dms_FRCP_start_row-SUM(dms_CRCPlength_Num+dms_PRCPlength_Num) -> 25 | D40: Uses the value in dms_CRCPlength_Num and dms_PRCPlength_Num
B41: dms_RYE_start_row | C41: =dms_FRCP_start_row+(dms_FRCPlength_Num-1) -> 39 | D41: Uses the value in dms_FRCPlength_Num-1
B42: FRCP_start_year | C42: =INDEX(INDIRECT(dms_RPT),dms_FRCP_start_row) -> 2021-22 | D42: Converts the FRCP start row to display the year
B43: CRCP_start_year | C43: =INDEX(INDIRECT(dms_RPT),dms_CRCP_start_row) -> 2016-17 | D43: Converts the CRCP start row to display the year
B44: PRCP_start_year | C44: =INDEX(INDIRECT(dms_RPT),dms_PRCP_start_row) -> 2011-12 | D44: Converts the PRCP start row to display the year
B45: FRCP_final_year | C45: =INDEX(INDIRECT(dms_RPT),dms_FRCP_start_row+dms_FRCPlength_Num-1) -> 2025-26 | D45: Finds the FRCP final year
B46: CRCP_final_year | C46: =INDEX(INDIRECT(dms_RPT),dms_CRCP_start_row+dms_CRCPlength_Num-1) -> 2020-21 | D46: Finds the CRCP final year
B47: PRCP_final_year | C47: =INDEX(INDIRECT(dms_RPT),dms_PRCP_start_row+dms_FRCPlength_Num-1) -> 2015-16 | D47: Finds the PRCP final year
B48: dms_Reset_final_year | C48: =INDEX(INDIRECT(dms_RPT),dms_RYE_start_row) -> 2025-26 | D48: For Resets and PTRM/RFMs (same as FRCP_final_year)
B49: dms_SpecifiedYear_final_year | C49: =FRY -> 2018-19 | D49: FRY from cover sheet
B50: dms_DollarReal_year | C50: =LEFT(CRCP_final_year,2)&RIGHT(CRCP_final_year,2) -> 2021 | D50: Uses the value in CRCP_final_year
B51: dms_Previous_DollarReal_year | C51: =LEFT(PRCP_final_year,2)&RIGHT(PRCP_final_year,2) -> 2016 | D51: Uses the value in PRCP_final_year
B52: dms_CRY_RYE | C52: =IFERROR(LEFT(CRY,2)&RIGHT(CRY,2),0) -> 2007 | D52: For ABC single year RINS
B53: dms_Reset_RYE | C53: =IF(dms_Model_Span>1,(LEFT(dms_Reset_final_year,2)&RIGHT(dms_Reset_final_year,2)),0) -> 0 | D53: If model span > 1 then uses dms_Reset_final_year otherwise it's a multi year ABC
B54: dms_Specified_RYE | C54: =IF(dms_MultiYear_ResponseFlag="Yes",(LEFT(dms_Specified_FinalYear,2)&RIGHT(dms_Specified_FinalYear,2)),0) -> 2019 | D54: If multi year ABC then it uses dms_Specified_FinalYear
B55: dms_Model_Span | C55: =INDEX(dms_Model_Span_List,MATCH(dms_Model,dms_Model_List)) -> 1 | D55: Only single year RINS are set as 1. Otherwise the result of 5 is used to signify that it is more than 1 year span
B56: dms_RYE_result | C56: =IF(dms_MultiYear_ResponseFlag="yes",dms_Specified_RYE,(IF(dms_Model_Span>1,dms_Reset_RYE,dms_CRY_RYE))) -> 2019 | D56: Nested IF - feeds into dms_RYE
B57: dms_Reset_Span | C57: =IF(dms_Reset_RYE>0,CONCATENATE(FRCP_y1," to ",FRCP_final_year),0) -> 0 | D57: Reset span of years as text
B58: dms_SpecifiedYear_Span | C58: =IF(dms_Specified_RYE>0,CONCATENATE(CRY," to ",dms_Specified_FinalYear),0) -> 2006-07 to 2018-19 | D58: Multi year ABC span of years as text
B59: dms_Header_Span | C59: =IF(dms_MultiYear_Flag=1,dms_SpecifiedYear_Span,IF(dms_Model_Span>1,dms_Reset_Span,CRY)) -> 2006-07 to 2018-19 | D59: NESTED IF - for Sheet Headers
B60: ABC RINS THAT SPAN MULTIPLE YEARS
B61: This is a multi year ABC RIN? | C61: Yes
C62: =IF(dms_MultiYear_ResponseFlag="No",0,1) -> 1 | D62: dms_MultiYear_Flag | E62: This is set from the answer provided above
C63: =IF(dms_MultiYear_Flag=1,FRY,"not a Multiple year submission") -> 2018-19 | D63: dms_Specified_FinalYear | E63: The result here is returned to dms_CRCP_FinalYear_Result if response to Q in C73 is "yes" and dms_MultiYear_Flag is set to 1
B64: Start year for 5.2 in Multi year ABC RINS | C64: =IFERROR(IF(dms_MultiYear_Flag=1,FRY,CRY),"not an ABC") -> 2018-19 | D64: dms_0502_Inst_Year | E64: =IF(dms_MultiYear_Flag=1,FRY,CRY) | G64: For single year RINS this is CRY - multi year RINS need to start a the end of the span of years (ie. FRY)
B65: WHAT IS THE RYE?
B66: Reg Period Lengths
B67: PRCP length in years | C67: =INDEX(dms_PRCPlength_List,MATCH(dms_TradingName,dms_TradingName_List)) -> 5 | D67: dms_PRCPlength_Num | E67: =INDEX(dms_PRCPlength_List,MATCH(dms_TradingName,dms_TradingName_List))
B68: CRCP length in years | C68: =INDEX(dms_CRCPlength_List,MATCH(dms_TradingName,dms_TradingName_List)) -> 5 | D68: dms_CRCPlength_Num | E68: =INDEX(dms_CRCPlength_List,MATCH(dms_TradingName,dms_TradingName_List))
B69: FRCP length in years | C69: =INDEX(dms_FRCPlength_List,MATCH(dms_TradingName,dms_TradingName_List)) -> 5 | D69: dms_FRCPlength_Num | E69: =INDEX(dms_FRCPlength_List,MATCH(dms_TradingName,dms_TradingName_List))
B70: Single year RIN?
B71: Single Year ABC RIN ? | C71: =IF(dms_Model="EB",1,0) -> 1 | D71: dms_EB
C72: =IF(dms_Model="CA",1,0) -> 0 | D72: dms_CA | E72: =dms_SingleYear_Model
C73: =IF(dms_Model="ARR",1,0) -> 0 | D73: dms_ARR
B74: Is this a single Year ABC RIN? | C74: =IF(SUM(dms_SingleYear_Model)=1,"yes","no") -> yes | D74: dms_SingleYearModel | E74: =IF(SUM(dms_SingleYear_Model)=1,"yes","no")
B75: Single Year Final Year Result | C75: =IF(AND(dms_SingleYearModel="yes",dms_MultiYear_Flag=0),CRY,0) -> 0 | D75: dms_SingleYear_FinalYear_Result | E75: =IFERROR(IF(SUM(dms_SingleYear_Model)<>0,(INDIRECT(dms_SingleYear_FinalYear_Ref)),"not a single year RIN"),"CRY not present")
B76: Multi year RIN?
B78: Multi Year Reset/Model? | C78: =IF(dms_Model_Span>1,"yes","no") -> no
B79: Final year result for Reset/Model | C79: =IF(dms_Model_Span>1,dms_Reset_final_year,0) -> 0
B81: Multi Year ABC RIN? | C81: =IF(dms_MultiYear_Flag=1,"yes","no") -> yes
B82: Final year result for ABC multi year | C82: =IF(dms_MultiYear_Flag=1,dms_SpecifiedYear_final_year,0) -> 2018-19
B84: EB RINS
B85: Calendar Year for table 3.6 data | C85: =IFERROR(IF(dms_Segment="Transmission",dms_Cal_Year_B4_CRY,CRY),"CRY not present") -> 2006-07 | D85: dms_0306_Year | E85: =IF(dms_Segment="Transmission",dms_Cal_Year_B4_CRY,CRY)
B86: CA RINS
B87: Find how many rows in tables 6.3 sustained interruptions? | E87: dms_060301_MaxRows only returns a valid value when cover sheet is attached to a CA file
C88: =IF(dms_Model<>"CA","not a CA","Is a CA") -> not a CA | E88: =IF(dms_Model<>"CA","not a CA","Is a CA")
B89: dms_060301_Avg_Duration_Sustained_Int_Values present? | C89: =IFERROR(IF(INDEX(dms_060301_Avg_Duration_Sustained_Int_Values,1,1)<>"","yes","no"),"no") -> no | D89: dms_060301_checkvalue | E89: =IFERROR(IF(INDEX(dms_060301_Avg_Duration_Sustained_Int_Values,1,1)<>"","yes","no"),"no")
C90: =IF(AND(dms_Model="CA",(dms_060301_checkvalue="no")),"error - NR not present","no errors") -> no errors | E90: =IF(AND(dms_Model="CA",(dms_060301_checkvalue="no")),"error - NR not present","no errors")
B91: Table 6.3.1 - last row reference | C91: =IFERROR(IF(dms_Model="CA",LOOKUP(2,1/(dms_060301_Avg_Duration_Sustained_Int_Values<>""),(ROW(dms_060301_Avg_Duration_Sustained_Int_Values))),"not a CA"),"6.3 not present") -> not a CA | D91: dms_060301_LastRow | E91: =IFERROR(IF(dms_Model="CA",LOOKUP(2,1/(dms_060301_Avg_Duration_Sustained_Int_Values<>""),(ROW(dms_060301_Avg_Duration_Sustained_Int_Values))),"not a CA"),"6.3 not present")
B92: Table 6.3.1 - max number rows | C92: =IFERROR(IF(dms_Model="CA",(dms_060301_LastRow-15),"not a CA"),"error") -> not a CA | D92: dms_060301_MaxRows | E92: =IFERROR(IF(dms_Model="CA",(dms_060301_LastRow-15),"not a CA"),"error")
B93: Table 6.6.3 - Public lighting repair - no. business days | C93: =INDEX(dms_663_List,MATCH(dms_TradingName,dms_TradingName_List)) -> 2 | D93: dms_663 | E93: =INDEX(dms_663_List,MATCH(dms_TradingName,dms_TradingName_List))
B94: ARR or RESET RINS
B95: How many rows in tables 6.1 or 6.7? (leap year?) | C95: insert dms_LeapYear NR if required | E95: 'dms_LeapYear is used to determine dms_060701_Max_Rows BUT it is only found on worksheet 6.1 or 6.7 and the date value in the cell is used to determine whether it is a leap year
B96: Is dms_LeapYear named range present? | C96: =IFERROR(IF(dms_LeapYear,"yes"),"no") -> no
B97: Table 6.7.1 - includes a leap year? | C97: =IFERROR(IF(MONTH(DATE(YEAR(dms_LeapYear),2,29))=2,"is a leap year","not a leap year"), "dms_LeapYear not present") -> dms_LeapYear not present | D97: dms_LeapYear_Result | E97: =IFERROR(IF(MONTH(DATE(YEAR(dms_LeapYear),2,29))=2,"is a leap year","not a leap year"),"dms_LeapYear not present")
B98: MaxRows if Reset and leap year | C98: =IF(dms_LeapYear_Result="is a leap year",1827,1826) -> 1826 | D98: dms_060701_Reset_MaxRows | E98: =IF(dms_LeapYear_Result="is a leap year",1827,1826) | H98: number of days present in Reset RIN table
B99: MaxRows if ARR and leap year | C99: =IF(dms_LeapYear_Result="is a leap year",366,365) -> 365 | D99: dms_060701_ARR_MaxRows | E99: =IF(dms_LeapYear_Result="is a leap year",366,365) | H99: number of days present in ARR RIN table
B100: Table 6.7.1 - Max Rows (leap year/ non leap year) | C100: =IF(dms_Model="ARR",dms_060701_ARR_MaxRows,IF(dms_Model="Reset",dms_060701_Reset_MaxRows,"not a relevant RIN type")) -> not a relevant RIN type | D100: dms_060701_MaxRows | E100: =IF(dms_Model="ARR",dms_060701_ARR_MaxRows,IF(dms_Model="Reset",dms_060701_Reset_MaxRows,"not a relevant RIN type"))
B101: How many columns in 6.7? (4 or 5 feeder categories) | C101: =IF(dms_FifthFeeder_flag_NSP="NO","This NSP has only 4 feeder categories","This NSP has 5 feeder categories") -> This NSP has only 4 feeder categories
B102: Table 6.7.1 - Last column (# of feeder categories > 4) | C102: =IF(dms_FifthFeeder_flag_NSP="NO",10,12) -> 10 | D102: dms_060701_MaxCols | E102: =IF(dms_FifthFeeder_flag_NSP="NO",8,10)
B103: Table 6.7.1 - Number of offset rows | C103: =IF(dms_Model="ARR",15,9) -> 9 | D103: dms_060701_OffsetRows | E103: =IF(dms_Model="ARR",15,9)
B104: Start date for telephone answering in 6.1 or 6.7? | E104: Using 060101 as naming standard not 060701 for start dates
B105: Table 6.1.1 and 6.7.1 - Start Date as Text | C105: =IF(dms_SingleYearModel="yes",(CONCATENATE(IF(LEN(CRY)=4,"1-Jan-","1-Jul-"),LEFT(CRY,4))),(CONCATENATE(IF(LEN(PRCP_y4)=4,"1-Jan-","1-Jul-"),LEFT(PRCP_y4,4)))) -> 1-Jul-2006 | D105: dms_060101_StartDateTxt | E105: =IF(SUM(dms_SingleYear_Model)>1,(CONCATENATE(IF(LEN(CRY)=4,"1-Jan-","1-Jul-"),LEFT(CRY,4))),(CONCATENATE(IF(LEN(CRCP_y4)=4,"1-Jan-","1-Jul-"),LEFT(CRCP_y4,4))))
B106: Table 6.1.1 and 6.7.1 - Start Date as Date Value | C106: =DATEVALUE(dms_060701_StartDateTxt) -> 38899 | D106: dms_060101_StartDateVal | E106: =DATEVALUE(dms_060701_StartDateTxt)
B107: ARRs
B108: How many rows in table 6.8? | C108: insert dms_060801_StartCell NR if required | E108: dms_060801_StartCell is only found on worksheet 6.8 and is used to determine the starting date for the date range
B109: Is dms_060801_StartCell named range present? | C109: yes | E109: =IFERROR(IF((ROW(dms_060801_StartCell)-1)=1,"yes","yes"),"no")
B110: Table 6.8 - Number of offset rows | C110: 12 | D110: dms_0608_OffsetRows | E110: =IFERROR(IF(dms_Model="ARR",(ROW(dms_060801_StartCell)-1),"not an ARR"),"6.8 error")
B111: Table 6.8 - Last row | C111: 0 | D111: dms_0608_LastRow | E111: =IFERROR(IF(dms_060801_StartCell<>"",IF(dms_Model="ARR",(LOOKUP(2,1/(dms_060801_01_Values<>""),(ROW(dms_060801_01_Values)))),"not an ARR"),0),"0")
B112: Table 6.8 - MaxRows | C112: =IFERROR(IF(dms_Model="ARR",(MAX(0,dms_0608_LastRow-dms_0608_OffsetRows)),"not an ARR"),"0") -> not an ARR | D112: dms_060801_MaxRows | E112: =IFERROR(IF(dms_Model="ARR",(MAX(0,dms_0608_LastRow-dms_0608_OffsetRows)),"not an ARR"),"0")
B113: TNSP RESET RINS
B114: Table 7.9.4 only appears in TNSPs Reset RIN
B115: Table 7.9.4 - first year | C115: =LEFT(PRCP_y3,4) -> 2013 | D115: dms_070904_Start_Year | E115: =LEFT(PRCP_y3,4)
B117: MISC
B118: Distribution Determination Reference | C118: =INDEX(dms_DeterminationRef_List,MATCH(dms_TradingName,dms_TradingName_List)) -> 2016-20 Distribution Determination | D118: dms_DeterminationRef
B119: Public lighting NSP? | C119: =INDEX(dms_Public_Lighting_List,MATCH(dms_TradingName,dms_TradingName_List)) -> YES | D119: dms_Public_Lighting | E119: =INDEX(dms_Public_Lighting_List,MATCH(dms_TradingName,dms_TradingName_List))
B120: CBD Feeder for this business | C120: =INDEX(dms_CBD_flag,MATCH(dms_TradingName,dms_TradingName_List)) -> NO | D120: dms_CBD_flag_NSP
B121: Urban Feeder for this business | C121: =INDEX(dms_Urban_flag,MATCH(dms_TradingName,dms_TradingName_List)) -> YES | D121: dms_Urban_flag_NSP
B122: Short rural Feeder for this business | C122: =INDEX(dms_ShortRural_flag,MATCH(dms_TradingName,dms_TradingName_List)) -> YES | D122: dms_ShortRural_flag_NSP
B123: Long rural Feeder for this business | C123: =INDEX(dms_LongRural_flag,MATCH(dms_TradingName,dms_TradingName_List)) -> NO | D123: dms_LongRural_flag_NSP
B124: Fifth Feeder Category (eg. TasNetworks (D)) | C124: =INDEX(dms_FeederType_5_flag,MATCH(dms_TradingName,dms_TradingName_List)) -> NO | D124: dms_FifthFeeder_flag_NSP | E124: =INDEX(dms_FeederType_5_flag,MATCH(dms_TradingName,dms_TradingName_List))
B126: DISCARD FILES
B127: discard this record? | C127: NO | D127: dms_DISCARD | E127: If record is to be discarded from DB set this flag to YES
B129: SUBSET FILES
B130: Is this Submission File a Subset File | C130: YES | D130: dms_Partial
B133: REGULATORY YEARS FOR MULTI RYE SUBMISSIONS
B134: Multiple RYE flag | C134: YES | D134: dms_Multi_RYE_flag
C135: Manually specify RYE | D135: Named ranges to apply
C136: 2013 | D136: dms_RYE_01
C137: 2014 | D137: dms_RYE_02
C138: 2015 | D138: dms_RYE_03
C139: 2016 | D139: dms_RYE_04
C140: 2017 | D140: dms_RYE_05
C141: 2018 | D141: dms_RYE_06
C142: 2019 | D142: dms_RYE_07
C143: 2020 | D143: dms_RYE_08
C144: 2021 | D144: dms_RYE_09

Sheet Instructions
B2: =CONCATENATE(dms_Sector," ",dms_Segment," ", "Network Service Provider") -> Electricity Distribution Network Service Provider
B3: =INDEX(dms_Worksheet_List,MATCH(dms_Model,dms_Model_List)) -> HISTORICAL ECONOMIC BENCHMARKING - FINANCIAL YEARS
B4: =CONCATENATE("This template is to be used by ",dms_TradingNameFull," to fulfil its reporting obligations to the AER.") -> This template is to be used by Jemena Electricity to fulfil its reporting obligations to the AER.
B5: INSTRUCTIONS
B6: GENERAL | C6: Complete the Business & other details worksheet before entering data or values in any other worksheets. The Business & other details worksheet is linked to other worksheets within the workbook and automatically generates certain column headings and conditional formatting.
B8: CONFIDENTIAL INFORMATION | C8: Please use the macro at the top of each worksheet to identify confidential information in the confidential workbook.
C9: -Do this by selecting the cell or cells that contain confidential information and then run the Mark selection as CONFIDENTIAL macro. This will format the cells a specific colour that is identified by the AER's database which in turn marks that information as confidential. -To reverse this, select the cell or cells and run the Return selection to NON-CONFIDENTIAL macro.
B11: RESPONSES | C11: Please return two (2) files to the AER: 1. A confidential version which must contain a complete set of all responses with confidential information marked using the Mark selection CONFIDENTIAL macro and which has been completed using the locked template file provided by the AER. 2. A public version with confidential information either removed completely or aggregated in some form together with writtten consent to disclose the public version of the response. Use the drop down box on the Business and other details worksheet to identify the file as either confidential ('consolidated') or public.
B13: AMENDMENTS | C13: If an NSP wishes to correct data previously submitted to the AER it should resubmit that data using the original completed submission as the starting point. Please make any necessary changes to the data. Data that is not being amended should be left unchanged. NSPs must identify the reason for the amendments in the Amendment Reason box on the Business and other details worksheet. NSPs may provide further details regarding any amendments in the Amendments worksheet. .
C14: NSP may use Amended Data macro to highlight cells that contain amended data. NB: if data is also CONFIDENTIAL, re-apply the Confidentiality macro after applying the Amended macro
C15: Please resubmit two (2) files - a confidential version and a public version of the amended submission to the AER
B17: UNITS OF MEASURE | C17: All amounts are to be unrounded and reported on a one for one basis: that is 1000 is to be entered as '1000'. Applicable units of measure may be identified in the table column headings or row descriptors.
B19: INPUT / NON-INPUT CELLS
D20: Yellow = Input cell (mandatory)
D21: Darker yellow = input cell (mandatory)
D22: Orange = input cell (if data available)
D23: Grey = Not applicable/No inputs required
D24: PLEASE DO NOT ENTER TEXT into cells that are to contain numeric data.
B27: NAVIGATION | C27: Many tables in the worksheets have been "grouped" to allow for easy navigation. To ungroup or group data use the outline symbols in the left margin (for Row groupings) or above the columns (for column groupings).

Sheet Contents
B1: =INDEX(dms_Worksheet_List,MATCH(dms_Model,dms_Model_List)) -> HISTORICAL ECONOMIC BENCHMARKING - FINANCIAL YEARS
B2: =INDEX(dms_TradingNameFull_List,MATCH(dms_TradingName,dms_TradingName_List)) -> Jemena Electricity
B3: =dms_Header_Span -> 2006-07 to 2018-19
C7: CONTENTS
C9: SUBMISSION | D9: Business & other details
C11: ECONOMIC BENCHMARKING | D11: 3.1 Revenue
D12: 3.2 Operating expenditure
D13: 3.2.3 Provisions
D14: 3.3 Assets (RAB)
D15: 3.4 Operational data
D16: 3.5 Physical assets
D17: 3.6 Quality of service
D18: 3.7 Operating environment

Sheet Business & other details
V1: =INDEX(dms_Worksheet_List,MATCH(dms_Model,dms_Model_List)) -> HISTORICAL ECONOMIC BENCHMARKING - FINANCIAL YEARS
V2: =INDEX(dms_TradingNameFull_List,MATCH(dms_TradingName,dms_TradingName_List)) -> Jemena Electricity
V3: =dms_Header_Span -> 2006-07 to 2018-19
V4: BUSINESS & OTHER DETAILS
V6: INSTRUCTIONS
V7: Complete the following business details regulatory template before entering data or values in any other regulatory template. This regulatory template is linked to other cells within the spreadsheet and automatically generates column headings and conditional formatting to distinguish business specific input and non-input cells.
Q9: SUBMISSION PARTICULARS INPUT SHEET
V12: ENTITY DETAILS
V14: Business Name
V16: Short name | AL16: Jemena Electricity
V17: ACN/ABN | AL17: =INDEX(dms_ABN_List,MATCH(dms_TradingName,dms_TradingName_List)) -> 82064651083
V21: Business Address | BQ21: Postal Address
V23: Address 1 | AL23: =INDEX(dms_Addr1_List,MATCH(dms_TradingName,dms_TradingName_List)) -> Level 16 | BI23: Address 1 | BQ23: =INDEX(dms_PAddr1_List,MATCH(dms_TradingName,dms_TradingName_List)) -> PO Box 16182
V24: Address 2 | AL24: =IF(ISBLANK(INDEX(dms_Addr2_List,MATCH(dms_TradingName,dms_TradingName_List))),"",(INDEX(dms_Addr2_List,MATCH(dms_TradingName,dms_TradingName_List)))) -> 567 Collins Street | BI24: Address 2 | BQ24: =IF(ISBLANK(INDEX(dms_PAddr2_List,MATCH(dms_TradingName,dms_TradingName_List))),"",(INDEX(dms_PAddr2_List,MATCH(dms_TradingName,dms_TradingName_List)))) -> 
V25: Suburb | AL25: =INDEX(dms_Suburb_List,MATCH(dms_TradingName,dms_TradingName_List)) -> MELBOURNE | BI25: Suburb | BQ25: =INDEX(dms_PSuburb_List,MATCH(dms_TradingName,dms_TradingName_List)) -> MELBOURNE
V26: State | AL26: =INDEX(dms_State_List,MATCH(dms_TradingName,dms_TradingName_List)) -> Vic | AV26: Post code | AX26: =INDEX(dms_PostCode_List,MATCH(dms_TradingName,dms_TradingName_List)) -> 3000 | BI26: State | BQ26: =INDEX(dms_PState_List,MATCH(dms_TradingName,dms_TradingName_List)) -> Vic | CA26: Post code | CC26: 3000
BA28: `
V30: Contact Names
V32: Name | AL32: Matthew Serpell | BI32: Name
V33: Phone | AL33: (03) 9173 7000 | BI33: Phone
V34: Email | AL34: matthew.serpell@jemena.com.au | BI34: Email
V39: REGULATORY CONTROL PERIODS
V42: RESETS | AF42: Forthcoming period | AR42: 2021-22 | BA42: =FRCP_y2 -> 2022-23 | BJ42: =FRCP_y3 -> 2023-24 | BS42: =FRCP_y4 -> 2024-25 | CB42: =FRCP_y5 -> 2025-26
AR43: =FRCP_y6 -> 2026-27 | BA43: =FRCP_y7 -> 2027-28 | BJ43: =FRCP_y8 -> 2028-29 | BS43: =FRCP_y9 -> 2029-30 | CB43: =FRCP_y10 -> 2030-31
AR44: =FRCP_y11 -> 2031-32 | BA44: =FRCP_y12 -> 2032-33 | BJ44: =FRCP_y13 -> 2033-34 | BS44: =FRCP_y14 -> 2034-35 | CB44: =FRCP_y15 -> 2035-36
AF46: Current period | AR46: =CRCP_y1 -> 2016-17 | BA46: =CRCP_y2 -> 2017-18 | BJ46: =CRCP_y3 -> 2018-19 | BS46: =CRCP_y4 -> 2019-20 | CB46: =CRCP_y5 -> 2020-21
AR47: =CRCP_y6 -> 2021-22 | BA47: =CRCP_y7 -> 2022-23 | BJ47: =CRCP_y8 -> 2023-24 | BS47: =CRCP_y9 -> 2024-25 | CB47: =CRCP_y10 -> 2025-26
AR48: =CRCP_y11 -> 2026-27 | BA48: =CRCP_y12 -> 2027-28 | BJ48: =CRCP_y13 -> 2028-29 | BS48: =CRCP_y14 -> 2029-30 | CB48: =CRCP_y15 -> 2030-31
AF50: Previous period | AR50: =PRCP_y1 -> 2011-12 | BA50: =PRCP_y2 -> 2012-13 | BJ50: =PRCP_y3 -> 2013-14 | BS50: =PRCP_y4 -> 2014-15 | CB50: =PRCP_y5 -> 2015-16
AR51: =PRCP_y6 -> 2016-17 | BA51: =PRCP_y7 -> 2017-18 | BJ51: =PRCP_y8 -> 2018-19 | BS51: =PRCP_y9 -> 2019-20 | CB51: =PRCP_y10 -> 2020-21
AR52: =PRCP_y11 -> 2021-22 | BA52: =PRCP_y12 -> 2022-23 | BJ52: =PRCP_y13 -> 2023-24 | BS52: =PRCP_y14 -> 2024-25 | CB52: =PRCP_y15 -> 2025-26
V54: ANNUAL RINS | AF54: Commencing year | AR54: 2006-07
AF56: Final year | AR56: 2018-19
V60: SUBMISSION DETAILS
AF62: RIN type | AR62: =INDIRECT(dms_Model) -> Economic Benchmarking
V64: THIS FILE | AF64: Source | AR64: Reporting
AF66: Data Quality | AR66: Consolidated
AF68: Confidentiality Status | AR68: Public
AF70: Amended RIN Amendment Reason
AF74: Submission Date | AR74: 2020-01-31

Sheet 3.1 Revenue
B1: =INDEX(dms_Worksheet_List,MATCH(dms_Model,dms_Model_List)) -> HISTORICAL ECONOMIC BENCHMARKING - FINANCIAL YEARS
B2: =INDEX(dms_TradingNameFull_List,MATCH(dms_TradingName,dms_TradingName_List)) -> Jemena Electricity
B3: =dms_Header_Span -> 2006-07 to 2018-19
B4: 3.1 REVENUE
B6: There are THREE (x TWO) tables on this worksheet. Both ROWS and COLUMNS have been grouped for ease of navigation. see the Instructions sheet on how to group or ungroup tables.
B8: 3.1.1 - REVENUE GROUPING BY CHARGEABLE QUANTITY
C9: STANDARD CONTROL SERVICES | P9: ALTERNATIVE CONTROL SERVICES
C10: REVENUE ($0's) | P10: REVENUE ($0's)
C11: =dms_y1 -> 2006-07 | D11: =dms_y2 -> 2007-08 | E11: =dms_y3 -> 2008-09 | F11: =dms_y4 -> 2009-10 | G11: =dms_y5 -> 2010-11 | H11: =dms_y6 -> 2011-12 | I11: =dms_y7 -> 2012-13 | J11: =dms_y8 -> 2013-14 | K11: =dms_y9 -> 2014-15 | L11: =dms_y10 -> 2015-16 | M11: =dms_y11 -> 2016-17 | N11: =dms_y12 -> 2017-18 | P11: =dms_y1 -> 2006-07 | Q11: =dms_y2 -> 2007-08 | R11: =dms_y3 -> 2008-09 | S11: =dms_y4 -> 2009-10 | T11: =dms_y5 -> 2010-11 | U11: =dms_y6 -> 2011-12 | V11: =dms_y7 -> 2012-13 | W11: =dms_y8 -> 2013-14 | X11: =dms_y9 -> 2014-15 | Y11: =dms_y10 -> 2015-16 | Z11: =dms_y11 -> 2016-17 | AA11: =dms_y12 -> 2017-18
A12: DREV0101 | B12: Revenue from Fixed Customer Charges | C12: 7848651.5 | D12: 7586280 | E12: 7441304.5 | F12: 7578037.5 | G12: 8179343.5 | H12: 9014182 | I12: 10147455.5 | J12: 12108919.76 | K12: 13246981.05 | L12: 13292328.29 | M12: 14743547.91 | N12: 18700126.68 | P12: 0 | Q12: 0 | R12: 0 | S12: 0 | T12: 0 | U12: 0 | V12: 0 | W12: 0 | X12: 0 | Y12: 0 | Z12: 0 | AA12: 0
A13: DREV0102 | B13: Revenue from Energy Delivery charges where time of use is not a determinant | C13: 67739718.5 | D13: 70657584 | E13: 75926477 | F13: 81561762.5 | G13: 85219919 | H13: 89721185 | I13: 95615105.5 | J13: 102964138.2 | K13: 109638184.2 | L13: 114654335.6 | M13: 119496586 | N13: 116495987.1 | P13: 0 | Q13: 0 | R13: 0 | S13: 0 | T13: 0 | U13: 0 | V13: 0 | W13: 0 | X13: 0 | Y13: 0 | Z13: 0 | AA13: 0
A14: DREV0103 | B14: Revenue from On–Peak Energy Delivery charges | C14: 34087613.5 | D14: 35270568 | E14: 34472212 | F14: 34132296 | G14: 36538468 | H14: 38561392 | I14: 41773410.5 | J14: 45260807.2 | K14: 47832515 | L14: 48856564.26 | M14: 49215675.89 | N14: 46991740.89 | P14: 0 | Q14: 0 | R14: 0 | S14: 0 | T14: 0 | U14: 0 | V14: 0 | W14: 0 | X14: 0 | Y14: 0 | Z14: 0 | AA14: 0
A15: DREV0104 | B15: Revenue from Shoulder period Energy Delivery Charges | C15: 0 | D15: 0 | E15: 0 | F15: 0 | G15: 0 | H15: 0 | I15: 10489 | J15: 79107.98363 | K15: 180422.8296 | L15: 228621.2469 | M15: 237007.0087 | N15: 218548.6931 | P15: 0 | Q15: 0 | R15: 0 | S15: 0 | T15: 0 | U15: 0 | V15: 0 | W15: 0 | X15: 0 | Y15: 0 | Z15: 0 | AA15: 0
A16: DREV0105 | B16: Revenue from Off–Peak Energy Delivery charges | C16: 4607787.5 | D16: 4793513.5 | E16: 4771296.5 | F16: 4768951 | G16: 5250106.5 | H16: 5849730.5 | I16: 6626667.5 | J16: 7320495.383 | K16: 7699132.515 | L16: 7912544.863 | M16: 8257982.908 | N16: 8192132.806 | P16: 0 | Q16: 0 | R16: 0 | S16: 0 | T16: 0 | U16: 0 | V16: 0 | W16: 0 | X16: 0 | Y16: 0 | Z16: 0 | AA16: 0
A17: DREV0106 | B17: Revenue from controlled load customer charges | C17: 857798 | D17: 835827 | E17: 754712.5 | F17: 621358.5 | G17: 636847 | H17: 725057 | I17: 752166 | J17: 727103.7489 | K17: 694188.4392 | L17: 681535.5218 | M17: 639683.6874 | N17: 584505.5397 | P17: 0 | Q17: 0 | R17: 0 | S17: 0 | T17: 0 | U17: 0 | V17: 0 | W17: 0 | X17: 0 | Y17: 0 | Z17: 0 | AA17: 0
A18: DREV0107 | B18: Revenue from unmetered supplies | C18: 2284573.5 | D18: 1729088 | E18: 1681239 | F18: 1720929 | G18: 1862041.5 | H18: 2046081 | I18: 2214735.5 | J18: 2466231.251 | K18: 2509805.656 | L18: 2010736.105 | M18: 2152210.229 | N18: 2196381.686 | P18: 0 | Q18: 0 | R18: 0 | S18: 0 | T18: 0 | U18: 0 | V18: 0 | W18: 0 | X18: 0 | Y18: 0 | Z18: 0 | AA18: 0
A19: DREV0108 | B19: Revenue from Contracted Maximum Demand charges | C19: 0 | D19: 0 | E19: 0 | F19: 0 | G19: 0 | H19: 0 | I19: 0 | J19: 0 | K19: 0 | L19: 0 | M19: 0 | N19: 0 | P19: 0 | Q19: 0 | R19: 0 | S19: 0 | T19: 0 | U19: 0 | V19: 0 | W19: 0 | X19: 0 | Y19: 0 | Z19: 0 | AA19: 0
A20: DREV0109 | B20: Revenue from Measured Maximum Demand charges | C20: 33481357.5 | D20: 35857949 | E20: 38072759 | F20: 40320203.5 | G20: 43137132.5 | H20: 48044285 | I20: 55848128.5 | J20: 64912792.89 | K20: 70533435.49 | L20: 69701009.69 | M20: 68725697.45 | N20: 67946643.49 | P20: 0 | Q20: 0 | R20: 0 | S20: 0 | T20: 0 | U20: 0 | V20: 0 | W20: 0 | X20: 0 | Y20: 0 | Z20: 0 | AA20: 0
A21: DREV0110 | B21: Revenue from metering charges | C21: 6363764.5 | D21: 7957063 | E21: 9868174 | F21: 5447558 | G21: 0 | H21: 0 | I21: 0 | J21: 0 | K21: 0 | L21: 0 | M21: 0 | N21: 0 | P21: 0 | Q21: 0 | R21: 0 | S21: 0 | T21: 0 | U21: 0 | V21: 0 | W21: 0 | X21: 0 | Y21: 22394139.17 | Z21: 37328794.33 | AA21: 28487493.35
A22: DREV0111 | B22: Revenue from connection charges | C22: 0 | D22: 0 | E22: 0 | F22: 0 | G22: 0 | H22: 0 | I22: 0 | J22: 0 | K22: 0 | L22: 0 | M22: 0 | N22: 0 | P22: 553711 | Q22: 804565.5 | R22: 863185.5 | S22: 818195.5 | T22: 1711482 | U22: 2738668 | V22: 2843151 | W22: 3124478.705 | X22: 3763355.215 | Y22: 4646235.275 | Z22: 5767809.585 | AA22: 6443522.625
A23: DREV0112 | B23: Revenue from public lighting charges | C23: 0 | D23: 0 | E23: 0 | F23: 0 | G23: 0 | H23: 0 | I23: 0 | J23: 0 | K23: 0 | L23: 0 | M23: 0 | N23: 0 | P23: 2313744.5 | Q23: 2405701.5 | R23: 2624202 | S23: 2908773.5 | T23: 3355091.5 | U23: 3658233 | V23: 3787850 | W23: 4021927.19 | X23: 3833155.69 | Y23: 3974030.26 | Z23: 4287239.493 | AA23: 4186691.958
A24: DREV0113 | B24: Revenue from other Sources | C24: 0 | D24: 0 | E24: 0 | F24: 0 | G24: 0 | H24: 0 | I24: 0 | J24: 0 | K24: 0 | L24: 0 | M24: 0 | N24: 0 | P24: 3746620.5 | Q24: 4473902.4 | R24: 4862047.4 | S24: 5205641.5 | T24: 5219324.5 | U24: 5140793.5 | V24: 5571222.5 | W24: 5594793.995 | X24: 5798715.19 | Y24: 6399618.036 | Z24: 6550615.866 | AA24: 5954423.315
A25: DREV01 | B25: Total revenue by chargeable quantity | C25: =SUM(C12:C24) -> 157271264.5 | D25: =SUM(D12:D24) -> 164687872.5 | E25: 172988174.5 | F25: 176151096 | G25: 180823858 | H25: 193961912.5 | I25: 212988158 | J25: 235839596.4 | K25: =SUM(K12:K24) -> 252334665.2 | L25: 257337675.5 | M25: =SUM(M12:M24) -> 263468391.1 | N25: 261326066.9 | P25: =SUM(P12:P24) -> 6614076 | Q25: =SUM(Q12:Q24) -> 7684169.4 | R25: =SUM(R12:R24) -> 8349434.9 | S25: =SUM(S12:S24) -> 8932610.5 | T25: =SUM(T12:T24) -> 10285898 | U25: =SUM(U12:U24) -> 11537694.5 | V25: =SUM(V12:V24) -> 12202223.5 | W25: =SUM(W12:W24) -> 12741199.89 | X25: 13395226.1 | Y25: 37414022.74 | Z25: 53934459.27 | AA25: 45072131.25
B27: 3.1.2 - REVENUE GROUPING BY CUSTOMER TYPE OR CLASS
C28: STANDARD CONTROL SERVICES | P28: ALTERNATIVE CONTROL SERVICES
C29: REVENUE ($0's) | P29: REVENUE ($0's)
C30: =dms_y1 -> 2006-07 | D30: =dms_y2 -> 2007-08 | E30: =dms_y3 -> 2008-09 | F30: =dms_y4 -> 2009-10 | G30: =dms_y5 -> 2010-11 | H30: =dms_y6 -> 2011-12 | I30: =dms_y7 -> 2012-13 | J30: =dms_y8 -> 2013-14 | K30: =dms_y9 -> 2014-15 | L30: =dms_y10 -> 2015-16 | M30: =dms_y11 -> 2016-17 | N30: =dms_y12 -> 2017-18 | P30: =dms_y1 -> 2006-07 | Q30: =dms_y2 -> 2007-08 | R30: =dms_y3 -> 2008-09 | S30: =dms_y4 -> 2009-10 | T30: =dms_y5 -> 2010-11 | U30: =dms_y6 -> 2011-12 | V30: =dms_y7 -> 2012-13 | W30: =dms_y8 -> 2013-14 | X30: =dms_y9 -> 2014-15 | Y30: =dms_y10 -> 2015-16 | Z30: =dms_y11 -> 2016-17 | AA30: =dms_y12 -> 2017-18
A31: DREV0201 | B31: Revenue from residential Customers | C31: 65292786.5 | D31: 67470859 | E31: 70464329.5 | F31: 74801428 | G31: 79731471.5 | H31: 84550765.5 | I31: 91288342.5 | J31: 99040414.99 | K31: 105621857.1 | L31: 110647987.9 | M31: 116452552.4 | N31: 116529587.1 | P31: 0 | Q31: 0 | R31: 0 | S31: 0 | T31: 0 | U31: 0 | V31: 0 | W31: 0 | X31: 0 | Y31: 0 | Z31: 0 | AA31: 0
A32: DREV0202 | B32: Revenue from Non residential customers not on demand tariffs | C32: 35688215.5 | D32: 36892796 | E32: 38054434.5 | F32: 38797613.5 | G32: 39471035.5 | H32: 40187877.5 | I32: 41672198.5 | J32: 43995103.02 | K32: 46199085.58 | L32: 47589633.63 | M32: 47436451.18 | N32: 45704178.89 | P32: 0 | Q32: 0 | R32: 0 | S32: 0 | T32: 0 | U32: 0 | V32: 0 | W32: 0 | X32: 0 | Y32: 0 | Z32: 0 | AA32: 0
A33: DREV0203 | B33: Revenue from Non-residential low voltage demand tariff customers | C33: 32942248 | D33: 35365625 | E33: 37718885.5 | F33: 40208858 | G33: 44059561.5 | H33: 50555450.5 | I33: 59488890 | J33: 69946405.12 | K33: 76427759.52 | L33: 75880575.3 | M33: 76101003.69 | N33: 75587417.25 | P33: 0 | Q33: 0 | R33: 0 | S33: 0 | T33: 0 | U33: 0 | V33: 0 | W33: 0 | X33: 0 | Y33: 0 | Z33: 0 | AA33: 0
A34: DREV0204 | B34: Revenue from Non-residential high voltage demand tariff customers | C34: 14699675.5 | D34: 15272440.5 | E34: 15201112 | F34: 15174710 | G34: 15699748 | H34: 16621737.5 | I34: 18323991 | J34: 20391441.53 | K34: 21576157.35 | L34: 21208742.59 | M34: 21326173.53 | N34: 21308501.98 | P34: 0 | Q34: 0 | R34: 0 | S34: 0 | T34: 0 | U34: 0 | V34: 0 | W34: 0 | X34: 0 | Y34: 0 | Z34: 0 | AA34: 0
A35: DREV0205 | B35: Revenue from unmetered supplies | C35: 2284573.5 | D35: 1729088 | E35: 1681239 | F35: 1720929 | G35: 1862041.5 | H35: 2046081 | I35: 2214735.5 | J35: 2466231.251 | K35: 2509805.656 | L35: 2010736.105 | M35: 2152210.229 | N35: 2196381.686 | P35: 0 | Q35: 0 | R35: 0 | S35: 0 | T35: 0 | U35: 0 | V35: 0 | W35: 0 | X35: 0 | Y35: 0 | Z35: 0 | AA35: 0
A36: DREV0206 | B36: Revenue from Other Customers | C36: 6363764.5 | D36: 7957063 | E36: 9868174 | F36: 5447558 | G36: 0 | H36: 0 | I36: 0 | J36: 0 | K36: 0 | L36: 0 | M36: 0 | N36: 0 | P36: 6614076 | Q36: 7684169.4 | R36: 8349434.9 | S36: 8932610.5 | T36: 10285898 | U36: 11537694.5 | V36: 12202223.5 | W36: 12741199.89 | X36: 13395226.1 | Y36: 37414022.74 | Z36: 53934459.27 | AA36: 45072131.25
A37: DREV02 | B37: Total revenue by customer class | C37: =SUM(C31:C36) -> 157271263.5 | D37: =SUM(D31:D36) -> 164687871.5 | E37: 172988174.5 | F37: 176151096.5 | G37: 180823858 | H37: 193961912 | I37: 212988157.5 | J37: 235839595.9 | K37: =SUM(K31:K36) -> 252334665.2 | L37: 257337675.5 | M37: 263468391.1 | N37: 261326066.9 | P37: =SUM(P31:P36) -> 6614076 | Q37: =SUM(Q31:Q36) -> 7684169.4 | R37: =SUM(R31:R36) -> 8349434.9 | S37: =SUM(S31:S36) -> 8932610.5 | T37: =SUM(T31:T36) -> 10285898 | U37: =SUM(U31:U36) -> 11537694.5 | V37: =SUM(V31:V36) -> 12202223.5 | W37: =SUM(W31:W36) -> 12741199.89 | X37: 13395226.1 | Y37: 37414022.74 | Z37: 53934459.27 | AA37: 45072131.25
B39: 3.1.3 - REVENUE (penalties) ALLOWED (deducted) THROUGH INCENTIVE SCHEMES
C40: STANDARD CONTROL SERVICES | P40: ALTERNATIVE CONTROL SERVICES
C41: REVENUE ($0's) | P41: REVENUE ($0's)
C42: =dms_y1 -> 2006-07 | D42: =dms_y2 -> 2007-08 | E42: =dms_y3 -> 2008-09 | F42: =dms_y4 -> 2009-10 | G42: =dms_y5 -> 2010-11 | H42: =dms_y6 -> 2011-12 | I42: =dms_y7 -> 2012-13 | J42: =dms_y8 -> 2013-14 | K42: =dms_y9 -> 2014-15 | L42: =dms_y10 -> 2015-16 | M42: =dms_y11 -> 2016-17 | N42: =dms_y12 -> 2017-18 | P42: =dms_y1 -> 2006-07 | Q42: =dms_y2 -> 2007-08 | R42: =dms_y3 -> 2008-09 | S42: =dms_y4 -> 2009-10 | T42: =dms_y5 -> 2010-11 | U42: =dms_y6 -> 2011-12 | V42: =dms_y7 -> 2012-13 | W42: =dms_y8 -> 2013-14 | X42: =dms_y9 -> 2014-15 | Y42: =dms_y10 -> 2015-16 | Z42: =dms_y11 -> 2016-17 | AA42: =dms_y12 -> 2017-18
A43: DREV0301 | B43: EBSS | C43: 2064165 | D43: 2150536.5 | E43: 2236637 | F43: 2307420.5 | G43: 5569256.5 | H43: 9097499 | I43: 9790406.5 | J43: 10608580.5 | K43: 11505337 | L43: 8496723.5 | M43: 5023379.5 | N43: 5183651 | P43: 0 | Q43: 0 | R43: 0 | S43: 0 | T43: 0 | U43: 0 | V43: 0 | W43: 0 | X43: 0 | Y43: 0 | Z43: 0 | AA43: 0
A44: DREV0302 | B44: STPIS | C44: 263708 | D44: -216437 | E44: -110916 | F44: 2306808 | G44: 2281795 | H44: -280141 | I44: 3951734 | J44: 9318630 | K44: 7705355.205 | L44: 7404327.652 | M44: 6787503.524 | N44: -3326554.63 | P44: 0 | Q44: 0 | R44: 0 | S44: 0 | T44: 0 | U44: 0 | V44: 0 | W44: 0 | X44: 0 | Y44: 0 | Z44: 0 | AA44: 0
A45: DREV0303 | B45: F-Factor | C45: 0 | D45: 0 | E45: 0 | F45: 0 | G45: 0 | H45: 0 | I45: 0 | J45: 185000 | K45: -242500 | L45: -767500 | M45: -305000 | N45: 362500 | P45: 0 | Q45: 0 | R45: 0 | S45: 0 | T45: 0 | U45: 0 | V45: 0 | W45: 0 | X45: 0 | Y45: 0 | Z45: 0 | AA45: 0
A46: DREV0304 | B46: S-Factor True up | C46: 0 | D46: 0 | E46: 0 | F46: 0 | G46: 0 | H46: 0 | I46: 0 | J46: -169406.5 | K46: -354286.4608 | L46: 234061.3248 | M46: 844229.9066 | N46: 870945.4721 | P46: 0 | Q46: 0 | R46: 0 | S46: 0 | T46: 0 | U46: 0 | V46: 0 | W46: 0 | X46: 0 | Y46: 0 | Z46: 0 | AA46: 0
A47: DREV0305 | B47: Other | C47: 0 | D47: 0 | E47: 0 | F47: 0 | G47: 0 | H47: 0 | I47: 0 | J47: 0 | K47: 0 | L47: 0 | M47: 0 | N47: 0 | P47: 0 | Q47: 0 | R47: 0 | S47: 0 | T47: 0 | U47: 0 | V47: 0 | W47: 0 | X47: 0 | Y47: 0 | Z47: 0 | AA47: 0
A48: DREV03 | B48: Total revenue of incentive schemes | C48: =SUM(C43:C47) -> 2327873 | D48: =SUM(D43:D47) -> 1934099.5 | E48: 2125721 | F48: 4614228.5 | G48: 7851051.5 | H48: 8817358 | I48: 13742140.5 | J48: 19942804 | K48: =SUM(K43:K47) -> 18613905.74 | L48: 15367612.48 | M48: 12350112.93 | N48: 3090541.842 | P48: =SUM(P43:P47) -> 0 | Q48: =SUM(Q43:Q47) -> 0 | R48: =SUM(R43:R47) -> 0 | S48: =SUM(S43:S47) -> 0 | T48: =SUM(T43:T47) -> 0 | U48: =SUM(U43:U47) -> 0 | V48: =SUM(V43:V47) -> 0 | W48: =SUM(W43:W47) -> 0 | X48: 0 | Y48: 0 | Z48: 0 | AA48: 0

Sheet 3.2 Operating expenditure
B1: =INDEX(dms_Worksheet_List,MATCH(dms_Model,dms_Model_List)) -> HISTORICAL ECONOMIC BENCHMARKING - FINANCIAL YEARS
B2: =INDEX(dms_TradingNameFull_List,MATCH(dms_TradingName,dms_TradingName_List)) -> Jemena Electricity
B3: =dms_Header_Span -> 2006-07 to 2018-19
B4: 3.2 OPERATING EXPENDITURE
B6: There are THREE tables on this worksheet. Each has been grouped for ease of navigation. see the Instructions sheet on how to group or ungroup tables.
B8: Instructions
B9: Please list current opex categories in tables 3.2.1 and 3.2.2 and provide opex data as required. Where opex categories have changed at any time during the regulatory period, list previous opex categories in the 'Historical' sub-table and provide opex data as required.
B11: 3.2.1 - OPEX CATEGORIES
B12: CURRENT OPEX CATEGORIES AND COST ALLOCATIONS
D13: STANDARD CONTROL SERVICES | Q13: ALTERNATIVE CONTROL SERVICES
D14: EXPENDITURE ($0's) | Q14: EXPENDITURE ($0's)
D15: =dms_y1 -> 2006-07 | E15: =dms_y2 -> 2007-08 | F15: =dms_y3 -> 2008-09 | G15: =dms_y4 -> 2009-10 | H15: =dms_y5 -> 2010-11 | I15: =dms_y6 -> 2011-12 | J15: =dms_y7 -> 2012-13 | K15: =dms_y8 -> 2013-14 | L15: =dms_y9 -> 2014-15 | M15: =dms_y10 -> 2015-16 | N15: =dms_y11 -> 2016-17 | O15: =dms_y12 -> 2017-18 | Q15: =dms_y1 -> 2006-07 | R15: =dms_y2 -> 2007-08 | S15: =dms_y3 -> 2008-09 | T15: =dms_y4 -> 2009-10 | U15: =dms_y5 -> 2010-11 | V15: =dms_y6 -> 2011-12 | W15: =dms_y7 -> 2012-13 | X15: =dms_y8 -> 2013-14 | Y15: =dms_y9 -> 2014-15 | Z15: =dms_y10 -> 2015-16 | AA15: =dms_y11 -> 2016-17 | AB15: =dms_y12 -> 2017-18
A16: DOPEX0101 | B16: Maintenance
A17: DOPEX0102 | B17: Routine | D17: 2759675.2 | E17: 2527840.602 | F17: 2319554.885 | G17: 2393260.39 | H17: 3019967.273 | I17: 2468200.087 | J17: 3154738.876 | K17: 5962180.171 | L17: 6680215.928 | M17: 3753544.176 | N17: 1578384.18 | O17: 1960544.051 | Q17: 0 | R17: 0 | S17: 0 | T17: 0 | U17: 0 | V17: 0 | W17: 0 | X17: 0 | Y17: 0 | Z17: 0 | AA17: 0 | AB17: 0
A18: DOPEX0103 | B18: Condition based | D18: 3436157.079 | E18: 3147492.64 | F18: 2888149.641 | G18: 2979922.649 | H18: 4042949.316 | I18: 4381104.786 | J18: 3645368.588 | K18: 3494952.692 | L18: 3592838.884 | M18: 2884074.954 | N18: 2135987.603 | O18: 2055627.7 | Q18: 0 | R18: 0 | S18: 0 | T18: 0 | U18: 0 | V18: 0 | W18: 0 | X18: 0 | Y18: 0 | Z18: 0 | AA18: 0 | AB18: 0
A19: DOPEX0104 | B19: Vegetation Control | D19: 1063200 | E19: 1043910.497 | F19: 995808.0201 | G19: 1035448.866 | H19: 1783438.057 | I19: 3701136.972 | J19: 4753372.935 | K19: 4792349.103 | L19: 4497336.609 | M19: 3821547.434 | N19: 4066967.06 | O19: 4306683.504 | Q19: 0 | R19: 0 | S19: 0 | T19: 0 | U19: 0 | V19: 0 | W19: 0 | X19: 0 | Y19: 0 | Z19: 0 | AA19: 0 | AB19: 0
A20: DOPEX0105 | B20: Emergency Fault | D20: 5039060.334 | E20: 4615739.314 | F20: 4235417.638 | G20: 4370001.043 | H20: 4660587.796 | I20: 5274497.105 | J20: 6614187.163 | K20: 7309716.993 | L20: 6783848.623 | M20: 5650244.476 | N20: 5244354.294 | O20: 5164340.316 | Q20: 0 | R20: 0 | S20: 0 | T20: 0 | U20: 0 | V20: 0 | W20: 0 | X20: 0 | Y20: 0 | Z20: 0 | AA20: 0 | AB20: 0
A21: DOPEX0106 | B21: Inspection | D21: 1261548.388 | E21: 1155568.321 | F21: 1060353.307 | G21: 1094046.787 | H21: 1172197.912 | I21: 1245525.767 | J21: 1650485.927 | K21: 2004405.291 | L21: 1891803.466 | M21: 1587533.193 | N21: 1768147.539 | O21: 2143129.041 | Q21: 0 | R21: 0 | S21: 0 | T21: 0 | U21: 0 | V21: 0 | W21: 0 | X21: 0 | Y21: 0 | Z21: 0 | AA21: 0 | AB21: 0
A22: DOPEX0107 | B22: SCADA/Network Control | D22: 411618.5 | E22: 371936.5822 | F22: 345521.9008 | G22: 179306.9597 | H22: 30878.25218 | I22: 68448.11118 | J22: 91398.5 | K22: 42682.085 | L22: 34969.585 | M22: 909494.54 | N22: 1761090.75 | O22: 1710094.33 | Q22: 0 | R22: 0 | S22: 0 | T22: 0 | U22: 0 | V22: 0 | W22: 0 | X22: 0 | Y22: 0 | Z22: 0 | AA22: 0 | AB22: 0
A23: DOPEX0108 | B23: Other - Standard Control Services (Maintenance) | D23: 67346.91 | E23: 36491.015 | F23: 0 | G23: 0 | H23: 685385.9141 | I23: 1200885.914 | J23: 2242957.491 | K23: 2640179.896 | L23: 1731067.967 | M23: 2590999.644 | N23: 4238066.034 | O23: 3790717.612 | Q23: 0 | R23: 0 | S23: 0 | T23: 0 | U23: 0 | V23: 0 | W23: 0 | X23: 0 | Y23: 0 | Z23: 0 | AA23: 0 | AB23: 0
A24: DOPEX0109 | B24: Metering | D24: 438500 | E24: 459691.5205 | F24: 261191.5205 | G24: 0 | H24: 0 | I24: 0 | J24: 0 | K24: 0 | L24: 0 | M24: 0 | N24: 0 | O24: 0 | Q24: 0 | R24: 0 | S24: 0 | T24: 0 | U24: 0 | V24: 0 | W24: 0 | X24: 0 | Y24: 0 | Z24: 0 | AA24: 0 | AB24: 0
A25: DOPEX0110 | B25: Public Lighting | D25: 0 | E25: 0 | F25: 0 | G25: 0 | H25: 0 | I25: 0 | J25: 0 | K25: 0 | L25: 0 | M25: 0 | N25: 0 | O25: 0 | Q25: 1201759.437 | R25: 1205746.729 | S25: 1350754.417 | T25: 1544464.109 | U25: 1589482.036 | V25: 1749334.184 | W25: 1940314.375 | X25: 2982836.123 | Y25: 3111341.831 | Z25: 2334361.566 | AA25: 2449468.119 | AB25: 2940221.642
A26: DOPEX0111 | B26: Alternative control - other | D26: 0 | E26: 0 | F26: 0 | G26: 0 | H26: 0 | I26: 0 | J26: 0 | K26: 0 | L26: 0 | M26: 0 | N26: 0 | O26: 0 | Q26: 330458.5855 | R26: 305612.1937 | S26: 275719.5736 | T26: 273029.2233 | U26: 286311.0446 | V26: 392513.5635 | W26: 498636.5223 | X26: 501460.3856 | Y26: 473106.1776 | Z26: 212352.1174 | AA26: 0 | AB26: 0
A27: DOPEX0112 | B27: Negotiated services | D27: 0 | E27: 0 | F27: 0 | G27: 0 | H27: 0 | I27: 0 | J27: 0 | K27: 0 | L27: 0 | M27: 0 | N27: 0 | O27: 0 | Q27: 0 | R27: 0 | S27: 0 | T27: 0 | U27: 0 | V27: 0 | W27: 0 | X27: 0 | Y27: 0 | Z27: 0 | AA27: 0 | AB27: 0
A28: DOPEX0113
A29: DOPEX0114 | B29: Activities
A30: DOPEX0115 | B30: Network operating costs (excl GSL payments) | D30: 7433500 | E30: 7146742.454 | F30: 5932735.886 | G30: 5745325.03 | H30: 6151268.251 | I30: 10756493.15 | J30: 13347866.66 | K30: 11847374.33 | L30: 13290290.84 | M30: 14726103.7 | N30: 16617916.69 | O30: 15654765.65 | Q30: 0 | R30: 0 | S30: 0 | T30: 0 | U30: 0 | V30: 0 | W30: 0 | X30: 0 | Y30: 0 | Z30: 0 | AA30: 0 | AB30: 0
A31: DOPEX0116 | B31: Billing & Revenue Collection | D31: 4279000 | E31: 3058071.992 | F31: 1633375.436 | G31: 1211010.343 | H31: 824904.6052 | I31: 775887.7747 | J31: 819876.8869 | K31: 1042554.019 | L31: 762199.6706 | M31: 529277.4726 | N31: 600126.0421 | O31: 741049.7495 | Q31: 0 | R31: 0 | S31: 0 | T31: 0 | U31: 0 | V31: 0 | W31: 0 | X31: 0 | Y31: 0 | Z31: 0 | AA31: 0 | AB31: 0
A32: DOPEX0117 | B32: Advertising, marketing & promotions | D32: 764000 | E32: 634357.0362 | F32: 520714.5015 | G32: 519363.254 | H32: 632774.6768 | I32: 626258.8064 | J32: 644522.3563 | K32: 829067.2796 | L32: 724455.8982 | M32: 703180.5943 | N32: 489551.6092 | O32: 109167.3946 | Q32: 0 | R32: 0 | S32: 0 | T32: 0 | U32: 0 | V32: 0 | W32: 0 | X32: 0 | Y32: 0 | Z32: 0 | AA32: 0 | AB32: 0
A33: DOPEX0118 | B33: Customer Service | D33: 4339000 | E33: 3244886.901 | F33: 2295399.76 | G33: 2474326.059 | H33: 3349613.057 | I33: 3007629.404 | J33: 2701441.83 | K33: 2550737.015 | L33: 1989013.163 | M33: 4084968.627 | N33: 5129931.745 | O33: 4838855.4 | Q33: 0 | R33: 0 | S33: 0 | T33: 0 | U33: 0 | V33: 0 | W33: 0 | X33: 0 | Y33: 0 | Z33: 0 | AA33: 0 | AB33: 0
A34: DOPEX0119 | B34: Regulatory | D34: 2906983 | E34: 2285522.982 | F34: 1405145.517 | G34: 1148215.611 | H34: 1753013.787 | I34: 2485970.364 | J34: 2213226.413 | K34: 2222472.153 | L34: 2772476.529 | M34: 2587370.95 | N34: 2820061.96 | O34: 3491723.935 | Q34: 0 | R34: 0 | S34: 0 | T34: 0 | U34: 0 | V34: 0 | W34: 0 | X34: 0 | Y34: 0 | Z34: 0 | AA34: 0 | AB34: 0
A35: DOPEX0120 | B35: Regulatory Reset | D35: 0 | E35: 0 | F35: 1264736.965 | G35: 3680462.615 | H35: 2575604.743 | I35: 159879.0925 | J35: 0 | K35: 2015363.89 | L35: 3521064.265 | M35: 1505700.375 | N35: 0 | O35: 1646549.085 | Q35: 0 | R35: 0 | S35: 0 | T35: 0 | U35: 0 | V35: 0 | W35: 0 | X35: 0 | Y35: 0 | Z35: 0 | AA35: 0 | AB35: 0
A36: DOPEX0121 | B36: Information technology (IT) | D36: 5166656.654 | E36: 8361033.612 | F36: 9079990.279 | G36: 8372845.032 | H36: 7648389.146 | I36: 7138817.455 | J36: 6081747.27 | K36: 4995479.389 | L36: 4706550.017 | M36: 7176768.356 | N36: 10033091.02 | O36: 7712332.264 | Q36: 856364.016 | R36: 1385826.232 | S36: 1504992.002 | T36: 938873.7385 | U36: 941548.022 | V36: 1375267.578 | W36: 854942.7159 | X36: 476735.7293 | Y36: 391826.9191 | Z36: 301011.3594 | AA36: 402223.8077 | AB36: 436396.202
A37: DOPEX0122 | B37: Licence fees | D37: 338017 | E37: 197960 | F37: 164080.5 | G37: -85749.96 | H37: -48853.145 | I37: 14568.31 | J37: 18740.26 | K37: 28086.54 | L37: 12981.52 | M37: -3954.755 | N37: 0 | O37: 0 | Q37: 0 | R37: 0 | S37: 0 | T37: 0 | U37: 0 | V37: 0 | W37: 0 | X37: 0 | Y37: 0 | Z37: 0 | AA37: 0 | AB37: 0
A38: DOPEX0123 | B38: GSL payments | D38: 226572.255 | E38: 109275.995 | F38: 13368 | G38: 42338.5 | H38: 49500 | I38: 18505 | J38: 37870 | K38: 67452.305 | L38: 86758.22 | M38: 162033.415 | N38: 181857.5 | O38: 151150 | Q38: 0 | R38: 0 | S38: 0 | T38: 0 | U38: 0 | V38: 0 | W38: 0 | X38: 0 | Y38: 0 | Z38: 0 | AA38: 0 | AB38: 0
A39: DOPEX0124 | B39: Non-network alternatives costs | D39: 0 | E39: 0 | F39: 0 | G39: 0 | H39: 0 | I39: 0 | J39: 0 | K39: 0 | L39: 0 | M39: 0 | N39: 0 | O39: 0 | Q39: 0 | R39: 0 | S39: 0 | T39: 0 | U39: 0 | V39: 0 | W39: 0 | X39: 0 | Y39: 0 | Z39: 0 | AA39: 0 | AB39: 0
A40: DOPEX0125 | B40: Debt raising costs | D40: 0 | E40: 0 | F40: 0 | G40: 0 | H40: 0 | I40: 0 | J40: 0 | K40: 0 | L40: 0 | M40: 0 | N40: 0 | O40: 0 | Q40: 0 | R40: 0 | S40: 0 | T40: 0 | U40: 0 | V40: 0 | W40: 0 | X40: 0 | Y40: 0 | Z40: 0 | AA40: 0 | AB40: 0
A41: DOPEX0126 | B41: Other - Standard Control Services (Operating) | D41: 11177771.09 | E41: 11270885.51 | F41: 13782184.84 | G41: 20683026.43 | H41: 23599702.79 | I41: 24807739.01 | J41: 25113421.96 | K41: 20656746.18 | L41: 20628493.89 | M41: 26130811.02 | N41: 28425986.41 | O41: 29239957.14 | Q41: 0 | R41: 0 | S41: 0 | T41: 0 | U41: 0 | V41: 0 | W41: 0 | X41: 0 | Y41: 0 | Z41: 0 | AA41: 0 | AB41: 0
A42: DOPEX0127 | B42: Metering | D42: 4727575.5 | E42: 5893462.759 | F42: 3135700.759 | G42: 0 | H42: 0 | I42: 0 | J42: 0 | K42: 0 | L42: 0 | M42: 0 | N42: 0 | O42: 0 | Q42: 0 | R42: 0 | S42: 0 | T42: 0 | U42: 0 | V42: 0 | W42: 0 | X42: 0 | Y42: 0 | Z42: 5403251.102 | AA42: 11963347.61 | AB42: 12696877.69
A43: DOPEX0128 | B43: Public Lighting | D43: 0 | E43: 0 | F43: 0 | G43: 0 | H43: 0 | I43: 0 | J43: 0 | K43: 0 | L43: 0 | M43: 0 | N43: 0 | O43: 0 | Q43: 526602.8965 | R43: 528245.8545 | S43: 591787.2474 | T43: 676773.7768 | U43: 641531.1859 | V43: 766546.4649 | W43: 928835.1514 | X43: 443948.1159 | Y43: 73398.70862 | Z43: 67823.08756 | AA43: 0 | AB43: 0
A44: DOPEX0129 | B44: Alternative Control - Other | D44: 0 | E44: 0 | F44: 0 | G44: 0 | H44: 0 | I44: 0 | J44: 0 | K44: 0 | L44: 0 | M44: 0 | N44: 0 | O44: 0 | Q44: 2436558.287 | R44: 2235482.95 | S44: 2775323.886 | T44: 3587140.108 | U44: 4054353.939 | V44: 3522854.551 | W44: 3493181.13 | X44: 4997947.941 | Y44: 5326330.816 | Z44: 4366888.144 | AA44: 4942738.982 | AB44: 6017202
A45: DOPEX0130 | B45: Negotiated services | D45: 0 | E45: 0 | F45: 0 | G45: 0 | H45: 0 | I45: 0 | J45: 0 | K45: 0 | L45: 0 | M45: 0 | N45: 0 | O45: 0 | Q45: 0 | R45: 0 | S45: 0 | T45: 0 | U45: 0 | V45: 0 | W45: 0 | X45: 0 | Y45: 0 | Z45: 0 | AA45: 0 | AB45: 0
A46: DOPEX0131
A47: DOPEX0132
A48: DOPEX0133
A49: DOPEX0134
A50: DOPEX0135
A51: DOPEX0136
A52: DOPEX0137
A53: DOPEX0138
A54: DOPEX0139
A55: DOPEX0140
A56: DOPEX0141
A57: DOPEX0142
A58: DOPEX01 | B58: Total opex | D58: =SUM(D16:D57) -> 55836181.91 | E58: 55560869.74 | F58: 51333429.36 | G58: 55843149.61 | H58: 61931322.43 | I58: 68131547.1 | J58: 73131223.11 | K58: 72501799.33 | L58: =SUM(L16:L57) -> 73706365.07 | M58: 78799698.16 | N58: 85091520.44 | O58: 84716687.17 | Q58: =SUM(Q16:Q57) -> 5351743.222 | R58: =SUM(R16:R57) -> 5660913.959 | S58: =SUM(S16:S57) -> 6498577.125 | T58: =SUM(T16:T57) -> 7020280.955 | U58: =SUM(U16:U57) -> 7513226.227 | V58: =SUM(V16:V57) -> 7806516.342 | W58: =SUM(W16:W57) -> 7715909.895 | X58: =SUM(X16:X57) -> 9402928.294 | Y58: =SUM(Y16:Y57) -> 9376004.452 | Z58: 12685687.38 | AA58: 19757778.52 | AB58: 22090697.53
B60: A: HISTORICAL OPEX CATEGORIES AND COST ALLOCATIONS
D61: STANDARD CONTROL SERVICES | Q61: ALTERNATIVE CONTROL SERVICES
D62: EXPENDITURE ($0's) | Q62: EXPENDITURE ($0's)
D63: =dms_y1 -> 2006-07 | E63: =dms_y2 -> 2007-08 | F63: =dms_y3 -> 2008-09 | G63: =dms_y4 -> 2009-10 | H63: =dms_y5 -> 2010-11 | I63: =dms_y6 -> 2011-12 | J63: =dms_y7 -> 2012-13 | K63: =dms_y8 -> 2013-14 | L63: =dms_y9 -> 2014-15 | M63: =dms_y10 -> 2015-16 | N63: =dms_y11 -> 2016-17 | O63: =dms_y12 -> 2017-18 | Q63: =dms_y1 -> 2006-07 | R63: =dms_y2 -> 2007-08 | S63: =dms_y3 -> 2008-09 | T63: =dms_y4 -> 2009-10 | U63: =dms_y5 -> 2010-11 | V63: =dms_y6 -> 2011-12 | W63: =dms_y7 -> 2012-13 | X63: =dms_y8 -> 2013-14 | Y63: =dms_y9 -> 2014-15 | Z63: =dms_y10 -> 2015-16 | AA63: =dms_y11 -> 2016-17 | AB63: =dms_y12 -> 2017-18
A64: DOPEX0101 | B64: Maintenance
A65: DOPEX0102 | B65: Subtransmission | D65: 2877660.25 | E65: 2782274.256 | F65: 2000875.328 | G65: 2656979.882 | H65: 1717749.96 | I65: 0 | J65: 0 | K65: 0 | L65: 0 | M65: 0 | N65: 0 | O65: 0 | Q65: 0 | R65: 0 | S65: 0 | T65: 0 | U65: 0 | V65: 0 | W65: 0 | X65: 0 | Y65: 0 | Z65: 0 | AA65: 0 | AB65: 0
A66: DOPEX0103 | B66: CBD | D66: 0 | E66: 0 | F66: 0 | G66: 0 | H66: 0 | I66: 0 | J66: 0 | K66: 0 | L66: 0 | M66: 0 | N66: 0 | O66: 0 | Q66: 0 | R66: 0 | S66: 0 | T66: 0 | U66: 0 | V66: 0 | W66: 0 | X66: 0 | Y66: 0 | Z66: 0 | AA66: 0 | AB66: 0
A67: DOPEX0104 | B67: Urban | D67: 11659485.5 | E67: 11273007.76 | F67: 8106994.862 | G67: 8126392.117 | H67: 4320891.569 | I67: 0 | J67: 0 | K67: 0 | L67: 0 | M67: 0 | N67: 0 | O67: 0 | Q67: 0 | R67: 0 | S67: 0 | T67: 0 | U67: 0 | V67: 0 | W67: 0 | X67: 0 | Y67: 0 | Z67: 0 | AA67: 0 | AB67: 0
A68: DOPEX0105 | B68: Rural – short | D68: 2001131.553 | E68: 1934799.913 | F68: 1391413.302 | G68: 722809.2487 | H68: 69666.60144 | I68: 0 | J68: 0 | K68: 0 | L68: 0 | M68: 0 | N68: 0 | O68: 0 | Q68: 0 | R68: 0 | S68: 0 | T68: 0 | U68: 0 | V68: 0 | W68: 0 | X68: 0 | Y68: 0 | Z68: 0 | AA68: 0 | AB68: 0
A69: DOPEX0106 | B69: Rural – long | D69: 0 | E69: 0 | F69: 0 | G69: 0 | H69: 0 | I69: 0 | J69: 0 | K69: 0 | L69: 0 | M69: 0 | N69: 0 | O69: 0 | Q69: 0 | R69: 0 | S69: 0 | T69: 0 | U69: 0 | V69: 0 | W69: 0 | X69: 0 | Y69: 0 | Z69: 0 | AA69: 0 | AB69: 0
A70: DOPEX0107 | B70: Non-standard metering | D70: 0 | E70: 0 | F70: 0 | G70: 0 | H70: 0 | I70: 0 | J70: 0 | K70: 0 | L70: 0 | M70: 0 | N70: 0 | O70: 0 | Q70: 0 | R70: 0 | S70: 0 | T70: 0 | U70: 0 | V70: 0 | W70: 0 | X70: 0 | Y70: 0 | Z70: 0 | AA70: 0 | AB70: 0
A71: DOPEX0108 | B71: Standard metering | D71: 610438.74 | E71: 584337.0105 | F71: 261191.5205 | G71: 0 | H71: 0 | I71: 0 | J71: 0 | K71: 0 | L71: 0 | M71: 0 | N71: 0 | O71: 0 | Q71: 0 | R71: 0 | S71: 0 | T71: 0 | U71: 0 | V71: 0 | W71: 0 | X71: 0 | Y71: 0 | Z71: 0 | AA71: 0 | AB71: 0
A72: DOPEX0109 | B72: Public Lighting | D72: 0 | E72: 0 | F72: 0 | G72: 0 | H72: 0 | I72: 0 | J72: 0 | K72: 0 | L72: 0 | M72: 0 | N72: 0 | O72: 0 | Q72: 2103271.684 | R72: 2227328.796 | S72: 1942541.664 | T72: 2153345.388 | U72: 1131541.624 | V72: 0 | W72: 0 | X72: 0 | Y72: 0 | Z72: 0 | AA72: 0 | AB72: 0
A73: DOPEX0110 | B73: SCADA/Network control | D73: 554788.895 | E73: 513831.0822 | F73: 345521.9008 | G73: 177613.5932 | H73: 28222.77452 | I73: 0 | J73: 0 | K73: 0 | L73: 0 | M73: 0 | N73: 0 | O73: 0 | Q73: 0 | R73: 0 | S73: 0 | T73: 0 | U73: 0 | V73: 0 | W73: 0 | X73: 0 | Y73: 0 | Z73: 0 | AA73: 0 | AB73: 0
A74: DOPEX0111 | B74: Other | D74: 166074.95 | E74: 74818.595 | F74: 0 | G74: 0 | H74: 0 | I74: 0 | J74: 0 | K74: 0 | L74: 0 | M74: 0 | N74: 0 | O74: 0 | Q74: 0 | R74: 0 | S74: 0 | T74: 0 | U74: 0 | V74: 0 | W74: 0 | X74: 0 | Y74: 0 | Z74: 0 | AA74: 0 | AB74: 0
A75: DOPEX0112
A76: DOPEX0113 | B76: Activities
A77: DOPEX0114 | B77: Network operating costs | D77: 9391089.728 | E77: 8910624.541 | F77: 5932735.886 | G77: 5580560.132 | H77: 3054066.7 | I77: 0 | J77: 0 | K77: 0 | L77: 0 | M77: 0 | N77: 0 | O77: 0 | Q77: 5302661.364 | R77: 5250638.526 | S77: 4087649.576 | T77: 4258232.382 | U77: 2222335.435 | V77: 0 | W77: 0 | X77: 0 | Y77: 0 | Z77: 0 | AA77: 0 | AB77: 0
A78: DOPEX0115 | B78: Premium Feed In tariff | D78: 0 | E78: 0 | F78: 5848 | G78: 5848 | H78: 0 | I78: 0 | J78: 0 | K78: 0 | L78: 0 | M78: 0 | N78: 0 | O78: 0 | Q78: 0 | R78: 0 | S78: 0 | T78: 0 | U78: 0 | V78: 0 | W78: 0 | X78: 0 | Y78: 0 | Z78: 0 | AA78: 0 | AB78: 0
A79: DOPEX0116 | B79: Electricity purchasing | D79: 0 | E79: 0 | F79: 0 | G79: 0 | H79: 0 | I79: 0 | J79: 0 | K79: 0 | L79: 0 | M79: 0 | N79: 0 | O79: 0 | Q79: 0 | R79: 0 | S79: 0 | T79: 0 | U79: 0 | V79: 0 | W79: 0 | X79: 0 | Y79: 0 | Z79: 0 | AA79: 0 | AB79: 0
A80: DOPEX0117 | B80: Meter data services | D80: 3825557.334 | E80: 6549227.013 | F80: 2723669.679 | G80: 0 | H80: 0 | I80: 0 | J80: 0 | K80: 0 | L80: 0 | M80: 0 | N80: 0 | O80: 0 | Q80: 1829717.432 | R80: 77660.4947 | S80: 32297.17557 | T80: 0 | U80: 0 | V80: 0 | W80: 0 | X80: 0 | Y80: 0 | Z80: 0 | AA80: 0 | AB80: 0
A81: DOPEX0118 | B81: Billing & Revenue Collection | D81: 5371796.776 | E81: 4495268.681 | F81: 1633375.436 | G81: 1184432.049 | H81: 428128.605 | I81: 0 | J81: 0 | K81: 0 | L81: 0 | M81: 0 | N81: 0 | O81: 0 | Q81: 0 | R81: 0 | S81: 0 | T81: 0 | U81: 0 | V81: 0 | W81: 0 | X81: 0 | Y81: 0 | Z81: 0 | AA81: 0 | AB81: 0
A82: DOPEX0119 | B82: Advertising/Marketing | D82: 982991.9312 | E82: 824502.4162 | F82: 520714.5015 | G82: 503347.2083 | H82: 257989.7429 | I82: 0 | J82: 0 | K82: 0 | L82: 0 | M82: 0 | N82: 0 | O82: 0 | Q82: 0 | R82: 0 | S82: 0 | T82: 0 | U82: 0 | V82: 0 | W82: 0 | X82: 0 | Y82: 0 | Z82: 0 | AA82: 0 | AB82: 0
A83: DOPEX0120 | B83: Customer Service | D83: 5592371.305 | E83: 4780395.319 | F83: 2295399.76 | G83: 2392690.642 | H83: 1315177.784 | I83: 0 | J83: 0 | K83: 0 | L83: 0 | M83: 0 | N83: 0 | O83: 0 | Q83: 0 | R83: 0 | S83: 0 | T83: 0 | U83: 0 | V83: 0 | W83: 0 | X83: 0 | Y83: 0 | Z83: 0 | AA83: 0 | AB83: 0
A84: DOPEX0121 | B84: Regulatory | D84: 4258443.106 | E84: 3613741.468 | F84: 2833962.982 | G84: 4583972.472 | H84: 2560492.472 | I84: 0 | J84: 0 | K84: 0 | L84: 0 | M84: 0 | N84: 0 | O84: 0 | Q84: 0 | R84: 0 | S84: 0 | T84: 0 | U84: 0 | V84: 0 | W84: 0 | X84: 0 | Y84: 0 | Z84: 0 | AA84: 0 | AB84: 0
A85: DOPEX0122 | B85: Goodwill Amortisation | D85: 0 | E85: 0 | F85: 0 | G85: 0 | H85: 0 | I85: 0 | J85: 0 | K85: 0 | L85: 0 | M85: 0 | N85: 0 | O85: 0 | Q85: 0 | R85: 0 | S85: 0 | T85: 0 | U85: 0 | V85: 0 | W85: 0 | X85: 0 | Y85: 0 | Z85: 0 | AA85: 0 | AB85: 0
A86: DOPEX0123 | B86: Other | D86: 23832309.92 | E86: 24520507.56 | F86: 23281726.2 | G86: 28351000 | H86: 15311000 | I86: 0 | J86: 0 | K86: 0 | L86: 0 | M86: 0 | N86: 0 | O86: 0 | Q86: 1078971.418 | R86: 806053.9929 | S86: 623256.9645 | T86: 608455.56 | U86: 300469.31 | V86: 0 | W86: 0 | X86: 0 | Y86: 0 | Z86: 0 | AA86: 0 | AB86: 0
A87: DOPEX0124 | B87: Unregulated (included in Table AA of RAS) | D87: 0 | E87: 0 | F87: 0 | G87: 0 | H87: 0 | I87: 0 | J87: 0 | K87: 0 | L87: 0 | M87: 0 | N87: 0 | O87: 0 | Q87: -2376405.45 | R87: -1287599.27 | S87: -187168.255 | T87: -203859.09 | U87: -100840.105 | V87: 0 | W87: 0 | X87: 0 | Y87: 0 | Z87: 0 | AA87: 0 | AB87: 0
A88: DOPEX0125
A89: DOPEX0126
A90: DOPEX0127
A91: DOPEX0128
A92: DOPEX0129
A93: DOPEX0130
A94: DOPEX0131
A95: DOPEX0132
A96: DOPEX0133
A97: DOPEX0134
A98: DOPEX0135
A99: DOPEX0136
A100: DOPEX0137
A101: DOPEX0138
A102: DOPEX0139
A103: DOPEX0140
A104: DOPEX0141
A105: DOPEX0142
A106: DOPEX01 | B106: Total opex | D106: =SUM(D64:D105) -> 71124139.98 | E106: 70857335.61 | F106: 51333429.36 | G106: 54285645.34 | H106: 29063386.21 | I106: 0 | J106: 0 | K106: 0 | L106: =SUM(L64:L105) -> 0 | M106: 0 | N106: 0 | O106: 0 | Q106: =SUM(Q64:Q105) -> 7938216.449 | R106: 7074082.54 | S106: 6498577.125 | T106: 6816174.24 | U106: 3553506.264 | V106: 0 | W106: 0 | X106: 0 | Y106: 0 | Z106: 0 | AA106: 0 | AB106: 0
B108: B: HISTORICAL OPEX CATEGORIES AND COST ALLOCATIONS
D109: STANDARD CONTROL SERVICES | Q109: ALTERNATIVE CONTROL SERVICES
D110: EXPENDITURE ($0's) | Q110: EXPENDITURE ($0's)
D111: =dms_y1 -> 2006-07 | E111: =dms_y2 -> 2007-08 | F111: =dms_y3 -> 2008-09 | G111: =dms_y4 -> 2009-10 | H111: =dms_y5 -> 2010-11 | I111: =dms_y6 -> 2011-12 | J111: =dms_y7 -> 2012-13 | K111: =dms_y8 -> 2013-14 | L111: =dms_y9 -> 2014-15 | M111: =dms_y10 -> 2015-16 | N111: =dms_y11 -> 2016-17 | O111: =dms_y12 -> 2017-18 | Q111: =dms_y1 -> 2006-07 | R111: =dms_y2 -> 2007-08 | S111: =dms_y3 -> 2008-09 | T111: =dms_y4 -> 2009-10 | U111: =dms_y5 -> 2010-11 | V111: =dms_y6 -> 2011-12 | W111: =dms_y7 -> 2012-13 | X111: =dms_y8 -> 2013-14 | Y111: =dms_y9 -> 2014-15 | Z111: =dms_y10 -> 2015-16 | AA111: =dms_y11 -> 2016-17 | AB111: =dms_y12 -> 2017-18
A112: DOPEX0101
A113: DOPEX0102
A114: DOPEX0103
A115: DOPEX0104
A116: DOPEX0105
A117: DOPEX0106
A118: DOPEX0107
A119: DOPEX0108
A120: DOPEX0109
A121: DOPEX0110
A122: DOPEX0111
A123: DOPEX0112
A124: DOPEX0113
A125: DOPEX0114
A126: DOPEX0115
A127: DOPEX0116
A128: DOPEX0117
A129: DOPEX0118
A130: DOPEX0119
A131: DOPEX0120
A132: DOPEX0121
A133: DOPEX0122
A134: DOPEX0123
A135: DOPEX0124
A136: DOPEX0125
A137: DOPEX0126
A138: DOPEX0127
A139: DOPEX0128
A140: DOPEX0129
A141: DOPEX0130
A142: DOPEX0131
A143: DOPEX0132
A144: DOPEX0133
A145: DOPEX0134
A146: DOPEX0135
A147: DOPEX0136
A148: DOPEX0137
A149: DOPEX0138
A150: DOPEX0139
A151: DOPEX0140
A152: DOPEX0141
A153: DOPEX0142
A154: DOPEX01 | B154: Total opex | D154: =SUM(D112:D153) -> 0 | E154: 0 | F154: 0 | G154: 0 | H154: 0 | I154: 0 | J154: 0 | K154: 0 | L154: =SUM(L112:L153) -> 0 | M154: 0 | N154: 0 | O154: 0 | Q154: =SUM(Q112:Q153) -> 0 | R154: 0 | S154: 0 | T154: 0 | U154: 0 | V154: 0 | W154: 0 | X154: 0 | Y154: 0 | Z154: 0 | AA154: 0 | AB154: 0
B158: 3.2.2 - OPEX CONSISTENCY
B159: OPEX CONSISTENCY - CURRENT COST ALLOCATION APPROACH
D160: STANDARD CONTROL SERVICES | Q160: ALTERNATIVE CONTROL SERVICES
D161: EXPENDITURE ($0's) | Q161: EXPENDITURE ($0's)
D162: =dms_y1 -> 2006-07 | E162: =dms_y2 -> 2007-08 | F162: =dms_y3 -> 2008-09 | G162: =dms_y4 -> 2009-10 | H162: =dms_y5 -> 2010-11 | I162: =dms_y6 -> 2011-12 | J162: =dms_y7 -> 2012-13 | K162: =dms_y8 -> 2013-14 | L162: =dms_y9 -> 2014-15 | M162: =dms_y10 -> 2015-16 | N162: =dms_y11 -> 2016-17 | O162: =dms_y12 -> 2017-18 | Q162: =dms_y1 -> 2006-07 | R162: =dms_y2 -> 2007-08 | S162: =dms_y3 -> 2008-09 | T162: =dms_y4 -> 2009-10 | U162: =dms_y5 -> 2010-11 | V162: =dms_y6 -> 2011-12 | W162: =dms_y7 -> 2012-13 | X162: =dms_y8 -> 2013-14 | Y162: =dms_y9 -> 2014-15 | Z162: =dms_y10 -> 2015-16 | AA162: =dms_y11 -> 2016-17 | AB162: =dms_y12 -> 2017-18
A163: DOPEX0201 | B163: Opex for network services | D163: 49004222.25 | E163: 47236355.44 | F163: 45785042.2 | G163: 53477650.43 | H163: 59246236.76 | I163: 64992483.09 | J163: 69624185.85 | K163: 69534430.27 | L163: 71499143.5 | M163: 75881639.71 | N163: 81361285.6 | O163: 81618896.93 | Q163: 0 | R163: 0 | S163: 0 | T163: 0 | U163: 0 | V163: 0 | W163: 0 | X163: 0 | Y163: 0 | Z163: 0 | AA163: 0 | AB163: 0
A164: DOPEX0202 | B164: Opex for metering | D164: 5166075.5 | E164: 6353154.28 | F164: 3396892.28 | G164: 0 | H164: 0 | I164: 0 | J164: 0 | K164: 0 | L164: 0 | M164: 0 | N164: 0 | O164: 0 | Q164: 0 | R164: 0 | S164: 0 | T164: 0 | U164: 0 | V164: 0 | W164: 0 | X164: 0 | Y164: 0 | Z164: 5403251.102 | AA164: 11963347.61 | AB164: 12696877.69
A165: DOPEX0203 | B165: Opex for connection services | D165: 1456602.79 | E165: 1753707.4 | F165: 1925136.151 | G165: 2130086.108 | H165: 2440256.077 | I165: 2884441.233 | J165: 3242229.574 | K165: 2691969.06 | L165: 2028053.655 | M165: 2829094.405 | N165: 3620385.475 | O165: 2989629.245 | Q165: 0 | R165: 0 | S165: 0 | T165: 0 | U165: 451729.5515 | V165: 451729.5515 | W165: 0 | X165: 0 | Y165: 0 | Z165: 0 | AA165: 0 | AB165: 0
A166: DOPEX0204 | B166: Opex for public lighting | D166: 0 | E166: 0 | F166: 0 | G166: 0 | H166: 0 | I166: 0 | J166: 0 | K166: 0 | L166: 0 | M166: 0 | N166: 0 | O166: 0 | Q166: 1728362.334 | R166: 1733992.583 | S166: 1942541.664 | T166: 2221237.885 | U166: 2231013.221 | V166: 2515880.649 | W166: 2869149.527 | X166: 3426784.239 | Y166: 3184740.54 | Z166: 2515965.005 | AA166: 2723725.047 | AB166: 3183549.22
A167: DOPEX0205 | B167: Opex for amounts payable for easement levy or similar direct charges on DNSP | D167: 0 | E167: 0 | F167: 0 | G167: 0 | H167: 0 | I167: 0 | J167: 0 | K167: 0 | L167: 0 | M167: 0 | N167: 0 | O167: 0 | Q167: 0 | R167: 0 | S167: 0 | T167: 0 | U167: 0 | V167: 0 | W167: 0 | X167: 0 | Y167: 0 | Z167: 0 | AA167: 0 | AB167: 0
A168: DOPEX0206 | B168: Opex for transmission connection point planning | D168: 209281.3658 | E168: 217652.6204 | F168: 226358.7252 | G168: 235413.0742 | H168: 244829.5972 | I168: 254622.7811 | J168: 264807.6923 | K168: 275400 | L168: 179167.915 | M168: 88964.045 | N168: 109849.36 | O168: 108160.99 | Q168: 0 | R168: 0 | S168: 0 | T168: 0 | U168: 0 | V168: 0 | W168: 0 | X168: 0 | Y168: 0 | Z168: 0 | AA168: 0 | AB168: 0
B170: OPEX CONSISTENCY - A: HISTORICAL COST ALLOCATION APPROACH
D171: STANDARD CONTROL SERVICES | Q171: ALTERNATIVE CONTROL SERVICES
D172: EXPENDITURE ($0's) | Q172: EXPENDITURE ($0's)
D173: =dms_y1 -> 2006-07 | E173: =dms_y2 -> 2007-08 | F173: =dms_y3 -> 2008-09 | G173: =dms_y4 -> 2009-10 | H173: =dms_y5 -> 2010-11 | I173: =dms_y6 -> 2011-12 | J173: =dms_y7 -> 2012-13 | K173: =dms_y8 -> 2013-14 | L173: =dms_y9 -> 2014-15 | M173: =dms_y10 -> 2015-16 | N173: =dms_y11 -> 2016-17 | O173: =dms_y12 -> 2017-18 | Q173: =dms_y1 -> 2006-07 | R173: =dms_y2 -> 2007-08 | S173: =dms_y3 -> 2008-09 | T173: =dms_y4 -> 2009-10 | U173: =dms_y5 -> 2010-11 | V173: =dms_y6 -> 2011-12 | W173: =dms_y7 -> 2012-13 | X173: =dms_y8 -> 2013-14 | Y173: =dms_y9 -> 2014-15 | Z173: =dms_y10 -> 2015-16 | AA173: =dms_y11 -> 2016-17 | AB173: =dms_y12 -> 2017-18
A174: DOPEX0201 | B174: Opex for network services
A175: DOPEX0202 | B175: Opex for metering
A176: DOPEX0203 | B176: Opex for connection services
A177: DOPEX0204 | B177: Opex for public lighting
A178: DOPEX0205 | B178: Opex for amounts payable for easement levy or similar direct charges on DNSP
A179: DOPEX0206 | B179: Opex for transmission connection point planning
B181: OPEX CONSISTENCY - B: HISTORICAL COST ALLOCATION APPROACH
D182: STANDARD CONTROL SERVICES | Q182: ALTERNATIVE CONTROL SERVICES
D183: EXPENDITURE ($0's) | Q183: EXPENDITURE ($0's)
D184: =dms_y1 -> 2006-07 | E184: =dms_y2 -> 2007-08 | F184: =dms_y3 -> 2008-09 | G184: =dms_y4 -> 2009-10 | H184: =dms_y5 -> 2010-11 | I184: =dms_y6 -> 2011-12 | J184: =dms_y7 -> 2012-13 | K184: =dms_y8 -> 2013-14 | L184: =dms_y9 -> 2014-15 | M184: =dms_y10 -> 2015-16 | N184: =dms_y11 -> 2016-17 | O184: =dms_y12 -> 2017-18 | Q184: =dms_y1 -> 2006-07 | R184: =dms_y2 -> 2007-08 | S184: =dms_y3 -> 2008-09 | T184: =dms_y4 -> 2009-10 | U184: =dms_y5 -> 2010-11 | V184: =dms_y6 -> 2011-12 | W184: =dms_y7 -> 2012-13 | X184: =dms_y8 -> 2013-14 | Y184: =dms_y9 -> 2014-15 | Z184: =dms_y10 -> 2015-16 | AA184: =dms_y11 -> 2016-17 | AB184: =dms_y12 -> 2017-18
A185: DOPEX0201 | B185: Opex for network services
A186: DOPEX0202 | B186: Opex for metering
A187: DOPEX0203 | B187: Opex for connection services
A188: DOPEX0204 | B188: Opex for public lighting
A189: DOPEX0205 | B189: Opex for amounts payable for easement levy or similar direct charges on DNSP
A190: DOPEX0206 | B190: Opex for transmission connection point planning
B194: 3.2.4 - OPEX FOR HIGH VOLTAGE CUSTOMERS
D195: End user costs (not standard control services)
A196: DOPEX0401 | B196: Opex for high voltage customers | D196: 78129.92227 | E196: 80380.47322 | F196: 83142.51303 | G196: 85699.95729 | H196: 87439.01939 | I196: 90201.0592 | J196: 92680.5501 | K196: 94224 | L196: 99989.76 | M196: 109375.36 | N196: 117607.48 | O196: 87258.44

Sheet 3.2.3 Provisions
B1: =INDEX(dms_Worksheet_List,MATCH(dms_Model,dms_Model_List)) -> HISTORICAL ECONOMIC BENCHMARKING - FINANCIAL YEARS
B2: =INDEX(dms_TradingNameFull_List,MATCH(dms_TradingName,dms_TradingName_List)) -> Jemena Electricity
B3: =dms_Header_Span -> 2006-07 to 2018-19
B4: 3.2 OPERATING EXPENDITURE
B6: There is ONE table on this worksheet. Each Provision has been grouped for ease of navigation. see the Instructions sheet on how to group or ungroup tables.
B8: 3.2.3 - PROVISIONS
B9: For each provision report:
C10: $0's
C11: =dms_y1 -> 2006-07 | D11: =dms_y2 -> 2007-08 | E11: =dms_y3 -> 2008-09 | F11: =dms_y4 -> 2009-10 | G11: =dms_y5 -> 2010-11 | H11: =dms_y6 -> 2011-12 | I11: =dms_y7 -> 2012-13 | J11: =dms_y8 -> 2013-14 | K11: =dms_y9 -> 2014-15 | L11: =dms_y10 -> 2015-16 | M11: =dms_y11 -> 2016-17 | N11: =dms_y12 -> 2017-18
A12: DOPEX03A | B12: Provision for Doubtful Debts - Opex
B13: <Brief description of provision>
A14: DOPEX0301A | B14: Opening balance (the carrying amount at the beginning of the period) | C14: -3809504.19 | D14: -323984.535 | E14: -265326.635 | F14: -114847.435 | G14: -91124.075 | H14: -47921.645 | I14: -36887.715 | J14: -33365.77 | K14: -38120.69 | L14: -196317.375 | M14: -390484.76 | N14: -399774.895
B15: Additional provisions made in the period, including increases to existing provisions
A16: DOPEX0302A | B16: Opex component | C16: -3287153.775 | D16: -2957950.175 | E16: -1644908.795 | F16: -1315667.675 | G16: -807567.605 | H16: -346510.73 | I16: -623639.625 | J16: -788877.755 | K16: -494205.355 | L16: -393950.335 | M16: -381049.46 | N16: -401597.065
A17: DOPEX0303A | B17: Capex component | C17: 0 | D17: 0 | E17: 0 | F17: 0 | G17: 0 | H17: 0 | I17: 0 | J17: 0 | K17: 0 | L17: 0 | M17: 0 | N17: 0
A18: DOPEX0304A | B18: Other component | C18: 0 | D18: 0 | E18: 0 | F18: 0 | G18: 0 | H18: 0 | I18: 0 | J18: 0 | K18: 0 | L18: 0 | M18: 0 | N18: 0
B19: Amounts used (that is, incurred and charged against the provision) during the period
A20: DOPEX0305A | B20: Opex component | C20: 41257.28 | D20: 41257.28 | E20: 0 | F20: 0 | G20: 0 | H20: 0 | I20: 0 | J20: 0 | K20: 0 | L20: 45249.26 | M20: 187294.105 | N20: 146772.09
A21: DOPEX0306A | B21: Capex component | C21: 0 | D21: 0 | E21: 0 | F21: 0 | G21: 0 | H21: 0 | I21: 0 | J21: 0 | K21: 0 | L21: 0 | M21: 0 | N21: 0
A22: DOPEX0307A | B22: Other component | C22: 0 | D22: 0 | E22: 0 | F22: 0 | G22: 0 | H22: 0 | I22: 0 | J22: 0 | K22: 0 | L22: 0 | M22: 0 | N22: 0
B23: Unused amounts reversed during the period
A24: DOPEX0308A | B24: Opex component | C24: 6731416.15 | D24: 2975350.795 | E24: 1795387.995 | F24: 1339391.035 | G24: 850770.035 | H24: 357544.66 | I24: 627161.57 | J24: 784122.835 | K24: 336008.67 | L24: 154533.69 | M24: 184465.105 | N24: 63049.5
A25: DOPEX0309A | B25: Capex component | C25: 0 | D25: 0 | E25: 0 | F25: 0 | G25: 0 | H25: 0 | I25: 0 | J25: 0 | K25: 0 | L25: 0 | M25: 0 | N25: 0
A26: DOPEX0310A | B26: Other component | C26: 0 | D26: 0 | E26: 0 | F26: 0 | G26: 0 | H26: 0 | I26: 0 | J26: 0 | K26: 0 | L26: 0 | M26: 0 | N26: 0
B27: The increase during the period in the discounted amount arising from the passage of time and the effect of any change in the discount rate
A28: DOPEX0311A | B28: Opex component | C28: 0 | D28: 0 | E28: 0 | F28: 0 | G28: 0 | H28: 0 | I28: 0 | J28: 0 | K28: 0 | L28: 0 | M28: 0 | N28: 0
A29: DOPEX0312A | B29: Capex component | C29: 0 | D29: 0 | E29: 0 | F29: 0 | G29: 0 | H29: 0 | I29: 0 | J29: 0 | K29: 0 | L29: 0 | M29: 0 | N29: 0
A30: DOPEX0313A | B30: Other component | C30: 0 | D30: 0 | E30: 0 | F30: 0 | G30: 0 | H30: 0 | I30: 0 | J30: 0 | K30: 0 | L30: 0 | M30: 0 | N30: 0
A31: DOPEX0314A | B31: Closing balance (carrying amount at the end of the period) | C31: -323984.535 | D31: -265326.635 | E31: -114847.435 | F31: -91124.075 | G31: -47921.645 | H31: -36887.715 | I31: -33365.77 | J31: -38120.69 | K31: -196317.375 | L31: -390484.76 | M31: -399775.01 | N31: -591550.37
A32: DOPEX03B | B32: Provision for Claims/Compensation
B33: <Brief description of provision>
A34: DOPEX0301B | B34: Opening balance (the carrying amount at the beginning of the period) | C34: -358867 | D34: -304664.5 | E34: -199002.87 | F34: -247537.305 | G34: -204181.34 | H34: -88489.105 | I34: -220713.495 | J34: -259922.81 | K34: -173464.015 | L34: -258490.92 | M34: -397413.67 | N34: -360547.475
B35: Additional provisions made in the period, including increases to existing provisions
A36: DOPEX0302B | B36: Opex component | C36: -802433.5 | D36: -718056.74 | E36: -595593.77 | F36: -469505.885 | G36: -358800.155 | H36: -1507422.335 | I36: -1561066.255 | J36: -1595569.79 | K36: -2538170.24 | L36: -1788282.34 | M36: -757375.185 | N36: -704101.075
A37: DOPEX0303B | B37: Capex component | C37: 0 | D37: 0 | E37: 0 | F37: 0 | G37: 0 | H37: 0 | I37: 0 | J37: 0 | K37: 0 | L37: 0 | M37: 0 | N37: 0
A38: DOPEX0304B | B38: Other component | C38: 0 | D38: 0 | E38: 0 | F38: 0 | G38: 0 | H38: 0 | I38: 0 | J38: 0 | K38: 0 | L38: 0 | M38: 0 | N38: 0
B39: Amounts used (that is, incurred and charged against the provision) during the period
A40: DOPEX0305B | B40: Opex component | C40: 856636 | D40: 823718.37 | E40: 547059.335 | F40: 512861.85 | G40: 474492.39 | H40: 1375197.945 | I40: 1094856.94 | J40: 1255028.335 | K40: 1374636.61 | L40: 327265.54 | M40: 382783.14 | N40: 542178.185
A41: DOPEX0306B | B41: Capex component | C41: 0 | D41: 0 | E41: 0 | F41: 0 | G41: 0 | H41: 0 | I41: 0 | J41: 0 | K41: 0 | L41: 0 | M41: 0 | N41: 0
A42: DOPEX0307B | B42: Other component | C42: 0 | D42: 0 | E42: 0 | F42: 0 | G42: 0 | H42: 0 | I42: 0 | J42: 0 | K42: 0 | L42: 0 | M42: 0 | N42: 0
B43: Unused amounts reversed during the period
A44: DOPEX0308B | B44: Opex component | C44: 0 | D44: 0 | E44: 0 | F44: 0 | G44: 0 | H44: 0 | I44: 427000 | J44: 427000 | K44: 1078506.475 | L44: 1322094.05 | M44: 411458.24 | N44: 237111.73
A45: DOPEX0309B | B45: Capex component | C45: 0 | D45: 0 | E45: 0 | F45: 0 | G45: 0 | H45: 0 | I45: 0 | J45: 0 | K45: 0 | L45: 0 | M45: 0 | N45: 0
A46: DOPEX0310B | B46: Other component | C46: 0 | D46: 0 | E46: 0 | F46: 0 | G46: 0 | H46: 0 | I46: 0 | J46: 0 | K46: 0 | L46: 0 | M46: 0 | N46: 0
B47: The increase during the period in the discounted amount arising from the passage of time and the effect of any change in the discount rate
A48: DOPEX0311B | B48: Opex component | C48: 0 | D48: 0 | E48: 0 | F48: 0 | G48: 0 | H48: 0 | I48: 0 | J48: 0 | K48: 0 | L48: 0 | M48: 0 | N48: 0
A49: DOPEX0312B | B49: Capex component | C49: 0 | D49: 0 | E49: 0 | F49: 0 | G49: 0 | H49: 0 | I49: 0 | J49: 0 | K49: 0 | L49: 0 | M49: 0 | N49: 0
A50: DOPEX0313B | B50: Other component | C50: 0 | D50: 0 | E50: 0 | F50: 0 | G50: 0 | H50: 0 | I50: 0 | J50: 0 | K50: 0 | L50: 0 | M50: 0 | N50: 0
A51: DOPEX0314B | B51: Closing balance (carrying amount at the end of the period) | C51: -304664.5 | D51: -199002.87 | E51: -247537.305 | F51: -204181.34 | G51: -88489.105 | H51: -220713.495 | I51: -259922.81 | J51: -173464.265 | K51: -258491.17 | L51: -397413.67 | M51: -360547.475 | N51: -285358.635
A52: DOPEX03C
A54: DOPEX0301C | B54: Opening balance (the carrying amount at the beginning of the period)
B55: Additional provisions made in the period, including increases to existing provisions
A56: DOPEX0302C | B56: Opex component
A57: DOPEX0303C | B57: Capex component
A58: DOPEX0304C | B58: Other component
B59: Amounts used (that is, incurred and charged against the provision) during the period
A60: DOPEX0305C | B60: Opex component
A61: DOPEX0306C | B61: Capex component
A62: DOPEX0307C | B62: Other component
B63: Unused amounts reversed during the period
A64: DOPEX0308C | B64: Opex component
A65: DOPEX0309C | B65: Capex component
A66: DOPEX0310C | B66: Other component
B67: The increase during the period in the discounted amount arising from the passage of time and the effect of any change in the discount rate
A68: DOPEX0311C | B68: Opex component
A69: DOPEX0312C | B69: Capex component
A70: DOPEX0313C | B70: Other component
A71: DOPEX0314C | B71: Closing balance (carrying amount at the end of the period)
A72: DOPEX03D
A74: DOPEX0301D | B74: Opening balance (the carrying amount at the beginning of the period)
B75: Additional provisions made in the period, including increases to existing provisions
A76: DOPEX0302D | B76: Opex component
A77: DOPEX0303D | B77: Capex component
A78: DOPEX0304D | B78: Other component
B79: Amounts used (that is, incurred and charged against the provision) during the period
A80: DOPEX0305D | B80: Opex component
A81: DOPEX0306D | B81: Capex component
A82: DOPEX0307D | B82: Other component
B83: Unused amounts reversed during the period
A84: DOPEX0308D | B84: Opex component
A85: DOPEX0309D | B85: Capex component
A86: DOPEX0310D | B86: Other component
B87: The increase during the period in the discounted amount arising from the passage of time and the effect of any change in the discount rate
A88: DOPEX0311D | B88: Opex component
A89: DOPEX0312D | B89: Capex component
A90: DOPEX0313D | B90: Other component
A91: DOPEX0314D | B91: Closing balance (carrying amount at the end of the period)
A92: DOPEX03E
A94: DOPEX0301E | B94: Opening balance (the carrying amount at the beginning of the period)
B95: Additional provisions made in the period, including increases to existing provisions
A96: DOPEX0302E | B96: Opex component
A97: DOPEX0303E | B97: Capex component
A98: DOPEX0304E | B98: Other component
B99: Amounts used (that is, incurred and charged against the provision) during the period
A100: DOPEX0305E | B100: Opex component
A101: DOPEX0306E | B101: Capex component
A102: DOPEX0307E | B102: Other component
B103: Unused amounts reversed during the period
A104: DOPEX0308E | B104: Opex component
A105: DOPEX0309E | B105: Capex component
A106: DOPEX0310E | B106: Other component
B107: The increase during the period in the discounted amount arising from the passage of time and the effect of any change in the discount rate
A108: DOPEX0311E | B108: Opex component
A109: DOPEX0312E | B109: Capex component
A110: DOPEX0313E | B110: Other component
A111: DOPEX0314E | B111: Closing balance (carrying amount at the end of the period)
A112: DOPEX03F
A114: DOPEX0301F | B114: Opening balance (the carrying amount at the beginning of the period)
B115: Additional provisions made in the period, including increases to existing provisions
A116: DOPEX0302F | B116: Opex component
A117: DOPEX0303F | B117: Capex component
A118: DOPEX0304F | B118: Other component
B119: Amounts used (that is, incurred and charged against the provision) during the period
A120: DOPEX0305F | B120: Opex component
A121: DOPEX0306F | B121: Capex component
A122: DOPEX0307F | B122: Other component
B123: Unused amounts reversed during the period
A124: DOPEX0308F | B124: Opex component
A125: DOPEX0309F | B125: Capex component
A126: DOPEX0310F | B126: Other component
B127: The increase during the period in the discounted amount arising from the passage of time and the effect of any change in the discount rate
A128: DOPEX0311F | B128: Opex component
A129: DOPEX0312F | B129: Capex component
A130: DOPEX0313F | B130: Other component
A131: DOPEX0314F | B131: Closing balance (carrying amount at the end of the period)
A132: DOPEX03G
A134: DOPEX0301G | B134: Opening balance (the carrying amount at the beginning of the period)
B135: Additional provisions made in the period, including increases to existing provisions
A136: DOPEX0302G | B136: Opex component
A137: DOPEX0303G | B137: Capex component
A138: DOPEX0304G | B138: Other component
B139: Amounts used (that is, incurred and charged against the provision) during the period
A140: DOPEX0305G | B140: Opex component
A141: DOPEX0306G | B141: Capex component
A142: DOPEX0307G | B142: Other component
B143: Unused amounts reversed during the period
A144: DOPEX0308G | B144: Opex component
A145: DOPEX0309G | B145: Capex component
A146: DOPEX0310G | B146: Other component
B147: The increase during the period in the discounted amount arising from the passage of time and the effect of any change in the discount rate
A148: DOPEX0311G | B148: Opex component
A149: DOPEX0312G | B149: Capex component
A150: DOPEX0313G | B150: Other component
A151: DOPEX0314G | B151: Closing balance (carrying amount at the end of the period)
A152: DOPEX03H
A154: DOPEX0301H | B154: Opening balance (the carrying amount at the beginning of the period)
B155: Additional provisions made in the period, including increases to existing provisions
A156: DOPEX0302H | B156: Opex component
A157: DOPEX0303H | B157: Capex component
A158: DOPEX0304H | B158: Other component
B159: Amounts used (that is, incurred and charged against the provision) during the period
A160: DOPEX0305H | B160: Opex component
A161: DOPEX0306H | B161: Capex component
A162: DOPEX0307H | B162: Other component
B163: Unused amounts reversed during the period
A164: DOPEX0308H | B164: Opex component
A165: DOPEX0309H | B165: Capex component
A166: DOPEX0310H | B166: Other component
B167: The increase during the period in the discounted amount arising from the passage of time and the effect of any change in the discount rate
A168: DOPEX0311H | B168: Opex component
A169: DOPEX0312H | B169: Capex component
A170: DOPEX0313H | B170: Other component
A171: DOPEX0314H | B171: Closing balance (carrying amount at the end of the period)
A172: DOPEX03I
A174: DOPEX0301I | B174: Opening balance (the carrying amount at the beginning of the period)
B175: Additional provisions made in the period, including increases to existing provisions
A176: DOPEX0302I | B176: Opex component
A177: DOPEX0303I | B177: Capex component
A178: DOPEX0304I | B178: Other component
B179: Amounts used (that is, incurred and charged against the provision) during the period
A180: DOPEX0305I | B180: Opex component
A181: DOPEX0306I | B181: Capex component
A182: DOPEX0307I | B182: Other component
B183: Unused amounts reversed during the period
A184: DOPEX0308I | B184: Opex component
A185: DOPEX0309I | B185: Capex component
A186: DOPEX0310I | B186: Other component
B187: The increase during the period in the discounted amount arising from the passage of time and the effect of any change in the discount rate
A188: DOPEX0311I | B188: Opex component
A189: DOPEX0312I | B189: Capex component
A190: DOPEX0313I | B190: Other component
A191: DOPEX0314I | B191: Closing balance (carrying amount at the end of the period)
A192: DOPEX03J
A194: DOPEX0301J | B194: Opening balance (the carrying amount at the beginning of the period)
B195: Additional provisions made in the period, including increases to existing provisions
A196: DOPEX0302J | B196: Opex component
A197: DOPEX0303J | B197: Capex component
A198: DOPEX0304J | B198: Other component
B199: Amounts used (that is, incurred and charged against the provision) during the period
A200: DOPEX0305J | B200: Opex component
A201: DOPEX0306J | B201: Capex component
A202: DOPEX0307J | B202: Other component
B203: Unused amounts reversed during the period
A204: DOPEX0308J | B204: Opex component
A205: DOPEX0309J | B205: Capex component
A206: DOPEX0310J | B206: Other component
B207: The increase during the period in the discounted amount arising from the passage of time and the effect of any change in the discount rate
A208: DOPEX0311J | B208: Opex component
A209: DOPEX0312J | B209: Capex component
A210: DOPEX0313J | B210: Other component
... 153 more rows

Sheet 3.3 Assets (RAB)
B1: =INDEX(dms_Worksheet_List,MATCH(dms_Model,dms_Model_List)) -> HISTORICAL ECONOMIC BENCHMARKING - FINANCIAL YEARS
B2: =INDEX(dms_TradingNameFull_List,MATCH(dms_TradingName,dms_TradingName_List)) -> Jemena Electricity
B3: =dms_Header_Span -> 2006-07 to 2018-19
B4: 3.3 ASSETS
B6: There are FOUR tables on this worksheet. Both ROWS and COLUMNS in each have been grouped (and sub-grouped) for ease of navigation. see the Instructions sheet on how to group or ungroup tables.
B8: 3.3.1 - REGULATORY ASSET BASE VALUES
C9: Network services | P9: Standard control services | AC9: Alternative control services
C10: $0's, Nominal | P10: $0's, Nominal | AC10: $0's, Nominal
C11: =dms_y1 -> 2006-07 | D11: =dms_y2 -> 2007-08 | E11: =dms_y3 -> 2008-09 | F11: =dms_y4 -> 2009-10 | G11: =dms_y5 -> 2010-11 | H11: =dms_y6 -> 2011-12 | I11: =dms_y7 -> 2012-13 | J11: =dms_y8 -> 2013-14 | K11: =dms_y9 -> 2014-15 | L11: =dms_y10 -> 2015-16 | M11: =dms_y11 -> 2016-17 | N11: =dms_y12 -> 2017-18 | P11: =dms_y1 -> 2006-07 | Q11: =dms_y2 -> 2007-08 | R11: =dms_y3 -> 2008-09 | S11: =dms_y4 -> 2009-10 | T11: =dms_y5 -> 2010-11 | U11: =dms_y6 -> 2011-12 | V11: =dms_y7 -> 2012-13 | W11: =dms_y8 -> 2013-14 | X11: =dms_y9 -> 2014-15 | Y11: =dms_y10 -> 2015-16 | Z11: =dms_y11 -> 2016-17 | AA11: =dms_y12 -> 2017-18 | AC11: =dms_y1 -> 2006-07 | AD11: =dms_y2 -> 2007-08 | AE11: =dms_y3 -> 2008-09 | AF11: =dms_y4 -> 2009-10 | AG11: =dms_y5 -> 2010-11 | AH11: =dms_y6 -> 2011-12 | AI11: =dms_y7 -> 2012-13 | AJ11: =dms_y8 -> 2013-14 | AK11: =dms_y9 -> 2014-15 | AL11: =dms_y10 -> 2015-16 | AM11: =dms_y11 -> 2016-17 | AN11: =dms_y12 -> 2017-18
B12: For total asset base:
A13: DRAB0101 | B13: Opening value | C13: 477880284.3 | D13: 516813993.2 | E13: 543733825.4 | F13: 578814870.4 | G13: 617489223.3 | H13: 674496861.5 | I13: 765574881.6 | J13: 845586472.7 | K13: 922917553.1 | L13: 997412992.8 | M13: 1052544759 | N13: 1108402604 | P13: 617439219.4 | Q13: 658794991.6 | R13: 686396269.9 | S13: 721891884.2 | T13: 758319204.1 | U13: 813350846.5 | V13: 908546065 | W13: 990900548.4 | X13: 1071391484 | Y13: 1151183091 | Z13: 1212831718 | AA13: 1275717247 | AC13: 781668.7064 | AD13: 1176293.201 | AE13: 1750915.345 | AF13: 2452050.055 | AG13: 4445552.684 | AH13: 6323970.166 | AI13: 6531796.032 | AJ13: 6841748.595 | AK13: 7450186.96 | AL13: 67250200.83 | AM13: 119318153.3 | AN13: 104207358.4
A14: DRAB0102 | B14: Inflation addition | C14: 16722645.85 | D14: 14771017.01 | E14: 18695565.87 | F14: 17520655.21 | G14: 13089026.52 | H14: 22618428.24 | I14: 21843222.58 | J14: 18011020.1 | K14: 20651505.77 | L14: 18908930.64 | M14: 13284199.67 | N14: 16544404.1 | P14: 21586769.03 | Q14: 18873642.63 | R14: 23564360.21 | S14: 21963288.08 | T14: 15992072.23 | U14: 27178347.44 | V14: 25924378.3 | W14: 21092538.08 | X14: 23971511.3 | Y14: 21837366.57 | Z14: 15303804.04 | AA14: 19028963.79 | AC14: 0 | AD14: 0 | AE14: 0 | AF14: 0 | AG14: 0 | AH14: 0 | AI14: 0 | AJ14: 0 | AK14: 0 | AL14: 905519.6614 | AM14: 1438116.23 | AN14: 1379844.177
A15: DRAB0103 | B15: Straight line depreciation | C15: -30467254.49 | D15: -32333460.11 | E15: -33553263.56 | F15: -34789797.77 | G15: -36222482.57 | H15: -40747069.75 | I15: -48520356.82 | J15: -55467681.11 | K15: -59911672.37 | L15: -67958402.6 | M15: -69598970.26 | N15: -68096737.83 | P15: -39444638.95 | Q15: -41697868.63 | R15: -44110717.74 | S15: -46294278.46 | T15: -47893298.52 | U15: -52962516.01 | V15: -61278084.97 | W15: -68687758.04 | X15: -71786400.76 | Y15: -77107167.23 | Z15: -77719431.35 | AA15: -76610485.03 | AC15: -47113.00549 | AD15: -73231.51051 | AE15: -108788.4451 | AF15: -141560.8332 | AG15: -270818.3637 | AH15: -402206.3656 | AI15: -434558.8019 | AJ15: -466586.5986 | AK15: -483920.7781 | AL15: -9925172.027 | AM15: -19074170.66 | AN15: -16038143.19
A16: DRAB0105 | B16: Actual additions (recognised in RAB) | C16: 52773848.99 | D16: 44658798.77 | E16: 50070607.15 | F16: 74478862.16 | G16: 98895917.91 | H16: 109467599.3 | I16: 108451042.5 | J16: 113372039.4 | K16: 112837876 | L16: 106478546.7 | M16: 113129457.1 | N16: 121228682.6 | P16: 59309173.5 | Q16: 50602027.78 | R16: 56173836.36 | S16: 82169892.98 | T16: 108563908.4 | U16: 121240324.7 | V16: 119707427.3 | W16: 125902389.4 | X16: 125885992.5 | Y16: 119417945.9 | Z16: 126259685.1 | AA16: 132310246.3 | AC16: 441737.5 | AD16: 647853.655 | AE16: 809923.155 | AF16: 542412.02 | AG16: 556584.403 | AH16: 610032.2316 | AI16: 684065.2196 | AJ16: 1016919.593 | AK16: 352192.8321 | AL16: 1168514.968 | AM16: 2402402.733 | AN16: 3395868.736
A17: DRAB0106 | B17: Disposals | C17: -95531.375 | D17: -176523.47 | E17: -131864.51 | F17: -55630.1211 | G17: -275087.1217 | H17: -260937.6576 | I17: -175850.4444 | J17: -623875.1787 | K17: -601399.9391 | L17: -190394.5537 | M17: -183969.8396 | N17: -292536.7083 | P17: -95531.375 | Q17: -176523.47 | R17: -131864.51 | S17: -55630.1211 | T17: -275087.1217 | U17: -260937.6576 | V17: -175850.4444 | W17: -623875.1787 | X17: -601399.9391 | Y17: -190394.5537 | Z17: -183969.8396 | AA17: -292536.7083 | AC17: 0 | AD17: 0 | AE17: 0 | AF17: 0 | AG17: 0 | AH17: 0 | AI17: 0 | AJ17: 0 | AK17: 0 | AL17: -14992.67963 | AM17: -14992.67963 | AN17: 0
A18: DRAB0107 | B18: Closing value | C18: =SUM(C13:C17) -> 516813993.2 | D18: 543733825.4 | E18: 578814870.4 | F18: 635968959.9 | G18: 692976598 | H18: 765574881.6 | I18: 847172939.5 | J18: =SUM(J13:J17) -> 920877975.9 | K18: 995893862.5 | L18: 1054651673 | M18: 1109175476 | N18: =SUM(N13:N17) -> 1177786416 | P18: =SUM(P13:P17) -> 658794991.6 | Q18: 686396269.9 | R18: 721891884.2 | S18: 779675156.7 | T18: 834706799.1 | U18: 908546065 | V18: 992723935.1 | W18: 1068583843 | X18: 1148861187 | AC18: =SUM(AC13:AC17) -> 1176293.201 | AD18: 1750915.345 | AE18: 2452050.055 | AF18: 2852901.242 | AG18: 4731318.723 | AH18: 6531796.032 | AI18: 6781302.449 | AJ18: 7392081.588 | AK18: 7318459.014 | AL18: 59384070.75 | AM18: 104069509 | AN18: 92944928.16
B21: 3.3.2 - ASSET VALUE ROLL FORWARD
C22: Network services | P22: Standard control services | AC22: Alternative control services
C23: $0's, Nominal | P23: $0's, Nominal | AC23: $0's, Nominal
C24: =dms_y1 -> 2006-07 | D24: =dms_y2 -> 2007-08 | E24: =dms_y3 -> 2008-09 | F24: =dms_y4 -> 2009-10 | G24: =dms_y5 -> 2010-11 | H24: =dms_y6 -> 2011-12 | I24: =dms_y7 -> 2012-13 | J24: =dms_y8 -> 2013-14 | K24: =dms_y9 -> 2014-15 | L24: =dms_y10 -> 2015-16 | M24: =dms_y11 -> 2016-17 | N24: =dms_y12 -> 2017-18 | P24: =dms_y1 -> 2006-07 | Q24: =dms_y2 -> 2007-08 | R24: =dms_y3 -> 2008-09 | S24: =dms_y4 -> 2009-10 | T24: =dms_y5 -> 2010-11 | U24: =dms_y6 -> 2011-12 | V24: =dms_y7 -> 2012-13 | W24: =dms_y8 -> 2013-14 | X24: =dms_y9 -> 2014-15 | Y24: =dms_y10 -> 2015-16 | Z24: =dms_y11 -> 2016-17 | AA24: =dms_y12 -> 2017-18 | AC24: =dms_y1 -> 2006-07 | AD24: =dms_y2 -> 2007-08 | AE24: =dms_y3 -> 2008-09 | AF24: =dms_y4 -> 2009-10 | AG24: =dms_y5 -> 2010-11 | AH24: =dms_y6 -> 2011-12 | AI24: =dms_y7 -> 2012-13 | AJ24: =dms_y8 -> 2013-14 | AK24: =dms_y9 -> 2014-15 | AL24: =dms_y10 -> 2015-16 | AM24: =dms_y11 -> 2016-17 | AN24: =dms_y12 -> 2017-18
B25: For overhead network assets less than 33kV
A26: DRAB0201 | B26: Opening value | C26: 316800658.6 | D26: 330880986.1 | E26: 340480459.9 | F26: 353783666.6 | G26: 370594496.7 | H26: 401820285.2 | I26: 445884608.2 | J26: 486034004.2 | K26: 530918347 | L26: 568164600.9 | M26: 602061983.3 | N26: 633812869.1 | P26: 390946315.3 | Q26: 409840222.7 | R26: 423161102.9 | S26: 440636316.1 | T26: 460578829.3 | U26: 495820236.1 | V26: 548860160.1 | W26: 596861041.4 | X26: 650272568.2 | Y26: 696593588.6 | Z26: 738608737.2 | AA26: 777832540.2 | AC26: 0 | AD26: 0 | AE26: 0 | AF26: 0 | AG26: 0 | AH26: 0 | AI26: 0 | AJ26: 0 | AK26: 0 | AL26: 0 | AM26: 0 | AN26: 0
A27: DRAB0202 | B27: Inflation addition | C27: 11063748.61 | D27: 9523199.948 | E27: 11688795.97 | F27: 10840297.27 | G27: 7780354.662 | H27: 13293146.98 | I27: 12636364.72 | J27: 10306644.22 | K27: 11880065.34 | L27: 10793176.73 | M27: 7579272.797 | N27: 9423462.057 | P27: 13655746 | Q27: 11786206.75 | R27: 14535054.42 | S27: 13493890.73 | T27: 9658031.975 | U27: 16395594.1 | V27: 15549356.1 | W27: 12655936.41 | X27: 14551082.46 | Y27: 13231756.64 | Z27: 9297858.529 | AA27: 11565232.95 | AC27: 0 | AD27: 0 | AE27: 0 | AF27: 0 | AG27: 0 | AH27: 0 | AI27: 0 | AJ27: 0 | AK27: 0 | AL27: 0 | AM27: 0 | AN27: 0
A28: DRAB0203 | B28: Straight line depreciation | C28: -15305323.66 | D28: -16007065.88 | E28: -16858059.81 | F28: -17553467.22 | G28: -18143005.84 | H28: -19580982.1 | I28: -21180965.15 | J28: -22660595.8 | K28: -23912068.71 | L28: -24856710.88 | M28: -26035814.21 | N28: -27500551.57 | P28: -18887610.84 | Q28: -19826709.85 | R28: -20952447.65 | S28: -21862302.39 | T28: -22547681.63 | U28: -24162911.97 | V28: -26072231.17 | W28: -27828326.03 | X28: -29287169.71 | Y28: -30475342.44 | Z28: -31940634.74 | AA28: -33749489.08 | AC28: 0 | AD28: 0 | AE28: 0 | AF28: 0 | AG28: 0 | AH28: 0 | AI28: 0 | AJ28: 0 | AK28: 0 | AL28: 0 | AM28: 0 | AN28: 0
A29: DRAB0205 | B29: Actual additions (recognised in RAB) | C29: 18321902.53 | D29: 16141064.73 | E29: 18530195.52 | F29: 31809011.74 | G29: 49873451.35 | H29: 50352158.16 | I29: 49409061.64 | J29: 57051786.16 | K29: 49543577.94 | L29: 49127810.64 | M29: 50213880.92 | N29: 42379181.67 | P29: 24125772.27 | Q29: 21419108.23 | R29: 23950331.47 | S29: 38639237.39 | T29: 58459368.96 | U29: 60807241.81 | V29: 59405595.23 | W29: 68179698.64 | X29: 61117016.59 | Y29: 60604699.95 | Z29: 61874531.13 | AA29: 52220460.7 | AC29: 0 | AD29: 0 | AE29: 0 | AF29: 0 | AG29: 0 | AH29: 0 | AI29: 0 | AJ29: 0 | AK29: 0 | AL29: 0 | AM29: 0 | AN29: 0
A30: DRAB0206 | B30: Disposals | C30: 0 | D30: -57724.98868 | E30: -57724.98868 | F30: 0 | G30: 0 | H30: 0 | I30: 0 | J30: 0 | K30: 0 | L30: 0 | M30: 0 | N30: 0 | P30: 0 | Q30: -57724.98868 | R30: -57724.98868 | S30: 0 | T30: 0 | U30: 0 | V30: 0 | W30: 0 | X30: 0 | Y30: 0 | Z30: 0 | AA30: 0 | AC30: 0 | AD30: 0 | AE30: 0 | AF30: 0 | AG30: 0 | AH30: 0 | AI30: 0 | AJ30: 0 | AK30: 0 | AL30: 0 | AM30: 0 | AN30: 0
A31: DRAB0207 | B31: Closing value | C31: =SUM(C26:C30) -> 330880986.1 | D31: 340480459.9 | E31: 353783666.6 | F31: 378879508.4 | G31: 410105296.8 | H31: 445884608.2 | I31: 486749069.4 | J31: =SUM(J26:J30) -> 530731838.8 | K31: 568429921.5 | L31: 603228877.3 | M31: 633819322.8 | N31: =SUM(N26:N30) -> 658114961.2 | P31: =SUM(P26:P30) -> 409840222.7 | Q31: 423161102.9 | R31: 440636316.1 | S31: 470907141.8 | T31: 506148548.6 | U31: 548860160.1 | V31: 597742880.2 | W31: 649868350.4 | X31: 696653497.5 | Y31: 739954702.7 | Z31: 777840492.1 | AA31: 807868744.8 | AC31: =SUM(AC26:AC30) -> 0 | AD31: 0 | AE31: 0 | AF31: 0 | AG31: 0 | AH31: 0 | AI31: 0 | AJ31: 0 | AK31: 0 | AL31: 0 | AM31: 0 | AN31: 0
B32: For underground network assets less than 33kV
A33: DRAB0301 | B33: Opening value | C33: 22797265.76 | D33: 23810499.03 | E33: 24501285.97 | F33: 25458596.91 | G33: 26668319.65 | H33: 28915356.01 | I33: 32086265.09 | J33: 34975452.42 | K33: 38205370.87 | L33: 40885645.44 | M33: 43324932.15 | N33: 45609754.99 | P33: 28132855.18 | Q33: 29492478.07 | R33: 30451060.82 | S33: 31708593.18 | T33: 33143674.71 | U33: 35679678.64 | V33: 39496480.18 | W33: 42950667.6 | X33: 46794210.02 | Y33: 50127513.11 | Z33: 53150961.71 | AA33: 55973542.53 | AC33: 0 | AD33: 0 | AE33: 0 | AF33: 0 | AG33: 0 | AH33: 0 | AI33: 0 | AJ33: 0 | AK33: 0 | AL33: 0 | AM33: 0 | AN33: 0
A34: DRAB0302 | B34: Inflation addition | C34: 796157.4905 | D34: 685298.1969 | E34: 841136.4716 | F34: 780077.7275 | G34: 559881.4527 | H34: 956587.0408 | I34: 909324.3872 | J34: 741675.5645 | K34: 854900.3909 | L34: 776686.89 | M34: 545411.4174 | N34: 678120.9669 | P34: 982679.9983 | Q34: 848146.2405 | R34: 1045955.838 | S34: 971032.7447 | T34: 695000.8332 | U34: 1179841.979 | V34: 1118945.917 | W34: 910732.784 | X34: 1047109.231 | Y34: 952169.3358 | Z34: 669082.4218 | AA34: 832244.7636 | AC34: 0 | AD34: 0 | AE34: 0 | AF34: 0 | AG34: 0 | AH34: 0 | AI34: 0 | AJ34: 0 | AK34: 0 | AL34: 0 | AM34: 0 | AN34: 0
A35: DRAB0303 | B35: Straight line depreciation | C35: -1101385.119 | D35: -1151883.132 | E35: -1213121.436 | F35: -1263163.59 | G35: -1305587.329 | H35: -1409065.419 | I35: -1524201.666 | J35: -1630677.244 | K35: -1720734.382 | L35: -1788711.698 | M35: -1873561.054 | N35: -1978964.897 | P35: -1359169.788 | Q35: -1426748.213 | R35: -1507757.337 | S35: -1573231.318 | T35: -1622551.837 | U35: -1738785.292 | V35: -1876181.652 | W35: -2002551.847 | X35: -2107531.576 | Y35: -2193033.574 | Z35: -2298477.351 | AA35: -2428644.168 | AC35: 0 | AD35: 0 | AE35: 0 | AF35: 0 | AG35: 0 | AH35: 0 | AI35: 0 | AJ35: 0 | AK35: 0 | AL35: 0 | AM35: 0 | AN35: 0
A36: DRAB0305 | B36: Actual additions (recognised in RAB) | C36: 1318460.899 | D36: 1161525.812 | E36: 1333449.854 | F36: 2289005.64 | G36: 3588939.272 | H36: 3623387.452 | I36: 3555521.362 | J36: 4105498.823 | K36: 3565201.278 | L36: 3535282.282 | M36: 3613436.895 | N36: 3049644.756 | P36: 1736112.685 | Q36: 1541338.66 | R36: 1723487.805 | S36: 2780514.938 | T36: 4206789.772 | U36: 4375744.854 | V36: 4274881.082 | W36: 4906273.605 | X36: 4398036.531 | Y36: 4361169.756 | Z36: 4452547.972 | AA36: 3757832.216 | AC36: 0 | AD36: 0 | AE36: 0 | AF36: 0 | AG36: 0 | AH36: 0 | AI36: 0 | AJ36: 0 | AK36: 0 | AL36: 0 | AM36: 0 | AN36: 0
A37: DRAB0306 | B37: Disposals | C37: 0 | D37: -4153.943094 | E37: -4153.943094 | F37: 0 | G37: 0 | H37: 0 | I37: 0 | J37: 0 | K37: 0 | L37: 0 | M37: 0 | N37: 0 | P37: 0 | Q37: -4153.943094 | R37: -4153.943094 | S37: 0 | T37: 0 | U37: 0 | V37: 0 | W37: 0 | X37: 0 | Y37: 0 | Z37: 0 | AA37: 0 | AC37: 0 | AD37: 0 | AE37: 0 | AF37: 0 | AG37: 0 | AH37: 0 | AI37: 0 | AJ37: 0 | AK37: 0 | AL37: 0 | AM37: 0 | AN37: 0
A38: DRAB0307 | B38: Closing value | C38: =SUM(C33:C37) -> 23810499.03 | D38: 24501285.97 | E38: 25458596.91 | F38: 27264516.69 | G38: 29511553.05 | H38: 32086265.09 | I38: 35026909.17 | J38: =SUM(J33:J37) -> 38191949.57 | K38: 40904738.16 | L38: 43408902.91 | M38: 45610219.41 | N38: =SUM(N33:N37) -> 47358555.81 | P38: =SUM(P33:P37) -> 29492478.07 | Q38: 30451060.82 | R38: 31708593.18 | S38: 33886909.54 | T38: 36422913.48 | U38: 39496480.18 | V38: 43014125.53 | W38: 46765122.14 | X38: 50131824.21 | Y38: 53247818.63 | Z38: 55974114.76 | AA38: 58134975.34 | AC38: =SUM(AC33:AC37) -> 0 | AD38: 0 | AE38: 0 | AF38: 0 | AG38: 0 | AH38: 0 | AI38: 0 | AJ38: 0 | AK38: 0 | AL38: 0 | AM38: 0 | AN38: 0
B39: For distribution substations and transformers
A40: DRAB0401 | B40: Opening value | C40: 17128742.55 | D40: 17890036.12 | E40: 18409059.39 | F40: 19128335.68 | G40: 20037261.76 | H40: 21725574.2 | I40: 24108039.08 | J40: 26278832.13 | K40: 28705633.75 | L40: 30719460.04 | M40: 32552219.92 | N40: 34268923.25 | P40: 21137641.61 | Q40: 22159195.28 | R40: 22879427.14 | S40: 23824275.01 | T40: 24902524.59 | U40: 26807953.02 | V40: 29675709.69 | W40: 32271015.97 | X40: 35158864.42 | Y40: 37663344.17 | Z40: 39935014.52 | AA40: 42055762.71 | AC40: 0 | AD40: 0 | AE40: 0 | AF40: 0 | AG40: 0 | AH40: 0 | AI40: 0 | AJ40: 0 | AK40: 0 | AL40: 0 | AM40: 0 | AN40: 0
A41: DRAB0402 | B41: Inflation addition | C41: 598193.5212 | D41: 514899.3087 | E41: 631988.5121 | F41: 586111.9794 | G41: 420667.3449 | H41: 718732.3829 | I41: 683221.5531 | J41: 557258.4857 | K41: 642330.043 | L41: 583564.2712 | M41: 409795.2732 | N41: 509506.6916 | P41: 738337.3459 | Q41: 637255.3072 | R41: 785879.695 | S41: 729586.1732 | T41: 522189.3917 | U41: 886475.1464 | V41: 840720.8452 | W41: 684279.7531 | X41: 786746.2978 | Y41: 715413.137 | Z41: 502715.5741 | AA41: 625307.7207 | AC41: 0 | AD41: 0 | AE41: 0 | AF41: 0 | AG41: 0 | AH41: 0 | AI41: 0 | AJ41: 0 | AK41: 0 | AL41: 0 | AM41: 0 | AN41: 0
A42: DRAB0403 | B42: Straight line depreciation | C42: -827526.5265 | D42: -865468.2463 | E42: -911479.6907 | F42: -949078.9006 | G42: -980954.0085 | H42: -1058702.348 | I42: -1145210.053 | J42: -1225210.557 | K42: -1292875.054 | L42: -1343949.861 | M42: -1407701.488 | N42: -1486896.744 | P42: -1021213.228 | Q42: -1071988.329 | R42: -1132854.594 | S42: -1182048.518 | T42: -1219105.526 | U42: -1306437.619 | V42: -1409670.476 | W42: -1504618.816 | X42: -1583495.413 | Y42: -1647737.403 | Z42: -1726962.664 | AA42: -1824763.597 | AC42: 0 | AD42: 0 | AE42: 0 | AF42: 0 | AG42: 0 | AH42: 0 | AI42: 0 | AJ42: 0 | AK42: 0 | AL42: 0 | AM42: 0 | AN42: 0
A43: DRAB0405 | B43: Actual additions (recognised in RAB) | C43: 990626.5748 | D43: 872713.2809 | E43: 1001888.537 | F43: 1719846.086 | G43: 2696552.185 | H43: 2722434.851 | I43: 2671443.614 | J43: 3084669.587 | K43: 2678716.626 | L43: 2656236.966 | M43: 2714958.493 | N43: 2291352.85 | P43: 1304429.554 | Q43: 1158085.946 | R43: 1294943.841 | S43: 2089141.962 | T43: 3160774.617 | U43: 3287719.143 | V43: 3211935.073 | W43: 3686332.314 | X43: 3304468.011 | Y43: 3276768.133 | Z43: 3345425.223 | AA43: 2823450.024 | AC43: 0 | AD43: 0 | AE43: 0 | AF43: 0 | AG43: 0 | AH43: 0 | AI43: 0 | AJ43: 0 | AK43: 0 | AL43: 0 | AM43: 0 | AN43: 0
A44: DRAB0406 | B44: Disposals | C44: 0 | D44: -3121.068226 | E44: -3121.068226 | F44: 0 | G44: 0 | H44: 0 | I44: 0 | J44: 0 | K44: 0 | L44: 0 | M44: 0 | N44: 0 | P44: 0 | Q44: -3121.068226 | R44: -3121.068226 | S44: 0 | T44: 0 | U44: 0 | V44: 0 | W44: 0 | X44: 0 | Y44: 0 | Z44: 0 | AA44: 0 | AC44: 0 | AD44: 0 | AE44: 0 | AF44: 0 | AG44: 0 | AH44: 0 | AI44: 0 | AJ44: 0 | AK44: 0 | AL44: 0 | AM44: 0 | AN44: 0
A45: DRAB0407 | B45: Closing value | C45: =SUM(C40:C44) -> 17890036.12 | D45: 18409059.39 | E45: 19128335.68 | F45: 20485214.85 | G45: 22173527.28 | H45: 24108039.08 | I45: 26317494.2 | J45: =SUM(J40:J44) -> 28695549.65 | K45: 30733805.37 | L45: 32615311.41 | M45: 34269272.19 | N45: =SUM(N40:N44) -> 35582886.05 | P45: =SUM(P40:P44) -> 22159195.28 | Q45: 22879427.14 | R45: 23824275.01 | S45: 25460954.63 | T45: 27366383.07 | U45: 29675709.69 | V45: 32318695.14 | W45: 35137009.22 | X45: 37666583.32 | Y45: 40007788.04 | Z45: 42056192.66 | AA45: 43679756.86 | AC45: =SUM(AC40:AC44) -> 0 | AD45: 0 | AE45: 0 | AF45: 0 | AG45: 0 | AH45: 0 | AI45: 0 | AJ45: 0 | AK45: 0 | AL45: 0 | AM45: 0 | AN45: 0
B46: For overhead network assets 33kV and above
A47: DRAB0501 | B47: Opening value | C47: 42110717.03 | D47: 49159959.22 | E47: 55507087.73 | F47: 63077572.48 | G47: 67511733.83 | H47: 72166271.8 | I47: 82132906.13 | J47: 91970703.61 | K47: 104134145.7 | L47: 116929552.8 | M47: 125024988 | N47: 131444134.6 | P47: 42110717.03 | Q47: 49159959.22 | R47: 55507087.73 | S47: 63077572.48 | T47: 67511733.83 | U47: 72166271.8 | V47: 82132906.13 | W47: 91970703.61 | X47: 104134145.7 | Y47: 116929552.8 | Z47: 125024988 | AA47: 131444134.6 | AC47: 0 | AD47: 0 | AE47: 0 | AF47: 0 | AG47: 0 | AH47: 0 | AI47: 0 | AJ47: 0 | AK47: 0 | AL47: 0 | AM47: 0 | AN47: 0
A48: DRAB0502 | B48: Inflation addition | C48: 1480070.985 | D48: 1383745.488 | E48: 1934969.527 | F48: 1870439.853 | G48: 1445645.6 | H48: 2489361.606 | I48: 2403895.928 | J48: 1980956.115 | K48: 2331743.039 | L48: 2208563.666 | M48: 1579053.72 | N48: 1963100.669 | P48: 1480070.985 | Q48: 1383745.488 | R48: 1934969.527 | S48: 1870439.853 | T48: 1445645.6 | U48: 2489361.606 | V48: 2403895.928 | W48: 1980956.115 | X48: 2331743.039 | Y48: 2208563.666 | Z48: 1579053.72 | AA48: 1963100.669 | AC48: 0 | AD48: 0 | AE48: 0 | AF48: 0 | AG48: 0 | AH48: 0 | AI48: 0 | AJ48: 0 | AK48: 0 | AL48: 0 | AM48: 0 | AN48: 0
A49: DRAB0503 | B49: Straight line depreciation | C49: -1853095.511 | D49: -1993134.372 | E49: -2139770.863 | F49: -2267652.008 | G49: -2450614.21 | H49: -2771608.471 | I49: -3082524.405 | J49: -3392877.558 | K49: -3653790.379 | L49: -3916932.075 | M49: -4187027.091 | N49: -4542348.172 | P49: -1853095.511 | Q49: -1993134.372 | R49: -2139770.863 | S49: -2267652.008 | T49: -2450614.21 | U49: -2771608.471 | V49: -3082524.405 | W49: -3392877.558 | X49: -3653790.379 | Y49: -3916932.075 | Z49: -4187027.091 | AA49: -4542348.172 | AC49: 0 | AD49: 0 | AE49: 0 | AF49: 0 | AG49: 0 | AH49: 0 | AI49: 0 | AJ49: 0 | AK49: 0 | AL49: 0 | AM49: 0 | AN49: 0
A50: DRAB0505 | B50: Actual additions (recognised in RAB) | C50: 7422266.72 | D50: 6956517.39 | E50: 7775286.091 | F50: 7894853.251 | G50: 8722986.325 | H50: 10248881.19 | I50: 10777988.08 | J50: 13483702.24 | K50: 13729353.13 | L50: 9768925.801 | M50: 9401329.063 | N50: 17747966.32 | P50: 7422266.72 | Q50: 6956517.39 | R50: 7775286.091 | S50: 7894853.251 | T50: 8722986.325 | U50: 10248881.19 | V50: 10777988.08 | W50: 13483702.24 | X50: 13729353.13 | Y50: 9768925.801 | Z50: 9401329.063 | AA50: 17747966.32 | AC50: 0 | AD50: 0 | AE50: 0 | AF50: 0 | AG50: 0 | AH50: 0 | AI50: 0 | AJ50: 0 | AK50: 0 | AL50: 0 | AM50: 0 | AN50: 0
A51: DRAB0506 | B51: Disposals | C51: 0 | D51: 0 | E51: 0 | F51: 0 | G51: 0 | H51: 0 | I51: 0 | J51: 0 | K51: 0 | L51: 0 | M51: 0 | N51: 0 | P51: 0 | Q51: 0 | R51: 0 | S51: 0 | T51: 0 | U51: 0 | V51: 0 | W51: 0 | X51: 0 | Y51: 0 | Z51: 0 | AA51: 0 | AC51: 0 | AD51: 0 | AE51: 0 | AF51: 0 | AG51: 0 | AH51: 0 | AI51: 0 | AJ51: 0 | AK51: 0 | AL51: 0 | AM51: 0 | AN51: 0
A52: DRAB0507 | B52: Closing value | C52: =SUM(C47:C51) -> 49159959.22 | D52: 55507087.73 | E52: 63077572.48 | F52: 70575213.58 | G52: 75229751.55 | H52: 82132906.13 | I52: 92232265.74 | J52: =SUM(J47:J51) -> 104042484.4 | K52: 116541451.5 | L52: 124990110.2 | M52: 131818343.7 | N52: =SUM(N47:N51) -> 146612853.4 | P52: =SUM(P47:P51) -> 49159959.22 | Q52: 55507087.73 | R52: 63077572.48 | S52: 70575213.58 | T52: 75229751.55 | U52: 82132906.13 | V52: 92232265.74 | W52: 104042484.4 | X52: 116541451.5 | Y52: 124990110.2 | Z52: 131818343.7 | AA52: 146612853.4 | AC52: =SUM(AC47:AC51) -> 0 | AD52: 0 | AE52: 0 | AF52: 0 | AG52: 0 | AH52: 0 | AI52: 0 | AJ52: 0 | AK52: 0 | AL52: 0 | AM52: 0 | AN52: 0
B53: For underground network assets 33kV and above
A54: DRAB0601 | B54: Opening value | C54: 1615286.555 | D54: 1885682.002 | E54: 2129145.711 | F54: 2419535.025 | G54: 2589620.973 | H54: 2768160.146 | I54: 3150461.175 | J54: 3527820.268 | K54: 3994386.642 | L54: 4485193.983 | M54: 4795719.393 | N54: 5041945.575 | P54: 1615286.555 | Q54: 1885682.002 | R54: 2129145.711 | S54: 2419535.025 | T54: 2589620.973 | U54: 2768160.146 | V54: 3150461.175 | W54: 3527820.268 | X54: 3994386.642 | Y54: 4485193.983 | Z54: 4795719.393 | AA54: 5041945.575 | AC54: 0 | AD54: 0 | AE54: 0 | AF54: 0 | AG54: 0 | AH54: 0 | AI54: 0 | AJ54: 0 | AK54: 0 | AL54: 0 | AM54: 0 | AN54: 0
A55: DRAB0602 | B55: Inflation addition | C55: 56772.6919 | D55: 53077.83008 | E55: 74221.72984 | F55: 71746.49498 | G55: 55452.19999 | H55: 95487.14955 | I55: 92208.8496 | J55: 75985.6874 | K55: 89441.20282 | L55: 84716.27767 | M55: 60569.48027 | N55: 75300.78664 | P55: 56772.6919 | Q55: 53077.83008 | R55: 74221.72984 | S55: 71746.49498 | T55: 55452.19999 | U55: 95487.14955 | V55: 92208.8496 | W55: 75985.6874 | X55: 89441.20282 | Y55: 84716.27767 | Z55: 60569.48027 | AA55: 75300.78664 | AC55: 0 | AD55: 0 | AE55: 0 | AF55: 0 | AG55: 0 | AH55: 0 | AI55: 0 | AJ55: 0 | AK55: 0 | AL55: 0 | AM55: 0 | AN55: 0
A56: DRAB0603 | B56: Straight line depreciation | C56: -71081.19919 | D56: -76452.82202 | E56: -82077.51733 | F56: -86982.79346 | G56: -94000.87353 | H56: -106313.5994 | I56: -118239.7399 | J56: -130144.2932 | K56: -140152.4099 | L56: -150246.0221 | M56: -160606.3502 | N56: -174235.7873 | P56: -71081.19919 | Q56: -76452.82202 | R56: -82077.51733 | S56: -86982.79346 | T56: -94000.87353 | U56: -106313.5994 | V56: -118239.7399 | W56: -130144.2932 | X56: -140152.4099 | Y56: -150246.0221 | Z56: -160606.3502 | AA56: -174235.7873 | AC56: 0 | AD56: 0 | AE56: 0 | AF56: 0 | AG56: 0 | AH56: 0 | AI56: 0 | AJ56: 0 | AK56: 0 | AL56: 0 | AM56: 0 | AN56: 0
A57: DRAB0605 | B57: Actual additions (recognised in RAB) | C57: 284703.954 | D57: 266838.7006 | E57: 298245.1018 | F57: 302831.4694 | G57: 334597.07 | H57: 393127.4785 | I57: 413423.0065 | J57: 517209.0262 | K57: 526631.7243 | L57: 374717.3077 | M57: 360616.9999 | N57: 680778.0397 | P57: 284703.954 | Q57: 266838.7006 | R57: 298245.1018 | S57: 302831.4694 | T57: 334597.07 | U57: 393127.4785 | V57: 413423.0065 | W57: 517209.0262 | X57: 526631.7243 | Y57: 374717.3077 | Z57: 360616.9999 | AA57: 680778.0397 | AC57: 0 | AD57: 0 | AE57: 0 | AF57: 0 | AG57: 0 | AH57: 0 | AI57: 0 | AJ57: 0 | AK57: 0 | AL57: 0 | AM57: 0 | AN57: 0
A58: DRAB0606 | B58: Disposals | C58: 0 | D58: 0 | E58: 0 | F58: 0 | G58: 0 | H58: 0 | I58: 0 | J58: 0 | K58: 0 | L58: 0 | M58: 0 | N58: 0 | P58: 0 | Q58: 0 | R58: 0 | S58: 0 | T58: 0 | U58: 0 | V58: 0 | W58: 0 | X58: 0 | Y58: 0 | Z58: 0 | AA58: 0 | AC58: 0 | AD58: 0 | AE58: 0 | AF58: 0 | AG58: 0 | AH58: 0 | AI58: 0 | AJ58: 0 | AK58: 0 | AL58: 0 | AM58: 0 | AN58: 0
A59: DRAB0607 | B59: Closing value | C59: =SUM(C54:C58) -> 1885682.002 | D59: 2129145.711 | E59: 2419535.025 | F59: 2707130.196 | G59: 2885669.369 | H59: 3150461.175 | I59: 3537853.291 | J59: =SUM(J54:J58) -> 3990870.689 | K59: 4470307.159 | L59: 4794381.546 | M59: 5056299.523 | N59: =SUM(N54:N58) -> 5623788.614 | P59: =SUM(P54:P58) -> 1885682.002 | Q59: 2129145.711 | R59: 2419535.025 | S59: 2707130.196 | T59: 2885669.369 | U59: 3150461.175 | V59: 3537853.291 | W59: 3990870.689 | X59: 4470307.159 | Y59: 4794381.546 | Z59: 5056299.523 | AA59: 5623788.614 | AC59: =SUM(AC54:AC58) -> 0 | AD59: 0 | AE59: 0 | AF59: 0 | AG59: 0 | AH59: 0 | AI59: 0 | AJ59: 0 | AK59: 0 | AL59: 0 | AM59: 0 | AN59: 0
B60: Zone substations and transformers
A61: DRAB0701 | B61: Opening value | C61: 39558884.51 | D61: 46180955.51 | E61: 52143459.62 | F61: 59255186.83 | G61: 63420646.1 | H61: 67793127.58 | I61: 77155802.08 | J61: 86397447 | K61: 97823806.76 | L61: 109843835.5 | M61: 117448702.2 | N61: 123478860.2 | P61: 39558884.51 | Q61: 46180955.51 | R61: 52143459.62 | S61: 59255186.83 | T61: 63420646.1 | U61: 67793127.58 | V61: 77155802.08 | W61: 86397447 | X61: 97823806.76 | Y61: 109843835.5 | Z61: 117448702.2 | AA61: 123478860.2 | AC61: 0 | AD61: 0 | AE61: 0 | AF61: 0 | AG61: 0 | AH61: 0 | AI61: 0 | AJ61: 0 | AK61: 0 | AL61: 0 | AM61: 0 | AN61: 0
A62: DRAB0702 | B62: Inflation addition | C62: 1390381.387 | D62: 1299893.039 | E62: 1817713.909 | F62: 1757094.615 | G62: 1358042.118 | H62: 2338510.841 | I62: 2258224.226 | J62: 1860913.794 | K62: 2190443.671 | L62: 2074728.743 | M62: 1483365.949 | N62: 1844140.355 | P62: 1390381.387 | Q62: 1299893.039 | R62: 1817713.909 | S62: 1757094.615 | T62: 1358042.118 | U62: 2338510.841 | V62: 2258224.226 | W62: 1860913.794 | X62: 2190443.671 | Y62: 2074728.743 | Z62: 1483365.949 | AA62: 1844140.355 | AC62: 0 | AD62: 0 | AE62: 0 | AF62: 0 | AG62: 0 | AH62: 0 | AI62: 0 | AJ62: 0 | AK62: 0 | AL62: 0 | AM62: 0 | AN62: 0
A63: DRAB0703 | B63: Straight line depreciation | C63: -1740801.309 | D63: -1872354.07 | E63: -2010104.658 | F63: -2130236.439 | G63: -2302111.466 | H63: -2603654.061 | I63: -2895729.058 | J63: -3187275.377 | K63: -3432377.357 | L63: -3679573.148 | M63: -3933300.899 | N63: -4267090.172 | P63: -1740801.309 | Q63: -1872354.07 | R63: -2010104.658 | S63: -2130236.439 | T63: -2302111.466 | U63: -2603654.061 | V63: -2895729.058 | W63: -3187275.377 | X63: -3432377.357 | Y63: -3679573.148 | Z63: -3933300.899 | AA63: -4267090.172 | AC63: 0 | AD63: 0 | AE63: 0 | AF63: 0 | AG63: 0 | AH63: 0 | AI63: 0 | AJ63: 0 | AK63: 0 | AL63: 0 | AM63: 0 | AN63: 0
A64: DRAB0705 | B64: Actual additions (recognised in RAB) | C64: 6972490.917 | D64: 6534965.145 | E64: 7304117.959 | F64: 7416439.568 | G64: 8194389.29 | H64: 9627817.719 | I64: 10124861.69 | J64: 12666614.52 | K64: 12897379.41 | L64: 9176946.745 | M64: 8831625.698 | N64: 16672471.99 | P64: 6972490.917 | Q64: 6534965.145 | R64: 7304117.959 | S64: 7416439.568 | T64: 8194389.29 | U64: 9627817.719 | V64: 10124861.69 | W64: 12666614.52 | X64: 12897379.41 | Y64: 9176946.745 | Z64: 8831625.698 | AA64: 16672471.99 | AC64: 0 | AD64: 0 | AE64: 0 | AF64: 0 | AG64: 0 | AH64: 0 | AI64: 0 | AJ64: 0 | AK64: 0 | AL64: 0 | AM64: 0 | AN64: 0
A65: DRAB0706 | B65: Disposals | C65: 0 | D65: 0 | E65: 0 | F65: 0 | G65: 0 | H65: 0 | I65: 0 | J65: 0 | K65: 0 | L65: 0 | M65: 0 | N65: 0 | P65: 0 | Q65: 0 | R65: 0 | S65: 0 | T65: 0 | U65: 0 | V65: 0 | W65: 0 | X65: 0 | Y65: 0 | Z65: 0 | AA65: 0 | AC65: 0 | AD65: 0 | AE65: 0 | AF65: 0 | AG65: 0 | AH65: 0 | AI65: 0 | AJ65: 0 | AK65: 0 | AL65: 0 | AM65: 0 | AN65: 0
A66: DRAB0707 | B66: Closing value | C66: =SUM(C61:C65) -> 46180955.51 | D66: 52143459.62 | E66: 59255186.83 | F66: 66298484.57 | G66: 70670966.05 | H66: 77155802.08 | I66: 86643158.94 | J66: =SUM(J61:J65) -> 97737699.94 | K66: 109479252.5 | L66: 117415937.9 | M66: 123830392.9 | N66: =SUM(N61:N65) -> 137728382.3 | P66: =SUM(P61:P65) -> 46180955.51 | Q66: 52143459.62 | R66: 59255186.83 | S66: 66298484.57 | T66: 70670966.05 | U66: 77155802.08 | V66: 86643158.94 | W66: 97737699.94 | X66: 109479252.5 | AC66: =SUM(AC61:AC65) -> 0 | AD66: 0 | AE66: 0 | AF66: 0 | AG66: 0 | AH66: 0 | AI66: 0 | AJ66: 0 | AK66: 0 | AL66: 0 | AM66: 0 | AN66: 0
B67: For easements
A68: DRAB0801 | B68: Opening value
A69: DRAB0802 | B69: Inflation addition
A70: DRAB0805 | B70: Actual additions (recognised in RAB)
A71: DRAB0806 | B71: Disposals
A72: DRAB0807 | B72: Closing value | C72: =SUM(C68:C71) -> 0 | D72: 0 | E72: 0 | F72: 0 | G72: 0 | H72: 0 | I72: 0 | J72: =SUM(J68:J71) -> 0 | K72: 0 | L72: 0 | M72: 0 | N72: =SUM(N68:N71) -> 0 | P72: =SUM(P68:P71) -> 0 | Q72: 0 | R72: 0 | S72: 0 | T72: 0 | U72: 0 | V72: 0 | W72: 0 | X72: 0 | Y72: 0 | Z72: 0 | AA72: 0 | AC72: =SUM(AC68:AC71) -> 0 | AD72: 0 | AE72: 0 | AF72: 0 | AG72: 0 | AH72: 0 | AI72: 0 | AJ72: 0 | AK72: 0 | AL72: 0 | AM72: 0 | AN72: 0
B73: For meters
A74: DRAB0901 | B74: Opening value | C74: 0 | D74: 0 | E74: 0 | F74: 0 | G74: 0 | H74: 0 | I74: 0 | J74: 0 | K74: 0 | L74: 0 | M74: 0 | N74: 0 | P74: 39051849.7 | Q74: 37022043.36 | R74: 34596055.21 | S74: 31248851.13 | T74: 26340004.18 | U74: 20855132.73 | V74: 15799503 | W74: 10339690.15 | X74: 5065947.83 | Y74: 1353395.538 | Z74: 15521.07692 | AA74: 3.1455765e-09 | AC74: 0 | AD74: 0 | AE74: 0 | AF74: 0 | AG74: 0 | AH74: 0 | AI74: 0 | AJ74: 0 | AK74: 0 | AL74: 42186649.43 | AM74: 82030529.76 | AN74: 76645127.77
A75: DRAB0902 | B75: Inflation addition | C75: 0 | D75: 0 | E75: 0 | F75: 0 | G75: 0 | H75: 0 | I75: 0 | J75: 0 | K75: 0 | L75: 0 | M75: 0 | N75: 0 | P75: 1355146.104 | Q75: 1084045.009 | R75: 1161301.135 | S75: 1010731.029 | T75: 526345.5624 | U75: 684942.4322 | V75: 487687.0806 | W75: 224595.8033 | X75: 111441.4269 | Y75: 31108.52766 | Z75: 234.5016343 | AA75: 3.080384784e-11 | AC75: 0 | AD75: 0 | AE75: 0 | AF75: 0 | AG75: 0 | AH75: 0 | AI75: 0 | AJ75: 0 | AK75: 0 | AL75: 637380.9168 | AM75: 1045085.739 | AN75: 1119331.154
A76: DRAB0903 | B76: Straight line depreciation | C76: 0 | D76: 0 | E76: 0 | F76: 0 | G76: 0 | H76: 0 | I76: 0 | J76: 0 | K76: 0 | L76: 0 | M76: 0 | N76: 0 | P76: -3384952.444 | Q76: -3510033.159 | R76: -4508505.214 | S76: -5344177.483 | T76: -5435816.525 | U76: -5740572.158 | V76: -5898371.817 | W76: -6021254.563 | X76: -4411559.345 | Y76: -1384504.066 | Z76: -15755.57855 | AA76: 0 | AC76: 0 | AD76: 0 | AE76: 0 | AF76: 0 | AG76: 0 | AH76: 0 | AI76: 0 | AJ76: 0 | AK76: 0 | AL76: -3668055.806 | AM76: -7453262.333 | AN76: -7630170.299
A77: DRAB0905 | B77: Actual additions (recognised in RAB) | C77: 0 | D77: 0 | E77: 0 | F77: 0 | G77: 0 | H77: 0 | I77: 0 | J77: 0 | K77: 0 | L77: 0 | M77: 0 | N77: 0 | P77: 0 | Q77: 0 | R77: 0 | S77: 0 | T77: 0 | U77: 0 | V77: 0 | W77: 0 | X77: 16091.24227 | Y77: 16091.24227 | Z77: 0 | AA77: 0 | AC77: 0 | AD77: 0 | AE77: 0 | AF77: 0 | AG77: 0 | AH77: 0 | AI77: 0 | AJ77: 0 | AK77: 0 | AL77: 698965.3016 | AM77: 1046784.235 | AN77: 1153840.137
A78: DRAB0906 | B78: Disposals | C78: 0 | D78: 0 | E78: 0 | F78: 0 | G78: 0 | H78: 0 | I78: 0 | J78: 0 | K78: 0 | L78: 0 | M78: 0 | N78: 0 | P78: 0 | Q78: 0 | R78: 0 | S78: 0 | T78: 0 | U78: 0 | V78: 0 | W78: 0 | X78: 0 | Y78: 0 | Z78: 0 | AA78: 0 | AC78: 0 | AD78: 0 | AE78: 0 | AF78: 0 | AG78: 0 | AH78: 0 | AI78: 0 | AJ78: 0 | AK78: 0 | AL78: -11059.5125 | AM78: -11059.5125 | AN78: 0
A79: DRAB0907 | B79: Closing value | C79: =SUM(C74:C78) -> 0 | D79: 0 | E79: 0 | F79: 0 | G79: 0 | H79: 0 | I79: 0 | J79: =SUM(J74:J78) -> 0 | K79: 0 | L79: 0 | M79: 0 | N79: =SUM(N74:N78) -> 0 | P79: =SUM(P74:P78) -> 37022043.36 | Q79: 34596055.21 | R79: 31248851.13 | S79: 26915404.68 | T79: 21430533.22 | U79: 15799503 | V79: 10388818.26 | W79: 4543031.392 | X79: 781921.1538 | Y79: 16091.24227 | Z79: 3.106833901e-09 | AA79: 3.176380347e-09 | AC79: =SUM(AC74:AC78) -> 0 | AD79: 0 | AE79: 0 | AF79: 0 | AG79: 0 | AH79: 0 | AI79: 0 | AJ79: 0 | AK79: 0 | AL79: 39843880.33 | AM79: 76658077.89 | AN79: 71288128.76
B80: For “other” asset items with long lives
A81: DRAB1001 | B81: Opening value | C81: 1490832.341 | D81: 1539716.102 | E81: 1687025.292 | F81: 1894275.551 | G81: 2000729.838 | H81: 2174658.261 | I81: 2691738.314 | J81: 3384914.266 | K81: 3983456.518 | L81: 4772923.8 | M81: 8055667.748 | N81: 11138755.62 | P81: 18507772.59 | Q81: 17588296.25 | R81: 16652628.97 | S81: 15923853.13 | T81: 15165755.92 | U81: 14326858.15 | V81: 13909981.06 | W81: 13564863.55 | X81: 12995148.02 | Y81: 12574886.7 | Z81: 14571527.24 | AA81: 16283100.43 | AC81: 781668.7064 | AD81: 1176293.201 | AE81: 1750915.345 | AF81: 2452050.055 | AG81: 4445552.684 | AH81: 6323970.166 | AI81: 6531796.032 | AJ81: 6841748.595 | AK81: 7450186.96 | AL81: 7316118.24 | AM81: 7334860.6 | AN81: 8343343.397
A82: DRAB1002 | B82: Inflation addition | C82: 52023.0137 | D82: 44396.27853 | E82: 59626.93454 | F82: 57535.24121 | G82: 43533.20169 | H82: 75634.24051 | I82: 77268.28143 | J82: 72813.18482 | K82: 89203.7886 | L82: 89056.92964 | M82: 95334.07443 | N82: 166141.9368 | P82: 642336.3776 | Q82: 514766.0477 | R82: 562151.1471 | S82: 501414.4252 | T82: 305914.6077 | U82: 457166.1941 | V82: 390624.7161 | W82: 284364.6797 | X82: 290125.6803 | Y82: 240473.1123 | Z82: 179526.9089 | AA82: 239005.914 | AC82: 0 | AD82: 0 | AE82: 0 | AF82: 0 | AG82: 0 | AH82: 0 | AI82: 0 | AJ82: 0 | AK82: 0 | AL82: 0 | AM82: 0 | AN82: 0
A83: DRAB1003 | B83: Straight line depreciation | C83: -195976.3128 | D83: -191141.9784 | E83: -179201.9313 | F83: -164541.4307 | G83: -182238.2307 | H83: -219473.3026 | I83: -259449.9021 | J83: -310203.7242 | K83: -347981.5196 | L83: -394043.7423 | M83: -510545.258 | N83: -604355.6608 | P83: -1754649.782 | Q83: -1744488.213 | R83: -1617752.248 | S83: -1472972.113 | T83: -1457445.831 | U83: -1534962.395 | V83: -1611099.803 | W83: -1690012.998 | X83: -1758632.011 | Y83: -1831563.333 | Z83: -1966252.772 | AA83: -2081619.233 | AC83: -47113.00549 | AD83: -73231.51051 | AE83: -108788.4451 | AF83: -141560.8332 | AG83: -270818.3637 | AH83: -402206.3656 | AI83: -434558.8019 | AJ83: -466586.5986 | AK83: -483920.7781 | AL83: -493860.3151 | AM83: -533681.6444 | AN83: -597806.8688
A84: DRAB1005 | B84: Actual additions (recognised in RAB) | C84: 199460.5282 | D84: 301787.1354 | E84: 331461.1661 | F84: 320217.278 | G84: 434605.8428 | H84: 679010.6798 | I84: 896335.4539 | J84: 825183.4786 | K84: 1035223.982 | L84: 3609003.583 | M84: 3514624.116 | N84: 706874.1668 | P84: 199460.5282 | Q84: 301787.1354 | R84: 331461.1661 | S84: 320217.278 | T84: 434605.8428 | U84: 679010.6798 | V84: 896335.4539 | W84: 825183.4786 | X84: 1035223.982 | Y84: 3609003.583 | Z84: 3514624.116 | AA84: 706874.1668 | AC84: 441737.5 | AD84: 647853.655 | AE84: 809923.155 | AF84: 542412.02 | AG84: 556584.403 | AH84: 610032.2316 | AI84: 684065.2196 | AJ84: 1016919.593 | AK84: 352192.8321 | AL84: 512602.6755 | AM84: 1542164.441 | AN84: 1599905.902
A85: DRAB1006 | B85: Disposals | C85: -6623.467342 | D85: -7732.245677 | E85: -4635.910436 | F85: -3856.997665 | G85: -19072.58811 | H85: -18091.56472 | I85: -12192.22141 | J85: -16744.82918 | K85: -15186.55562 | L85: -13200.60669 | M85: -12755.16263 | N85: -20282.41857 | P85: -6623.467342 | Q85: -7732.245677 | R85: -4635.910436 | S85: -3856.997665 | T85: -19072.58811 | U85: -18091.56472 | V85: -12192.22141 | W85: -16744.82918 | X85: -15186.55562 | Y85: -13200.60669 | Z85: -12755.16263 | AA85: -20282.41857 | AC85: 0 | AD85: 0 | AE85: 0 | AF85: 0 | AG85: 0 | AH85: 0 | AI85: 0 | AJ85: 0 | AK85: 0 | AL85: 0 | AM85: 0 | AN85: 0
A86: DRAB1007 | B86: Closing value | C86: =SUM(C81:C85) -> 1539716.102 | D86: 1687025.292 | E86: 1894275.551 | F86: 2103629.642 | G86: 2277558.064 | H86: 2691738.314 | I86: 3393699.926 | J86: =SUM(J81:J85) -> 3955962.376 | K86: 4744716.214 | L86: 8063739.964 | M86: 11142325.52 | N86: =SUM(N81:N85) -> 11387133.65 | P86: =SUM(P81:P85) -> 17588296.25 | Q86: 16652628.97 | R86: 15923853.13 | S86: 15268655.72 | T86: 14429757.95 | U86: 13909981.06 | V86: 13573649.21 | W86: 12967653.88 | X86: 12546679.12 | Y86: 14579599.46 | Z86: 16286670.33 | AA86: 15127078.86 | AC86: =SUM(AC81:AC85) -> 1176293.201 | AD86: 1750915.345 | AE86: 2452050.055 | AF86: 2852901.242 | AG86: 4731318.723 | AH86: 6531796.032 | AI86: 6781302.449 | AJ86: 7392081.588 | AK86: 7318459.014 | AL86: 7334860.6 | AM86: 8343343.397 | AN86: 9345442.43
B87: For “other” asset items with short lives
A88: DRAB1101 | B88: Opening value | C88: 36377896.93 | D88: 45466159.19 | E88: 48876301.85 | F88: 53797701.34 | G88: 64666414.46 | H88: 77133428.3 | I88: 98365061.56 | J88: 113017298.8 | K88: 115152405.9 | L88: 121611780.3 | M88: 119280546.7 | N88: 123607360.9 | P88: 36377896.93 | Q88: 45466159.19 | R88: 48876301.85 | S88: 53797701.34 | T88: 64666414.46 | U88: 77133428.3 | V88: 98365061.56 | W88: 113017298.8 | X88: 115152405.9 | Y88: 121611780.3 | Z88: 119280546.7 | AA88: 123607360.9 | AC88: 0 | AD88: 0 | AE88: 0 | AF88: 0 | AG88: 0 | AH88: 0 | AI88: 0 | AJ88: 0 | AK88: 0 | AL88: 17747433.16 | AM88: 29952762.98 | AN88: 19218887.27
A89: DRAB1102 | B89: Inflation addition | C89: 1285298.148 | D89: 1266506.917 | E89: 1647112.819 | F89: 1557352.023 | G89: 1425449.943 | H89: 2650967.996 | I89: 2782714.638 | J89: 2414773.049 | K89: 2573378.29 | L89: 2298437.131 | M89: 1531396.958 | N89: 1884630.633 | P89: 1285298.148 | Q89: 1266506.917 | R89: 1647112.819 | S89: 1557352.023 | T89: 1425449.943 | U89: 2650967.996 | V89: 2782714.638 | W89: 2414773.049 | X89: 2573378.29 | Y89: 2298437.131 | Z89: 1531396.958 | AA89: 1884630.633 | AC89: 0 | AD89: 0 | AE89: 0 | AF89: 0 | AG89: 0 | AH89: 0 | AI89: 0 | AJ89: 0 | AK89: 0 | AL89: 268138.7446 | AM89: 393030.4917 | AN89: 260513.0237
A90: DRAB1103 | B90: Straight line depreciation | C90: -9372064.849 | D90: -10175959.61 | E90: -10159447.66 | F90: -10374675.39 | G90: -10763970.62 | H90: -12997270.44 | I90: -18314036.85 | J90: -22930696.56 | K90: -25411692.55 | L90: -31828235.17 | M90: -31490413.9 | N90: -27542294.83 | P90: -9372064.849 | Q90: -10175959.61 | R90: -10159447.66 | S90: -10374675.39 | T90: -10763970.62 | U90: -12997270.44 | V90: -18314036.85 | W90: -22930696.56 | X90: -25411692.55 | Y90: -31828235.17 | Z90: -31490413.9 | AA90: -27542294.83 | AC90: 0 | AD90: 0 | AE90: 0 | AF90: 0 | AG90: 0 | AH90: 0 | AI90: 0 | AJ90: 0 | AK90: 0 | AL90: -5763255.906 | AM90: -11087226.69 | AN90: -7810166.019
A91: DRAB1105 | B91: Actual additions (recognised in RAB) | C91: 17263936.87 | D91: 12423386.58 | E91: 13495962.92 | F91: 22726657.12 | G91: 25050396.57 | H91: 31820781.79 | I91: 30602407.68 | J91: 21637375.57 | K91: 28861791.88 | L91: 28229623.38 | M91: 34478984.94 | N91: 37700412.85 | P91: 17263936.87 | Q91: 12423386.58 | R91: 13495962.92 | S91: 22726657.12 | T91: 25050396.57 | U91: 31820781.79 | V91: 30602407.68 | W91: 21637375.57 | X91: 28861791.88 | Y91: 28229623.38 | Z91: 34478984.94 | AA91: 37700412.85 | AC91: 0 | AD91: 0 | AE91: 0 | AF91: 0 | AG91: 0 | AH91: 0 | AI91: 0 | AJ91: 0 | AK91: 0 | AL91: -43053.00917 | AM91: -186545.9433 | AN91: 642122.6964
A92: DRAB1106 | B92: Disposals | C92: -88907.90766 | D92: -103791.2243 | E92: -62228.59956 | F92: -51773.12344 | G92: -256014.5336 | H92: -242846.0929 | I92: -163658.223 | J92: -607130.3496 | K92: -586213.3835 | L92: -177193.947 | M92: -171214.6769 | N92: -272254.2898 | P92: -88907.90766 | Q92: -103791.2243 | R92: -62228.59956 | S92: -51773.12344 | T92: -256014.5336 | U92: -242846.0929 | V92: -163658.223 | W92: -607130.3496 | X92: -586213.3835 | Y92: -177193.947 | Z92: -171214.6769 | AA92: -272254.2898 | AC92: 0 | AD92: 0 | AE92: 0 | AF92: 0 | AG92: 0 | AH92: 0 | AI92: 0 | AJ92: 0 | AK92: 0 | AL92: -3933.167139 | AM92: -3933.167139 | AN92: 0
A93: DRAB1107 | B93: Closing value | C93: =SUM(C88:C92) -> 45466159.19 | D93: 48876301.85 | E93: 53797701.34 | F93: 67655261.97 | G93: 80122275.81 | H93: 98365061.56 | I93: 113272488.8 | J93: =SUM(J88:J92) -> 113531620.6 | K93: 120589670.1 | L93: 120134411.7 | M93: 123629300 | N93: =SUM(N88:N92) -> 135377855.2 | P93: =SUM(P88:P92) -> 45466159.19 | Q93: 48876301.85 | R93: 53797701.34 | S93: 67655261.97 | T93: 80122275.81 | U93: 98365061.56 | V93: 113272488.8 | W93: 113531620.6 | X93: 120589670.1 | Y93: 120134411.7 | Z93: 123629300 | AA93: 135377855.2 | AC93: =SUM(AC88:AC92) -> 0 | AD93: 0 | AE93: 0 | AF93: 0 | AG93: 0 | AH93: 0 | AI93: 0 | AJ93: 0 | AK93: 0 | AL93: 12205329.82 | AM93: 19068087.68 | AN93: 12311356.97
B98: 3.3.3 - TOTAL DISAGGREGATED RAB ASSET VALUES
C99: Network services | P99: Standard control services | AC99: Alternative control services
C100: $0's, Nominal | P100: $0's, Nominal | AC100: $0's, Nominal
C101: =dms_y1 -> 2006-07 | D101: =dms_y2 -> 2007-08 | E101: =dms_y3 -> 2008-09 | F101: =dms_y4 -> 2009-10 | G101: =dms_y5 -> 2010-11 | H101: =dms_y6 -> 2011-12 | I101: =dms_y7 -> 2012-13 | J101: =dms_y8 -> 2013-14 | K101: =dms_y9 -> 2014-15 | L101: =dms_y10 -> 2015-16 | M101: =dms_y11 -> 2016-17 | N101: =dms_y12 -> 2017-18 | P101: =dms_y1 -> 2006-07 | Q101: =dms_y2 -> 2007-08 | R101: =dms_y3 -> 2008-09 | S101: =dms_y4 -> 2009-10 | T101: =dms_y5 -> 2010-11 | U101: =dms_y6 -> 2011-12 | V101: =dms_y7 -> 2012-13 | W101: =dms_y8 -> 2013-14 | X101: =dms_y9 -> 2014-15 | Y101: =dms_y10 -> 2015-16 | Z101: =dms_y11 -> 2016-17 | AA101: =dms_y12 -> 2017-18 | AC101: =dms_y1 -> 2006-07 | AD101: =dms_y2 -> 2007-08 | AE101: =dms_y3 -> 2008-09 | AF101: =dms_y4 -> 2009-10 | AG101: =dms_y5 -> 2010-11 | AH101: =dms_y6 -> 2011-12 | AI101: =dms_y7 -> 2012-13 | AJ101: =dms_y8 -> 2013-14 | AK101: =dms_y9 -> 2014-15 | AL101: =dms_y10 -> 2015-16 | AM101: =dms_y11 -> 2016-17 | AN101: =dms_y12 -> 2017-18
A102: DRAB1201 | B102: Overhead network assets less than 33kV (wires and poles) | C102: 323840822.3 | D102: 335680723 | E102: 347132063.2 | F102: 362189081.6 | G102: 386207390.9 | H102: 423852446.7 | I102: 466316838.8 | J102: 508382921.5 | K102: 549674134.2 | L102: 585696739.1 | M102: 617940653 | N102: 645963915.1 | P102: 400393269 | Q102: 416500662.8 | R102: 431898709.5 | S102: 450607572.7 | T102: 478199532.7 | U102: 522340198.1 | V102: 573301520.2 | W102: 623364695.9 | X102: 673463032.9 | Y102: 718274145.7 | Z102: 758224614.7 | AA102: 792850642.5 | AC102: 0 | AD102: 0 | AE102: 0 | AF102: 0 | AG102: 0 | AH102: 0 | AI102: 0 | AJ102: 0 | AK102: 0 | AL102: 0 | AM102: 0 | AN102: 0
A103: DRAB1202 | B103: Underground network assets less than 33kV (cables) | C103: 23303882.4 | D103: 24155892.5 | E103: 24979941.44 | F103: 26063458.28 | G103: 27791837.83 | H103: 30500810.55 | I103: 33556587.13 | J103: 36583701 | K103: 39555054.51 | L103: 42147274.18 | M103: 44467575.78 | N103: 46484155.4 | P103: 28812666.62 | Q103: 29971769.44 | R103: 31079827 | S103: 32426133.94 | T103: 34411676.68 | U103: 37588079.41 | V103: 41255302.86 | W103: 44857894.87 | X103: 48463017.12 | Y103: 51687665.87 | Z103: 54562538.24 | AA103: 57054258.93 | AC103: 0 | AD103: 0 | AE103: 0 | AF103: 0 | AG103: 0 | AH103: 0 | AI103: 0 | AJ103: 0 | AK103: 0 | AL103: 0 | AM103: 0 | AN103: 0
A104: DRAB1203 | B104: Distribution substations including transformers | C104: 17509389.33 | D104: 18149547.75 | E104: 18768697.54 | F104: 19582798.72 | G104: 20881417.98 | H104: 22916806.64 | I104: 25212766.64 | J104: 27487190.89 | K104: 29719719.56 | L104: 31667385.73 | M104: 33410746.06 | N104: 34925904.65 | P104: 21648418.45 | Q104: 22519311.21 | R104: 23351851.08 | S104: 24363399.8 | T104: 25855238.8 | U104: 28241831.36 | V104: 30997202.41 | W104: 33704012.6 | X104: 36412723.87 | Y104: 38835566.1 | Z104: 40995603.59 | AA104: 42867759.79 | AC104: 0 | AD104: 0 | AE104: 0 | AF104: 0 | AG104: 0 | AH104: 0 | AI104: 0 | AJ104: 0 | AK104: 0 | AL104: 0 | AM104: 0 | AN104: 0
A105: DRAB1204 | B105: Overhead network assets 33kV and above (wires and towers / poles etc) | C105: 45635338.12 | D105: 52333523.47 | E105: 59292330.1 | F105: 65294653.16 | G105: 69839002.82 | H105: 77149588.97 | I105: 87182585.93 | J105: 98006594.01 | K105: 110337798.6 | L105: 120959831.5 | M105: 128421665.9 | N105: 139028494 | P105: 45635338.12 | Q105: 52333523.47 | R105: 59292330.1 | S105: 65294653.16 | T105: 69839002.82 | U105: 77149588.97 | V105: 87182585.93 | W105: 98006594.01 | X105: 110337798.6 | Y105: 120959831.5 | Z105: 128421665.9 | AA105: 139028494 | AC105: 0 | AD105: 0 | AE105: 0 | AF105: 0 | AG105: 0 | AH105: 0 | AI105: 0 | AJ105: 0 | AK105: 0 | AL105: 0 | AM105: 0 | AN105: 0
A106: DRAB1205 | B106: Underground network assets 33kV and above(cables, ducts etc) | C106: 1750484.279 | D106: 2007413.857 | E106: 2274340.368 | F106: 2504577.999 | G106: 2678890.56 | H106: 2959310.661 | I106: 3344157.233 | J106: 3759345.479 | K106: 4232346.901 | L106: 4639787.764 | M106: 4926009.458 | N106: 5332867.095 | P106: 1750484.279 | Q106: 2007413.857 | R106: 2274340.368 | S106: 2504577.999 | T106: 2678890.56 | U106: 2959310.661 | V106: 3344157.233 | W106: 3759345.479 | X106: 4232346.901 | Y106: 4639787.764 | Z106: 4926009.458 | AA106: 5332867.095 | AC106: 0 | AD106: 0 | AE106: 0 | AF106: 0 | AG106: 0 | AH106: 0 | AI106: 0 | AJ106: 0 | AK106: 0 | AL106: 0 | AM106: 0 | AN106: 0
A107: DRAB1206 | B107: Zone substations and transformers | C107: 42869920.01 | D107: 49162207.56 | E107: 55699323.23 | F107: 61337916.47 | G107: 65606886.84 | H107: 72474464.83 | I107: 81899480.51 | J107: 92067573.47 | K107: 103651529.6 | L107: 113629886.7 | M107: 120639547.6 | N107: 130603621.2 | P107: 42869920.01 | Q107: 49162207.56 | R107: 55699323.23 | S107: 61337916.47 | T107: 65606886.84 | U107: 72474464.83 | V107: 81899480.51 | W107: 92067573.47 | X107: 103651529.6 | Y107: 113629886.7 | Z107: 120639547.6 | AA107: 130603621.2 | AC107: 0 | AD107: 0 | AE107: 0 | AF107: 0 | AG107: 0 | AH107: 0 | AI107: 0 | AJ107: 0 | AK107: 0 | AL107: 0 | AM107: 0 | AN107: 0
A108: DRAB1207 | B108: Easements
A109: DRAB1208 | B109: Meters | C109: 0 | D109: 0 | E109: 0 | F109: 0 | G109: 0 | H109: 0 | I109: 0 | J109: 0 | K109: 0 | L109: 0 | M109: 0 | N109: 0 | P109: 38036946.53 | Q109: 35809049.29 | R109: 32922453.17 | S109: 28794427.66 | T109: 23597568.45 | U109: 18327317.86 | V109: 13094160.63 | W109: 7441360.772 | X109: 2923934.492 | Y109: 684743.3901 | Z109: 7760.53846 | AA109: 3.160978423e-09 | AC109: 0 | AD109: 0 | AE109: 0 | AF109: 0 | AG109: 0 | AH109: 0 | AI109: 0 | AJ109: 0 | AK109: 0 | AL109: 41015264.88 | AM109: 79344303.83 | AN109: 73966628.26
A110: DRAB1209 | B110: “Other” assets with long lives | C110: 1515274.221 | D110: 1613370.697 | E110: 1790650.422 | F110: 1947502.695 | G110: 2087694.05 | H110: 2433198.287 | I110: 3042719.12 | J110: 3670438.321 | K110: 4364086.366 | L110: 6418331.882 | M110: 9598996.633 | N110: 11262944.63 | P110: 18048034.42 | Q110: 17120462.61 | R110: 16288241.05 | S110: 15544804.52 | T110: 14746307.03 | U110: 14118419.6 | V110: 13741815.13 | W110: 13266258.71 | X110: 12770913.57 | Y110: 13577243.08 | Z110: 15429098.79 | AA110: 15705089.65 | AC110: 978980.9537 | AD110: 1463604.273 | AE110: 2101482.7 | AF110: 3448801.37 | AG110: 5384761.425 | AH110: 6427883.099 | AI110: 6656549.24 | AJ110: 7116915.091 | AK110: 7384322.987 | AL110: 7325489.42 | AM110: 7839101.998 | AN110: 8844392.914
A111: DRAB1210 | B111: “Other” assets with short lives | C111: 40922028.06 | D111: 47171230.52 | E111: 51337001.59 | F111: 59232057.9 | G111: 70899921.38 | H111: 87749244.93 | I111: 105818775.2 | J111: 113274459.7 | K111: 117871038 | L111: 120873096 | M111: 121454923.3 | N111: 129492608 | P111: 40922028.06 | Q111: 47171230.52 | R111: 51337001.59 | S111: 59232057.9 | T111: 70899921.38 | U111: 87749244.93 | V111: 105818775.2 | W111: 113274459.7 | X111: 117871038 | Y111: 120873096 | Z111: 121454923.3 | AA111: 129492608 | AC111: 0 | AD111: 0 | AE111: 0 | AF111: 0 | AG111: 0 | AH111: 0 | AI111: 0 | AJ111: 0 | AK111: 0 | AL111: 14976381.49 | AM111: 24510425.33 | AN111: 15765122.12
A112: DRAB13 | B112: Value of Capital Contributions or Contributed Assets (included in the above) | C112: 4442165.713 | D112: 5722369.06 | E112: 5898176.147 | F112: 3162682.395 | G112: 4746649.601 | H112: 7244399.682 | I112: 5007708.223 | J112: 5810056.887 | K112: 5365354.074 | L112: 7031238.077 | M112: 15515572.34 | N112: 20455557.37 | P112: 7860591.31 | Q112: 9957255.853 | R112: 10263177.14 | S112: 8437719.113 | T112: 10662298.5 | U112: 13078780.01 | V112: 9223806.694 | W112: 7735905.604 | X112: 6611294.758 | Y112: 8664029.772 | Z112: 19023101.61 | AA112: 25017971.84 | AC112: 0 | AD112: 0 | AE112: 0 | AF112: 0 | AG112: 0 | AH112: 0 | AI112: 0 | AJ112: 0 | AK112: 0 | AL112: 3667430.3 | AM112: 3667430.3 | AN112: 0
B115: 3.3.4 - ASSET LIVES
C116: Network services | P116: Standard control services | AC116: Alternative control services
C117: Service Life (Years) | P117: Service Life (Years) | AC117: Service Life (Years)
C118: =dms_y1 -> 2006-07 | D118: =dms_y2 -> 2007-08 | E118: =dms_y3 -> 2008-09 | F118: =dms_y4 -> 2009-10 | G118: =dms_y5 -> 2010-11 | H118: =dms_y6 -> 2011-12 | I118: =dms_y7 -> 2012-13 | J118: =dms_y8 -> 2013-14 | K118: =dms_y9 -> 2014-15 | L118: =dms_y10 -> 2015-16 | M118: =dms_y11 -> 2016-17 | N118: =dms_y12 -> 2017-18 | P118: =dms_y1 -> 2006-07 | Q118: =dms_y2 -> 2007-08 | R118: =dms_y3 -> 2008-09 | S118: =dms_y4 -> 2009-10 | T118: =dms_y5 -> 2010-11 | U118: =dms_y6 -> 2011-12 | V118: =dms_y7 -> 2012-13 | W118: =dms_y8 -> 2013-14 | X118: =dms_y9 -> 2014-15 | Y118: =dms_y10 -> 2015-16 | Z118: =dms_y11 -> 2016-17 | AA118: =dms_y12 -> 2017-18 | AC118: =dms_y1 -> 2006-07 | AD118: =dms_y2 -> 2007-08 | AE118: =dms_y3 -> 2008-09 | AF118: =dms_y4 -> 2009-10 | AG118: =dms_y5 -> 2010-11 | AH118: =dms_y6 -> 2011-12 | AI118: =dms_y7 -> 2012-13 | AJ118: =dms_y8 -> 2013-14 | AK118: =dms_y9 -> 2014-15 | AL118: =dms_y10 -> 2015-16 | AM118: =dms_y11 -> 2016-17 | AN118: =dms_y12 -> 2017-18
B119: ESTIMATED SERVICE LIFE OF NEW ASSETS
A120: DRAB1401 | B120: Overhead network assets less than 33kV (wires and poles) | C120: 61.43 | D120: 61.45 | E120: 61.87 | F120: 61.78 | G120: 61.91 | H120: 61.445 | I120: 62.41 | J120: 61.39 | K120: 59.04 | L120: 59.58 | M120: 54.5989958 | N120: 49.4679916 | P120: 61.42 | Q120: 61.435 | R120: 61.805 | S120: 61.635 | T120: 61.705 | U120: 61.29 | V120: 61.55 | W120: 60.3185 | X120: 58.8985 | Y120: 59.705 | Z120: 54.6139958 | AA120: 49.4679916 | AC120: 0 | AD120: 0 | AE120: 0 | AF120: 0 | AG120: 0 | AH120: 0 | AI120: 0 | AJ120: 0 | AK120: 0 | AL120: 0 | AM120: 0 | AN120: 0
A121: DRAB1402 | B121: Underground network assets less than 33kV (cables) | C121: 48.94 | D121: 48.29 | E121: 48.34 | F121: 48.38 | G121: 47.59 | H121: 46.93 | I121: 46.64 | J121: 46.06 | K121: 46.985 | L121: 47.73 | M121: 48.2039958 | N121: 49.4679916 | P121: 49.07 | Q121: 48.61 | R121: 48.625 | S121: 48.655 | T121: 48.045 | U121: 47.615 | V121: 47.98 | W121: 47.855 | X121: 48.595 | Y121: 48.145 | Z121: 47.8989958 | AA121: 49.4679916 | AC121: 0 | AD121: 0 | AE121: 0 | AF121: 0 | AG121: 0 | AH121: 0 | AI121: 0 | AJ121: 0 | AK121: 0 | AL121: 0 | AM121: 0 | AN121: 0
A122: DRAB1403 | B122: Distribution substations including transformers | C122: 47.75 | D122: 48.115 | E122: 48.585 | F122: 48.33 | G122: 47.79 | H122: 46.085 | I122: 45.145 | J122: 45.915 | K122: 45.115 | L122: 43.79 | M122: 46.5339958 | N122: 49.4679916 | P122: 47.75 | Q122: 48.115 | R122: 48.585 | S122: 48.33 | T122: 47.79 | U122: 46.085 | V122: 45.145 | W122: 45.915 | X122: 45.115 | Y122: 43.79 | Z122: 46.5339958 | AA122: 49.4679916 | AC122: 0 | AD122: 0 | AE122: 0 | AF122: 0 | AG122: 0 | AH122: 0 | AI122: 0 | AJ122: 0 | AK122: 0 | AL122: 0 | AM122: 0 | AN122: 0
A123: DRAB1404 | B123: Overhead network assets 33kV and above (wires and towers / poles etc) | C123: 63.59 | D123: 63.565 | E123: 64.33 | F123: 64.225 | G123: 65.69 | H123: 63.24 | I123: 60.595 | J123: 64.155 | K123: 65.145 | L123: 64.225 | M123: 58.68107143 | N123: 53.36214286 | P123: 63.59 | Q123: 63.565 | R123: 64.33 | S123: 64.225 | T123: 65.69 | U123: 63.24 | V123: 60.595 | W123: 64.155 | X123: 65.145 | Y123: 64.225 | Z123: 58.68107143 | AA123: 53.36214286 | AC123: 0 | AD123: 0 | AE123: 0 | AF123: 0 | AG123: 0 | AH123: 0 | AI123: 0 | AJ123: 0 | AK123: 0 | AL123: 0 | AM123: 0 | AN123: 0
A124: DRAB1405 | B124: Underground network assets 33kV and above(cables, ducts etc) | C124: 40 | D124: 40 | E124: 40 | F124: 40 | G124: 40 | H124: 40 | I124: 40 | J124: 40 | K124: 40 | L124: 40 | M124: 46.68107143 | N124: 53.36214286 | P124: 40 | Q124: 40 | R124: 40 | S124: 40 | T124: 40 | U124: 40 | V124: 40 | W124: 40 | X124: 40 | Y124: 40 | Z124: 46.68107143 | AA124: 53.36214286 | AC124: 0 | AD124: 0 | AE124: 0 | AF124: 0 | AG124: 0 | AH124: 0 | AI124: 0 | AJ124: 0 | AK124: 0 | AL124: 0 | AM124: 0 | AN124: 0
A125: DRAB1406 | B125: Zone substations and transformers | C125: 46.695 | D125: 47.365 | E125: 46.52 | F125: 47.025 | G125: 45.41 | H125: 47.175 | I125: 45.405 | J125: 44.795 | K125: 51.395 | L125: 43.005 | M125: 43.45107143 | N125: 53.36214286 | P125: 46.695 | Q125: 47.365 | R125: 46.52 | S125: 47.025 | T125: 45.41 | U125: 47.175 | V125: 45.405 | W125: 44.795 | X125: 51.395 | Y125: 43.005 | Z125: 43.45107143 | AA125: 53.36214286 | AC125: 0 | AD125: 0 | AE125: 0 | AF125: 0 | AG125: 0 | AH125: 0 | AI125: 0 | AJ125: 0 | AK125: 0 | AL125: 0 | AM125: 0 | AN125: 0
A126: DRAB1407 | B126: Meters | C126: 0 | D126: 0 | E126: 0 | F126: 0 | G126: 0 | H126: 0 | I126: 0 | J126: 0 | K126: 0 | L126: 0 | M126: 0 | N126: 0 | P126: 10 | Q126: 10 | R126: 10 | S126: 10 | T126: 10 | U126: 10 | V126: 10 | W126: 10 | X126: 10 | Y126: 10 | Z126: 5 | AA126: 0 | AC126: 0 | AD126: 0 | AE126: 0 | AF126: 0 | AG126: 0 | AH126: 0 | AI126: 0 | AJ126: 0 | AK126: 0 | AL126: 7.5 | AM126: 15 | AN126: 15
A127: DRAB1408 | B127: “Other” assets with long lives | C127: 30.46360889 | D127: 30.46360889 | E127: 30.46360889 | F127: 30.46360889 | G127: 48.1961349 | H127: 65.92866091 | I127: 65.92866091 | J127: 65.92933046 | K127: 57.965 | L127: 55.11234644 | M127: 60.22469287 | N127: 42.21421622 | P127: 30.46360889 | Q127: 30.46360889 | R127: 30.46360889 | S127: 30.46360889 | T127: 48.1961349 | U127: 65.92866091 | V127: 65.92866091 | W127: 65.92933046 | X127: 57.965 | Y127: 55.11234644 | Z127: 60.22469287 | AA127: 42.21421622 | AC127: 32.735 | AD127: 32.29 | AE127: 32.065 | AF127: 32.23 | AG127: 31.925 | AH127: 31.735 | AI127: 31.74 | AJ127: 32.735 | AK127: 32.49 | AL127: 31.175 | AM127: 15.55 | AN127: 10
A128: DRAB1409 | B128: “Other” assets with short lives | C128: 7.239533469 | D128: 7.260040109 | E128: 7.318227884 | F128: 7.124782689 | G128: 8.771835783 | H128: 10.55693427 | I128: 11.1605812 | J128: 12.16098173 | K128: 12.67 | L128: 15.19279614 | M128: 17.25689325 | N128: 12.34533614 | P128: 7.239533469 | Q128: 7.260040109 | R128: 7.318227884 | S128: 7.124782689 | T128: 8.771835783 | U128: 10.55693427 | V128: 11.1605812 | W128: 12.16098173 | X128: 12.67 | Y128: 15.19279614 | Z128: 17.25689325 | AA128: 12.34533614 | AC128: 0 | AD128: 0 | AE128: 0 | AF128: 0 | AG128: 0 | AH128: 0 | AI128: 0 | AJ128: 0 | AK128: 0 | AL128: 3.5 | AM128: 7 | AN128: 7
B130: ESTIMATED RESIDUAL SERVICE LIFE
A131: DRAB1501 | B131: Overhead network assets less than 33kV (wires and poles) | C131: 29.88 | D131: 30.055 | E131: 30.26 | F131: 31.845 | G131: 31.84 | H131: 30.945 | I131: 32.075 | J131: 32.4105 | K131: 31.4155 | L131: 28.07 | M131: 24.42712686 | N131: 23.05572617 | P131: 29.875 | Q131: 30.05 | R131: 30.255 | S131: 31.79 | T131: 31.74 | U131: 30.855 | V131: 31.035 | W131: 30.315 | X131: 30.025 | Y131: 27.29 | Z131: 23.94212686 | AA131: 23.05572617 | AC131: 0 | AD131: 0 | AE131: 1 | AF131: 0.15 | AG131: 0 | AH131: 0 | AI131: 0 | AJ131: 0 | AK131: 0 | AL131: 0 | AM131: 0 | AN131: 0
A132: DRAB1502 | B132: Underground network assets less than 33kV (cables) | C132: 34.38 | D132: 34.375 | E132: 34.385 | F132: 34.395 | G132: 34.3 | H132: 34.19 | I132: 34.33 | J132: 34.415 | K132: 34.06 | L132: 33.4 | M132: 28.17212686 | N132: 23.05572617 | P132: 34.465 | Q132: 34.49 | R132: 34.515 | S132: 34.535 | T132: 34.445 | U132: 34.415 | V132: 34.55 | W132: 34.5835 | X132: 34.2035 | Y132: 34.41 | Z132: 29.14212686 | AA132: 23.05572617 | AC132: 0 | AD132: 0 | AE132: 0 | AF132: 0.15 | AG132: 0 | AH132: 0 | AI132: 0 | AJ132: 0 | AK132: 0 | AL132: 0 | AM132: 0 | AN132: 0
A133: DRAB1503 | B133: Distribution substations including transformers | C133: 27.01 | D133: 27 | E133: 26.99 | F133: 26.99 | G133: 27.39 | H133: 26.635 | I133: 26.515 | J133: 27.599 | K133: 26.909 | L133: 25.865 | M133: 24.44712686 | N133: 23.05572617 | P133: 27.01 | Q133: 27 | R133: 26.99 | S133: 26.99 | T133: 27.39 | U133: 26.635 | V133: 26.515 | W133: 27.599 | X133: 26.909 | Y133: 25.865 | Z133: 24.44712686 | AA133: 23.05572617 | AC133: 0 | AD133: 0 | AE133: 1 | AF133: 0.15 | AG133: 0 | AH133: 0 | AI133: 0 | AJ133: 0 | AK133: 0 | AL133: 0 | AM133: 0 | AN133: 0
A134: DRAB1504 | B134: Overhead network assets 33kV and above (wires and towers / poles etc) | C134: 39.705 | D134: 39.535 | E134: 39.735 | F134: 39.93 | G134: 39.645 | H134: 39.285 | I134: 39.34 | J134: 39.774 | K134: 36.664 | L134: 33.91 | M134: 32.10876682 | N134: 28.98126785 | P134: 39.705 | Q134: 39.535 | R134: 39.735 | S134: 39.93 | T134: 39.645 | U134: 39.285 | V134: 39.34 | W134: 39.774 | X134: 36.664 | Y134: 33.91 | Z134: 32.10876682 | AA134: 28.98126785 | AC134: 0 | AD134: 0 | AE134: 1 | AF134: 0.15 | AG134: 0 | AH134: 0 | AI134: 0 | AJ134: 0 | AK134: 0 | AL134: 0 | AM134: 0 | AN134: 0
A135: DRAB1505 | B135: Underground network assets 33kV and above (cables, ducts etc) | C135: 30 | D135: 30 | E135: 30 | F135: 30 | G135: 30 | H135: 30 | I135: 30 | J135: 30 | K135: 30 | L135: 30 | M135: 29.86376682 | N135: 28.98126785 | P135: 30 | Q135: 30 | R135: 30 | S135: 30 | T135: 30 | U135: 30 | V135: 30 | W135: 30 | X135: 30 | Y135: 30 | Z135: 29.86376682 | AA135: 28.98126785 | AC135: 0 | AD135: 0 | AE135: 1 | AF135: 0.15 | AG135: 0 | AH135: 0 | AI135: 0 | AJ135: 0 | AK135: 0 | AL135: 0 | AM135: 0 | AN135: 0
A136: DRAB1506 | B136: Zone substations and transformers | C136: 18.17 | D136: 18.18 | E136: 18.165 | F136: 18.205 | G136: 18.58 | H136: 18.12 | I136: 17.835 | J136: 18.7505 | K136: 20.5055 | L136: 22.455 | M136: 26.39876682 | N136: 28.98126785 | P136: 18.17 | Q136: 18.18 | R136: 18.165 | S136: 18.205 | T136: 18.58 | U136: 18.12 | V136: 17.835 | W136: 18.7505 | X136: 20.5055 | Y136: 22.455 | Z136: 26.39876682 | AA136: 28.98126785 | AC136: 0 | AD136: 0 | AE136: 1 | AF136: 0.15 | AG136: 0 | AH136: 0 | AI136: 0 | AJ136: 0 | AK136: 0 | AL136: 0 | AM136: 0 | AN136: 0
A137: DRAB1507 | B137: Meters | C137: 0 | D137: 0 | E137: 0 | F137: 0 | G137: 0 | H137: 0 | I137: 0 | J137: 0 | K137: 0 | L137: 0 | M137: 0 | N137: 0 | P137: 7.961367884 | Q137: 6.961367884 | R137: 5.961367884 | S137: 4.961367884 | T137: 3.961367884 | U137: 2.961367884 | V137: 1.961367884 | W137: 0.960683942 | X137: 0.96 | Y137: 0.96 | Z137: 0.23 | AA137: 0 | AC137: 0 | AD137: 0 | AE137: 0 | AF137: 0.15 | AG137: 0 | AH137: 0 | AI137: 0 | AJ137: 0 | AK137: 0 | AL137: 0 | AM137: 0 | AN137: 0
A138: DRAB1508 | B138: “Other” assets with long lives | C138: 34.53026312 | D138: 34.99302307 | E138: 54.18889206 | F138: 62.26407487 | G138: 47.77962569 | H138: 50.02731835 | I138: 49.59895192 | J138: 47.1464949 | K138: 38.205 | L138: 29.3683945 | M138: 29.36805421 | N138: 29.88426501 | P138: 34.53026312 | Q138: 34.99302307 | R138: 54.18889206 | S138: 62.26407487 | T138: 47.77962569 | U138: 50.02731835 | V138: 49.59895192 | W138: 47.1464949 | X138: 38.205 | Y138: 29.3683945 | Z138: 29.36805421 | AA138: 29.88426501 | AC138: 0 | AD138: 0 | AE138: 1 | AF138: 0.15 | AG138: 0 | AH138: 0 | AI138: 17.525 | AJ138: 17.61 | AK138: 17.66 | AL138: 17.73 | AM138: 17.53 | AN138: 17.595
A139: DRAB1509 | B139: “Other” assets with short lives | C139: 5.49288405 | D139: 6.011572726 | E139: 8.585279011 | F139: 9.787329537 | G139: 8.259658641 | H139: 8.029506713 | I139: 7.800154422 | J139: 7.269480128 | K139: 7.36 | L139: 7.694089866 | M139: 7.375515379 | N139: 7.374234984 | P139: 5.49288405 | Q139: 6.011572726 | R139: 8.585279011 | S139: 9.787329537 | T139: 8.259658641 | U139: 8.029506713 | V139: 7.800154422 | W139: 7.269480128 | X139: 7.36 | Y139: 7.694089866 | Z139: 7.375515379 | AA139: 7.374234984 | AC139: 0 | AD139: 0 | AE139: 1 | AF139: 0.15 | AG139: 0 | AH139: 0 | AI139: 0 | AJ139: 0 | AK139: 0 | AL139: 0 | AM139: 0 | AN139: 0

Sheet 3.4 Operational data
B1: =INDEX(dms_Worksheet_List,MATCH(dms_Model,dms_Model_List)) -> HISTORICAL ECONOMIC BENCHMARKING - FINANCIAL YEARS
B2: =INDEX(dms_TradingNameFull_List,MATCH(dms_TradingName,dms_TradingName_List)) -> Jemena Electricity
B3: =dms_Header_Span -> 2006-07 to 2018-19
B4: 3.4 OPERATIONAL DATA
B6: There are THREE tables on this worksheet. Each table has been grouped for ease of navigation. See the Instructions sheet on how to group or ungroup tables.
B8: 3.4.1 - ENERGY DELIVERY
D9: Standard control services
D10: VOLUMES (0's) (GWh)
C11: Units | D11: =dms_y1 -> 2006-07 | E11: =dms_y2 -> 2007-08 | F11: =dms_y3 -> 2008-09 | G11: =dms_y4 -> 2009-10 | H11: =dms_y5 -> 2010-11 | I11: =dms_y6 -> 2011-12 | J11: =dms_y7 -> 2012-13 | K11: =dms_y8 -> 2013-14 | L11: =dms_y9 -> 2014-15 | M11: =dms_y10 -> 2015-16 | N11: =dms_y11 -> 2016-17 | O11: =dms_y12 -> 2017-18
A12: DOPED01 | B12: Total energy delivered | C12: GWh | D12: 4328.5 | E12: 4434.5 | F12: 4433 | G12: 4413 | H12: 4432.5 | I12: 4390 | J12: 4309.5 | K12: 4194.760928 | L12: 4173.76981 | M12: 4199.45501 | N12: 4225.639848 | O12: 4241.548895
B14: 3.4.1.1 - Energy grouping - delivery by chargeable quantity
A15: DOPED0201 | B15: Energy Delivery where time of use is not a determinant | C15: GWh | D15: 1259 | E15: 1297.5 | F15: 1374 | G15: 1447 | H15: 1435.5 | I15: 1397 | J15: 1345 | K15: 1298.138938 | L15: 1302.974129 | M15: 1344.150702 | N15: 1386.098418 | O15: 1413.709006
A16: DOPED0202 | B16: Energy Delivery at On-peak times | C16: GWh | D16: 1687.5 | E16: 1730 | F16: 1685 | G16: 1649 | H16: 1668.5 | I16: 1655.5 | J16: 1635 | K16: 1602.763629 | L16: 1599.843626 | M16: 1589.609872 | N16: 1572.441446 | O16: 1554.58555
A17: DOPED0203 | B17: Energy Delivery at Shoulder times | C17: GWh | D17: 0 | E17: 0 | F17: 0 | G17: 0 | H17: 0 | I17: 0 | J17: 0.12805 | K17: 0.9172275 | L17: 2.0315805 | M17: 2.548647 | N17: 2.695077 | O17: 2.689535
A18: DOPED0204 | B18: Energy Delivery at Off-peak times | C18: GWh | D18: 1230.5 | E18: 1271.5 | F18: 1248.5 | G18: 1205.5 | H18: 1220 | I18: 1227 | J18: 1224.5 | K18: 1194.062506 | L18: 1175.890316 | M18: 1181.738275 | N18: 1185.054519 | O18: 1192.225943
A19: DOPED0205 | B19: Controlled load energy deliveries | C19: GWh | D19: 81.18 | E19: 78.33 | F19: 70.31 | G19: 56.37 | H19: 53.055 | I19: 54.18 | J19: 49.705 | K19: 43.9752805 | L19: 40.2782275 | M19: 38.9742655 | N19: 36.18294 | O19: 33.6538265
A20: DOPED0206 | B20: Energy Delivery to unmetered supplies | C20: GWh | D20: 70.615 | E20: 56.87 | F20: 54.515 | G20: 54.77 | H20: 55.435 | I20: 55.84 | J20: 54.71 | K20: 54.7613965 | L20: 52.7519315 | M20: 42.433249 | N20: 43.1674465 | O20: 44.6850345
B22: 3.4.1.2 - Energy - received from TNSP and other DNSPs by time of receipt
A23: DOPED0301 | B23: Energy into DNSP network at On-peak times | C23: GWh | D23: 2760.5 | E23: 2797 | F23: 2798.5 | G23: 2808 | H23: 2776 | I23: 2720 | J23: 2674 | K23: 2613.919306 | L23: 2596.127758 | M23: 2544.406683 | N23: 2416.266695 | O23: 1170.568464
A24: DOPED0302 | B24: Energy into DNSP network at Shoulder times | C24: GWh | D24: 0 | E24: 0 | F24: 0 | G24: 0 | H24: 0 | I24: 0 | J24: 0 | K24: 0 | L24: 0 | M24: 0 | N24: 0 | O24: 0
A25: DOPED0303 | B25: Energy into DNSP network at Off-peak times | C25: GWh | D25: 2193.5 | E25: 2218 | F25: 2219.5 | G25: 2190 | H25: 2165.5 | I25: 2153.5 | J25: 2136 | K25: 2067.632163 | L25: 1984.518857 | M25: 1963.093184 | N25: 1906.576204 | O25: 917.8697147
A26: DOPED0304 | B26: Energy received from TNSP and other DNSPs not included in the above categories | C26: GWh | D26: 0 | E26: 0 | F26: 0 | G26: 0 | H26: 0 | I26: 0 | J26: 0 | K26: 0 | L26: 0 | M26: 0 | N26: 0 | O26: 2072.400839
B28: 3.4.1.3 - Energy - received into DNSP system from embedded generation by time of receipt
A29: DOPED0401 | B29: Energy into DNSP network at On-peak times from non-residential embedded generation | C29: GWh | D29: 0 | E29: 0 | F29: 0 | G29: 0 | H29: 0 | I29: 0 | J29: 0 | K29: 0 | L29: 0 | M29: 0 | N29: 0 | O29: 0
A30: DOPED0402 | B30: Energy into DNSP network at Shoulder times from non-residential embedded generation | C30: GWh | D30: 0 | E30: 0 | F30: 0 | G30: 0 | H30: 0 | I30: 0 | J30: 0 | K30: 0 | L30: 0 | M30: 0 | N30: 0 | O30: 0
A31: DOPED0403 | B31: Energy into DNSP network at Off-peak times from non-residential embedded generation | C31: GWh | D31: 0 | E31: 0 | F31: 0 | G31: 0 | H31: 0 | I31: 0 | J31: 0 | K31: 0 | L31: 0 | M31: 0 | N31: 0 | O31: 0
A32: DOPED0404 | B32: Energy received from embedded generation not included in above categories from non-residential embedded generation | C32: GWh | D32: 38.59416655 | E32: 52.44027936 | F32: 54.18806416 | G32: 54.04729193 | H32: 53.55337707 | I32: 50.72164052 | J32: 48.33363911 | K32: 46.02581097 | L32: 43.20721564 | M32: 42.4523763 | N32: 40.43012293 | O32: 36.67614391
A33: DOPED0405 | B33: Energy into DNSP network at On-peak times from residential embedded generation | C33: GWh | D33: 0 | E33: 0 | F33: 0 | G33: 0 | H33: 0 | I33: 0 | J33: 0 | K33: 0 | L33: 0 | M33: 0 | N33: 0 | O33: 0
A34: DOPED0406 | B34: Energy into DNSP network at Shoulder times from residential embedded generation | C34: GWh | D34: 0 | E34: 0 | F34: 0 | G34: 0 | H34: 0 | I34: 0 | J34: 0 | K34: 0 | L34: 0 | M34: 0 | N34: 0 | O34: 0
A35: DOPED0407 | B35: Energy into DNSP network at Off-peak times from residential embedded generation | C35: GWh | D35: 0 | E35: 0 | F35: 0 | G35: 0 | H35: 0 | I35: 0 | J35: 0 | K35: 0 | L35: 0 | M35: 0 | N35: 0 | O35: 0
A36: DOPED0408 | B36: Energy received from embedded generation not included in above categories from residential embedded generation | C36: GWh | D36: 0 | E36: 0 | F36: 0 | G36: 0 | H36: 0 | I36: 0 | J36: 0 | K36: 0 | L36: 0 | M36: 0 | N36: 0 | O36: 58.60168722
B38: 3.4.1.4 - Energy grouping - customer type or class
A39: DOPED0501 | B39: Residential customers energy deliveries | C39: GWh | D39: 1214 | E39: 1239 | F39: 1276.5 | G39: 1321 | H39: 1335.5 | I39: 1314 | J39: 1278 | K39: 1233.994699 | L39: 1233.864724 | M39: 1273.583631 | N39: 1316.028865 | O39: 1338.177585
A40: DOPED0502 | B40: Non residential customers not on demand tariffs energy deliveries | C40: GWh | D40: 667.85 | E40: 690.35 | F40: 702.35 | G40: 697.8 | H40: 666.4 | I40: 615.9 | J40: 573.4 | K40: 538.892553 | L40: 531.68087 | M40: 544.9908395 | N40: 536.995044 | O40: 528.391591
A41: DOPED0503 | B41: Non-residential low voltage demand tariff customers energy deliveries | C41: GWh | D41: 1141.5 | E41: 1183.5 | F41: 1191.5 | G41: 1207 | H41: 1263.5 | I41: 1326 | J41: 1368.5 | K41: 1378.133091 | L41: 1394.357317 | M41: 1390.561511 | N41: 1393.54572 | O41: 1393.955055
A42: DOPED0504 | B42: Non-residential high voltage demand tariff customers energy deliveries | C42: GWh | D42: 1234.5 | E42: 1264.5 | F42: 1207.5 | G42: 1132.5 | H42: 1112 | I42: 1078 | J42: 1034.5 | K42: 988.834189 | L42: 961.1149685 | M42: 947.8857805 | N42: 935.902772 | O42: 936.33963
A43: DOPED0505 | B43: Other Customer Class Energy Deliveries | C43: GWh | D43: 70.615 | E43: 56.87 | F43: 54.515 | G43: 54.77 | H43: 55.435 | I43: 55.84 | J43: 54.71 | K43: 54.7613965 | L43: 52.7519315 | M43: 42.433249 | N43: 43.1674465 | O43: 44.6850345
B46: 3.4.2 - CUSTOMER NUMBERS
D47: Standard control services
D48: VOLUMES (0's)
D49: =dms_y1 -> 2006-07 | E49: =dms_y2 -> 2007-08 | F49: =dms_y3 -> 2008-09 | G49: =dms_y4 -> 2009-10 | H49: =dms_y5 -> 2010-11 | I49: =dms_y6 -> 2011-12 | J49: =dms_y7 -> 2012-13 | K49: =dms_y8 -> 2013-14 | L49: =dms_y9 -> 2014-15 | M49: =dms_y10 -> 2015-16 | N49: =dms_y11 -> 2016-17 | O49: =dms_y12 -> 2017-18
B50: 3.4.2.1 - Distribution customer numbers by customer type or class
A51: DOPCN0101 | B51: Residential customer numbers | D51: 264281.6148 | E51: 271550.4561 | F51: 273050.4678 | G51: 274602.5029 | H51: 275539.3859 | I51: 276797.4798 | J51: 280306.669 | K51: 284181.4062 | L51: 287978 | M51: 293057 | N51: 299284 | O51: 306644
A52: DOPCN0102 | B52: Non residential customers not on demand tariff customer numbers | D52: 29160.57123 | E52: 25755.3846 | F52: 26135.96881 | G52: 26190.13475 | H52: 25954.51627 | I52: 25686.87512 | J52: 25402.02751 | K52: 25085.88641 | L52: 24961.5 | M52: 24972 | N52: 25259.5 | O52: 25866.5
A53: DOPCN0103 | B53: Low voltage demand tariff customer numbers | D53: 1170.29419 | E53: 1301.124256 | F53: 1391.004905 | G53: 1484.381676 | H53: 1590.289611 | I53: 1755.055829 | J53: 1884.956295 | K53: 1947.172604 | L53: 1988 | M53: 2003 | N53: 2049.5 | O53: 2122
A54: DOPCN0104 | B54: High voltage demand tariff customer numbers | D54: 81.01974039 | E54: 83.2850808 | F54: 84.05851074 | G54: 83.73069653 | H54: 85.05824277 | I54: 83.83920227 | J54: 81.59715966 | K54: 80.03481333 | L54: 79.5 | M54: 80.5 | N54: 84.5 | O54: 89
A55: DOPCN0105 | B55: Unmetered Customer Numbers | D55: 1453.5 | E55: 2182.75 | F55: 3273.75 | G55: 5059.75 | H55: 8310.75 | I55: 10882.75 | J55: 10264.75 | K55: 7335 | L55: 4916 | M55: 4289 | N55: 4435.5 | O55: 4526
A56: DOPCN0106 | B56: Other Customer Numbers | D56: 0 | E56: 0 | F56: 0 | G56: 0 | H56: 0 | I56: 0 | J56: 0 | K56: 0 | L56: 0 | M56: 0 | N56: 0 | O56: 0
A57: DOPCN01 | C57: Total customer numbers | D57: =SUM(D51:D56) -> 296147 | E57: 300873 | F57: 303935.25 | G57: 307420.5 | H57: 311480 | I57: 315206 | J57: 317940 | K57: 318629.5 | L57: 319923
B59: 3.4.2.2 - Distribution customer numbers by location on the network
A60: DOPCN0201 | B60: Customers on CBD network | D60: 0 | E60: 0 | F60: 0 | G60: 0 | H60: 0 | I60: 0 | J60: 0 | K60: 0 | L60: 0 | M60: 0 | N60: 0 | O60: 0
A61: DOPCN0202 | B61: Customers on Urban network | D61: 270536.2425 | E61: 278720.4925 | F61: 285084.5 | G61: 288800.5 | H61: 292823.5 | I61: 295633.25 | J61: 301451.75 | K61: 305330.5 | L61: 305283 | M61: 308243 | N61: 313135 | O61: 318867.75
A62: DOPCN0203 | B62: Customers on Short rural network | D62: 25610.75748 | E62: 22152.50748 | F62: 18850.75 | G62: 18620 | H62: 18656.5 | I62: 19572.75 | J62: 16488.25 | K62: 13299 | L62: 14640 | M62: 16158.5 | N62: 17978 | O62: 20379.75
A63: DOPCN0204 | B63: Customers on Long rural network | D63: 0 | E63: 0 | F63: 0 | G63: 0 | H63: 0 | I63: 0 | J63: 0 | K63: 0 | L63: 0 | M63: 0 | N63: 0 | O63: 0
A64: DOPCN02 | C64: Total customer numbers | D64: =SUM(D60:D63) -> 296147 | E64: 300873 | F64: 303935.25 | G64: 307420.5 | H64: 311480 | I64: 315206 | J64: 317940 | K64: 318629.5 | L64: 319923
B68: 3.4.3 - SYSTEM DEMAND
D69: Standard control services
D70: VOLUMES (0's)
C71: Units | D71: =dms_y1 -> 2006-07 | E71: =dms_y2 -> 2007-08 | F71: =dms_y3 -> 2008-09 | G71: =dms_y4 -> 2009-10 | H71: =dms_y5 -> 2010-11 | I71: =dms_y6 -> 2011-12 | J71: =dms_y7 -> 2012-13 | K71: =dms_y8 -> 2013-14 | L71: =dms_y9 -> 2014-15 | M71: =dms_y10 -> 2015-16 | N71: =dms_y11 -> 2016-17 | O71: =dms_y12 -> 2017-18
B72: 3.4.3.1 - Annual system maximum demand characteristics at the zone substation level – MW measure
A73: DOPSD0101 | B73: Non-coincident Summated Raw System Annual Maximum Demand | C73: MW | D73: 858.0427399 | E73: 938.2340849 | F73: 1025.665918 | G73: 989.1304205 | H73: 983.7337453 | I73: 902.3221743 | J73: 986.2970952 | K73: 1029.371621 | L73: 924.1154852 | M73: 1011.015221 | N73: 982.7653436 | O73: 1026.595081
A74: DOPSD0102 | B74: Non–coincident Summated Weather Adjusted System Annual Maximum Demand 10% POE | C74: MW | K74: 1033.326498 | L74: 1028.160093 | M74: 1080.466803 | N74: 1126.746848 | O74: 1081.343927
A75: DOPSD0103 | B75: Non–coincident Summated Weather Adjusted System Annual Maximum Demand 50% POE | C75: MW | K75: 984.1484267 | L75: 985.1410052 | M75: 1029.221424 | N75: 1070.128743 | O75: 1028.133004
A76: DOPSD0104 | B76: Coincident Raw System Annual Maximum Demand | C76: MW | D76: 776.9 | E76: 869.6404181 | F76: 944.7510756 | G76: 891.0804759 | H76: 911.3123379 | I76: 780.1215096 | J76: 883.0368242 | K76: 924.5062585 | L76: 805.3575315 | M76: 908.731521 | N76: 883.8048573 | O76: 910.4409003
A77: DOPSD0105 | B77: Coincident Weather Adjusted System Annual Maximum Demand 10% POE | C77: MW | K77: 920.8256685 | L77: 911.5612277 | M77: 954.5800107 | N77: 971.8990607 | O77: 929.5549166
A78: DOPSD0106 | B78: Coincident Weather Adjusted System Annual Maximum Demand 50% POE | C78: MW | K78: 876.0377814 | L78: 866.951402 | M78: 908.2689893 | N78: 923.8713286 | O78: 883.9371877
B80: 3.4.3.2 - Annual system maximum demand characteristics at the transmission connection point – MW measure
A81: DOPSD0107 | B81: Non-coincident Summated Raw System Annual Maximum Demand | C81: MW | D81: 901.725356 | E81: 958.344316 | F81: 1019.66512 | G81: 993.455964 | H81: 1017.041108 | I81: 892.449252 | J81: 977 | K81: 1013.29299 | L81: 876.4292998 | M81: 987.00584 | N81: 956.5355866 | O81: 982.807256
A82: DOPSD0108 | B82: Non–coincident Summated Weather Adjusted System Annual Maximum Demand 10% POE | C82: MW | K82: 1012.527636 | L82: 983.6656089 | M82: 1034.389065 | N82: 1057.640613 | O82: 1037.637002
A83: DOPSD0109 | B83: Non–coincident Summated Weather Adjusted System Annual Maximum Demand 50% POE | C83: MW | K83: 966.6378323 | L83: 939.1677503 | M83: 988.6529878 | N83: 1009.541185 | O83: 990.7997346
A84: DOPSD0110 | B84: Coincident Raw System Annual Maximum Demand | C84: MW | D84: 867.39868 | E84: 949.987464 | F84: 1010.93544 | G84: 957.808884 | H84: 1008.15382 | I84: 847.939096 | J84: 959.339296 | K84: 988.4951804 | L84: 859.4119063 | M84: 966.986596 | N84: 926.359 | O84: 946.55
A85: DOPSD0111 | B85: Coincident Weather Adjusted System Annual Maximum Demand 10% POE | C85: MW | K85: 983.8710571 | L85: 964.2820125 | M85: 1012.007757 | N85: 1010.461565 | O85: 964.0987515
A86: DOPSD0112 | B86: Coincident Weather Adjusted System Annual Maximum Demand 50% POE | C86: MW | K86: 938.3083878 | L86: 920.7762255 | M86: 966.5251052 | N86: 965.4824338 | O86: 921.1071534
B88: 3.4.3.3 - Annual system maximum demand characteristics at the zone substation level – MVA measure
A89: DOPSD0201 | B89: Non–coincident Summated Raw System Annual Maximum Demand | C89: MVA | D89: 897.2997902 | E89: 974.6339435 | F89: 1055.378123 | G89: 1015.190472 | H89: 1010.024219 | I89: 919.8629712 | J89: 1001.096507 | K89: 1042.164257 | L89: 941.2598831 | M89: 1024.863823 | N89: 1021.577966 | O89: 1077.815735
A90: DOPSD0202 | B90: Non–coincident Summated Weather Adjusted System Annual Maximum Demand 10% POE | C90: MVA | K90: 1045.905399 | L90: 1047.312405 | M90: 1095.203896 | N90: 1170.422263 | O90: 1136.441332
A91: DOPSD0203 | B91: Non–coincident Summated Weather Adjusted System Annual Maximum Demand 50% POE | C91: MVA | K91: 996.1495447 | L91: 1003.522099 | M91: 1043.34237 | N91: 1111.793839 | O91: 1079.969822
A92: DOPSD0204 | B92: Coincident Raw System Annual Maximum Demand | C92: MVA | D92: 812.4 | E92: 900.2520681 | F92: 972.1425697 | G92: 906.7811063 | H92: 938.9848023 | I92: 796.332063 | J92: 902.281076 | K92: 935.1436221 | L92: 817.2440477 | M92: 915.4364749 | N92: 917.931508 | O92: 934.0797332
A93: DOPSD0205 | B93: Coincident Weather Adjusted System Annual Maximum Demand 10% POE | C93: MVA | K93: 931.3673088 | L93: 924.9294493 | M93: 961.6447878 | N93: 1009.126879 | O93: 954.0719961
A94: DOPSD0206 | B94: Coincident Weather Adjusted System Annual Maximum Demand 50% POE | C94: MVA | K94: 886.0064348 | L94: 879.684251 | M94: 914.9704285 | N94: 959.3949159 | O94: 907.2932181
B96: 3.4.3.4 - Annual system maximum demand characteristics at the transmission connection point – MVA measure
A97: DOPSD0207 | B97: Non–coincident Summated Raw System Annual Maximum Demand | C97: MVA | D97: 999.1080649 | E97: 1055.518723 | F97: 1100.009128 | G97: 1083.512669 | H97: 1105.275348 | I97: 968.1744176 | J97: 1047.848766 | K97: 1081.781946 | L97: 930.6198253 | M97: 1035.999205 | N97: 1006.899225 | O97: 1023.468353
A98: DOPSD0208 | B98: Non–coincident Summated Weather Adjusted System Annual Maximum Demand 10% POE | C98: MVA | K98: 1081.140876 | L98: 1044.360323 | M98: 1085.78144 | N98: 1113.378883 | O98: 1080.392019
A99: DOPSD0209 | B99: Non–coincident Summated Weather Adjusted System Annual Maximum Demand 50% POE | C99: MVA | K99: 1032.164928 | L99: 997.2163625 | M99: 1037.859006 | N99: 1062.802733 | O99: 1031.658863
A100: DOPSD0210 | B100: Coincident Raw System Annual Maximum Demand | C100: MVA | D100: 959.8935719 | E100: 1040.340354 | F100: 1091.967124 | G100: 1029.864739 | H100: 1084.282467 | I100: 901.5721881 | J100: 1020.70156 | K100: 1048.992925 | L100: 907.774699 | M100: 1014.345329 | N100: 976.4386131 | O100: 990.1160151
A101: DOPSD0211 | B101: Coincident Weather Adjusted System Annual Maximum Demand 10% POE | C101: MVA | K101: 1044.136096 | L101: 1018.609197 | M101: 1061.523936 | N101: 1064.962688 | O101: 1008.46063
A102: DOPSD0212 | B102: Coincident Weather Adjusted System Annual Maximum Demand 50% POE | C102: MVA | K102: 995.8702895 | L102: 972.6684914 | M102: 1013.861347 | N102: 1017.629996 | O102: 963.5194012
B104: 3.4.3.5 - Power factor conversion between MVA and MW
A105: DOPSD0301 | B105: Average overall network power factor conversion between MVA and MW | C105: Factor | D105: 0.8448 | E105: 0.9364 | F105: 0.9455 | G105: 0.9489 | H105: 0.9509 | I105: 0.9543 | J105: 0.952 | K105: 0.9559626862 | L105: 0.9687471521 | M105: 0.9711942559 | N105: 0.9849079395 | O105: 0.9711509386
A106: DOPSD0302 | B106: Average power factor conversion for low voltage distribution lines | C106: Factor | D106: 0.8828 | E106: 0.8828 | F106: 0.8828 | G106: 0.8828 | H106: 0.8828 | I106: 0.8828 | J106: 0.8828 | K106: 0.9144 | L106: 0.9243608106 | M106: 0.9267191272 | N106: 0.9170956674 | O106: 0.8842755244
A107: DOPSD0303 | B107: Average power factor conversion for 3.3 kV lines | C107: Factor | D107: 0 | E107: 0 | F107: 0 | G107: 0 | H107: 0 | I107: 0 | J107: 0 | K107: 0 | L107: 0 | M107: 0 | N107: 0 | O107: 0
A108: DOPSD0304 | B108: Average power factor conversion for 6.6 kV lines | C108: Factor | D108: 0.875 | E108: 0.875 | F108: 0.8595 | G108: 0.8697 | H108: 0.8783 | I108: 0.8827 | J108: 0.8847 | K108: 0.8845192016 | L108: 0.8893867251 | M108: 0.8894073655 | N108: 0.8690779 | O108: 0.8938342609
A109: DOPSD0305 | B109: Average power factor conversion for 7.6 kV lines | C109: Factor | D109: 0 | E109: 0 | F109: 0 | G109: 0 | H109: 0 | I109: 0 | J109: 0 | K109: 0 | L109: 0 | M109: 0 | N109: 0 | O109: 0
A110: DOPSD0306 | B110: Average power factor conversion for 11 kV lines | C110: Factor | D110: 0.9038 | E110: 0.9038 | F110: 0.8896 | G110: 0.8985 | H110: 0.9045 | I110: 0.9052 | J110: 0.9213 | K110: 0.9305996783 | L110: 0.9376630507 | M110: 0.9379 | N110: 0.9478996007 | O110: 0.9451539307
A111: DOPSD0307 | B111: Average power factor conversion for SWER lines | C111: Factor | D111: 0 | E111: 0 | F111: 0 | G111: 0 | H111: 0 | I111: 0 | J111: 0 | K111: 0 | L111: 0 | M111: 0 | N111: 0 | O111: 0
A112: DOPSD0308 | B112: Average power factor conversion for 22 kV lines | C112: Factor | D112: 0.9322 | E112: 0.9322 | F112: 0.9213 | G112: 0.9652 | H112: 0.9175 | I112: 0.924 | J112: 0.933 | K112: 0.9367885042 | L112: 0.9219 | M112: 0.9485 | N112: 0.9428237045 | O112: 0.9449551312
A113: DOPSD0309 | B113: Average power factor conversion for 33 kV lines | C113: Factor | D113: 0 | E113: 0 | F113: 0 | G113: 0 | H113: 0 | I113: 0 | J113: 0 | K113: 0 | L113: 0 | M113: 0 | N113: 0 | O113: 0
A114: DOPSD0310 | B114: Average power factor conversion for 44 kV lines | C114: Factor | D114: 0 | E114: 0 | F114: 0 | G114: 0 | H114: 0 | I114: 0 | J114: 0 | K114: 0 | L114: 0 | M114: 0 | N114: 0 | O114: 0
A115: DOPSD0311 | B115: Average power factor conversion for 66 kV lines | C115: Factor | D115: 0.8438 | E115: 0.9397 | F115: 0.9487 | G115: 0.9516 | H115: 0.9533 | I115: 0.9564 | J115: 0.9546 | K115: 0.9580852743 | L115: 0.9704560823 | M115: 0.9722519822 | N115: 0.9837663974 | O115: 0.971619474
A116: DOPSD0312 | B116: Average power factor conversion for 110 kV lines | C116: Factor | D116: 0 | E116: 0 | F116: 0 | G116: 0 | H116: 0 | I116: 0 | J116: 0 | K116: 0 | L116: 0 | M116: 0 | N116: 0 | O116: 0
A117: DOPSD0313 | B117: Average power factor conversion for 132 kV lines | C117: Factor | D117: 0 | E117: 0 | F117: 0 | G117: 0 | H117: 0 | I117: 0 | J117: 0 | K117: 0 | L117: 0 | M117: 0 | N117: 0 | O117: 0
A118: DOPSD0314 | B118: Average power factor conversion for 220 kV lines | C118: Factor | D118: 0 | E118: 0 | F118: 0 | G118: 0 | H118: 0 | I118: 0 | J118: 0 | K118: 0 | L118: 0 | M118: 0 | N118: 0 | O118: 0
B120: 3.4.3.6 - Demand supplied (for customers charged on this basis) – MW measure
A121: DOPSD0401 | B121: Summated Chargeable Contracted Maximum Demand | C121: MW | D121: 0 | E121: 0 | F121: 0 | G121: 0 | H121: 0 | I121: 0 | J121: 0 | K121: 0 | L121: 0 | M121: 0 | N121: 0 | O121: 0
A122: DOPSD0402 | B122: Summated Chargeable Measured Maximum Demand | C122: MW | D122: 0 | E122: 0 | F122: 0 | G122: 0 | H122: 0 | I122: 0 | J122: 0 | K122: 0 | L122: 0 | M122: 0 | N122: 0 | O122: 0
B124: 3.4.3.7 - Demand supplied (for customers charged on this basis) – MVA measure
A125: DOPSD0403 | B125: Summated Chargeable Contracted Maximum Demand | C125: MVA | D125: 0 | E125: 0 | F125: 0 | G125: 0 | H125: 0 | I125: 0 | J125: 0 | K125: 0 | L125: 0 | M125: 0 | N125: 0 | O125: 0
A126: DOPSD0404 | B126: Summated Chargeable Measured Maximum Demand | C126: MVA | D126: 0 | E126: 0 | F126: 0 | G126: 0 | H126: 0 | I126: 0 | J126: 0 | K126: 0 | L126: 0 | M126: 0 | N126: 0 | O126: 0

Sheet 3.5 Physical assets
B1: =INDEX(dms_Worksheet_List,MATCH(dms_Model,dms_Model_List)) -> HISTORICAL ECONOMIC BENCHMARKING - FINANCIAL YEARS
B2: =INDEX(dms_TradingNameFull_List,MATCH(dms_TradingName,dms_TradingName_List)) -> Jemena Electricity
B3: =dms_Header_Span -> 2006-07 to 2018-19
B4: 3.5 PHYSICAL ASSETS
B6: There are THREE tables on this worksheet. Each table has been grouped (and sub-grouped) for ease of navigation. See the Instructions sheet on how to group or ungroup tables.
B8: 3.5.1 - NETWORK CAPACITIES
D9: VOLUMES (0's)
D10: =dms_y1 -> 2006-07 | E10: =dms_y2 -> 2007-08 | F10: =dms_y3 -> 2008-09 | G10: =dms_y4 -> 2009-10 | H10: =dms_y5 -> 2010-11 | I10: =dms_y6 -> 2011-12 | J10: =dms_y7 -> 2012-13 | K10: =dms_y8 -> 2013-14 | L10: =dms_y9 -> 2014-15 | M10: =dms_y10 -> 2015-16 | N10: =dms_y11 -> 2016-17 | O10: =dms_y12 -> 2017-18
B11: Circuit length
B12: 3.5.1.1 - Overhead network length of circuit at each voltage
A13: DPA0101 | B13: Overhead low voltage distribution | C13: km | D13: 2423.109135 | E13: 2432.81109 | F13: 2440.121 | G13: 2440.997 | H13: 2446.6495 | I13: 2448.5 | J13: 2445 | K13: 2442.905321 | L13: 2441.778766 | M13: 2445.684205 | N13: 2452.22827 | O13: 2454.71751
A14: DPA0102 | B14: Overhead 2.2 kV | C14: km | D14: 0 | E14: 0 | F14: 0 | G14: 0 | H14: 0 | I14: 0 | J14: 0 | K14: 0 | L14: 0 | M14: 0 | N14: 0 | O14: 0
A15: DPA0103 | B15: Overhead 6.6kv | C15: km | D15: 114.6003012 | E15: 107.7479802 | F15: 102.1808737 | G15: 92.690885 | H15: 81.46631171 | I15: 82.55131171 | J15: 86.522 | K15: 80.54464 | L15: 74.14131 | M15: 68.75196741 | N15: 60.0701562 | O15: 55.85685879
A16: DPA0104 | B16: Overhead 7.6 kV | C16: km | D16: 0 | E16: 0 | F16: 0 | G16: 0 | H16: 0 | I16: 0 | J16: 0 | K16: 0 | L16: 0 | M16: 0 | N16: 0 | O16: 0
A17: DPA0105 | B17: Overhead 11 kV | C17: km | D17: 196.8659108 | E17: 199.1525984 | F17: 201.7435856 | G17: 202.738405 | H17: 203.9833836 | I17: 212.5233836 | J17: 219.9165 | K17: 211.316815 | L17: 203.53396 | M17: 204.1783122 | N17: 204.5956231 | O17: 207.6009558
A18: DPA0106 | B18: Overhead SWER | C18: km | D18: 12.411595 | E18: 12.84765 | F18: 12.939605 | G18: 13.04109 | H18: 13.035875 | I18: 12.93469 | J18: 6.423975 | K18: 0 | L18: 0 | M18: 0 | N18: 0 | O18: 0
A19: DPA0107 | B19: Overhead 22 kV | C19: km | D19: 1389.64578 | E19: 1401.736636 | F19: 1408.968714 | G19: 1415.30411 | H19: 1427.284576 | I19: 1420.979209 | J19: 1406.965578 | K19: 1414.001425 | L19: 1430.817425 | M19: 1437.905624 | N19: 1441.210365 | O19: 1443.065241
A20: DPA0108 | B20: Overhead 33 kV | C20: km | D20: 0 | E20: 0 | F20: 0 | G20: 0 | H20: 0 | I20: 0 | J20: 0 | K20: 0 | L20: 0 | M20: 0 | N20: 0 | O20: 0
A21: DPA0109 | B21: Overhead 44 kV | C21: km | D21: 0 | E21: 0 | F21: 0 | G21: 0 | H21: 0 | I21: 0 | J21: 0 | K21: 0 | L21: 0 | M21: 0 | N21: 0 | O21: 0
A22: DPA0110 | B22: Overhead 66 kV | C22: km | D22: 285.05125 | E22: 284.67289 | F22: 291.98415 | G22: 298.866885 | H22: 297.466495 | I22: 296.70569 | J22: 299.169 | K22: 296.7679015 | L22: 292.9294015 | M22: 293.7329 | N22: 293.1085366 | O22: 309.9166366
A23: DPA0111 | B23: Overhead 110kV | C23: km | D23: 0 | E23: 0 | F23: 0 | G23: 0 | H23: 0 | I23: 0 | J23: 0 | K23: 0 | L23: 0 | M23: 0 | N23: 0 | O23: 0
A24: DPA0112 | B24: Overhead 132 kV | C24: km | D24: 0 | E24: 0 | F24: 0 | G24: 0 | H24: 0 | I24: 0 | J24: 0 | K24: 0 | L24: 0 | M24: 0 | N24: 0 | O24: 0
A25: DPA0113 | B25: Overhead 220kV | C25: km | D25: 0 | E25: 0 | F25: 0 | G25: 0 | H25: 0 | I25: 0 | J25: 0 | K25: 0 | L25: 0 | M25: 0 | N25: 0 | O25: 0
A26: DPA0114 | B26: Other | C26: km | D26: 0 | E26: 0 | F26: 0 | G26: 0 | H26: 0 | I26: 0 | J26: 0 | K26: 0 | L26: 0 | M26: 0 | N26: 0 | O26: 0
A27: DPA01 | B27: Total overhead circuit km | C27: km | D27: =SUM(D13:D26) -> 4421.683972 | E27: =SUM(E13:E26) -> 4438.968845 | F27: 4457.937928 | G27: 4463.638375 | H27: 4469.886141 | I27: 4474.194285 | J27: 4463.997053 | K27: 4445.536102 | L27: 4443.200862 | M27: 4450.253009 | N27: 4451.212951 | O27: 4471.157202
B28: 3.5.1.2 - Underground network circuit length at each voltage
A29: DPA0201 | B29: Underground low voltage distribution | C29: km | D29: 820.59889 | E29: 855.321575 | F29: 887.19601 | G29: 913.07033 | H29: 943.4255 | I29: 980 | J29: 1012 | K29: 1041.992834 | L29: 1078.366179 | M29: 1112.88691 | N29: 1132.873105 | O29: 1203.65954
A30: DPA0202 | B30: Underground 5 kV | C30: km | D30: 0 | E30: 0 | F30: 0 | G30: 0 | H30: 0 | I30: 0 | J30: 0 | K30: 0 | L30: 0 | M30: 0 | N30: 0 | O30: 0
A31: DPA0203 | B31: Underground 6.6 Kv | C31: km | D31: 19.17742464 | E31: 17.47707607 | F31: 17.57475999 | G31: 16.84755 | H31: 15.73999889 | I31: 17.56999889 | J31: 19.765 | K31: 17.35506287 | L31: 14.89229787 | M31: 14.77427681 | N31: 12.8109227 | O31: 11.52888089
A32: DPA0204 | B32: Underground 7.6 kV | C32: km | D32: 0 | E32: 0 | F32: 0 | G32: 0 | H32: 0 | I32: 0 | J32: 0 | K32: 0 | L32: 0 | M32: 0 | N32: 0 | O32: 0
A33: DPA0205 | B33: Underground 11 kV | C33: km | D33: 43.95366057 | E33: 45.85159367 | F33: 48.89503438 | G33: 52.745575 | H33: 56.07858046 | I33: 56.50358046 | J33: 56.4915 | K33: 59.07411087 | L33: 65.48771587 | M33: 68.30442043 | N33: 68.29203443 | O33: 78.097719
A34: DPA0206 | B34: Underground SWER | C34: km | D34: 0.47357 | E34: 0.47357 | F34: 0.47357 | G34: 0.47357 | H34: 0.47357 | I34: 0.47357 | J34: 0.236785 | K34: 0 | L34: 0 | M34: 0 | N34: 0 | O34: 0
A35: DPA0207 | B35: Underground 22 kV | C35: km | D35: 424.7848105 | E35: 448.0119877 | F35: 472.4667201 | G35: 489.208175 | H35: 507.6949283 | I35: 529.7732583 | J35: 552.2665951 | K35: 570.450205 | L35: 590.9657399 | M35: 616.8491348 | N35: 644.4960589 | O35: 676.2183391
A36: DPA0208 | B36: Underground 33 kV | C36: km | D36: 0 | E36: 0 | F36: 0 | G36: 0 | H36: 0 | I36: 0 | J36: 0 | K36: 0 | L36: 0 | M36: 0 | N36: 0 | O36: 0
A37: DPA0209 | B37: Underground 66 kV | C37: km | D37: 13.622005 | E37: 12.8675 | F37: 12.86516 | G37: 12.8675 | H37: 12.984255 | I37: 13.501835 | J37: 13.885 | K37: 13.300538 | L37: 13.533733 | M37: 13.55244982 | N37: 13.1299922 | O37: 15.49323738
A38: DPA0210 | B38: Underground 110 kV | C38: km | D38: 0 | E38: 0 | F38: 0 | G38: 0 | H38: 0 | I38: 0 | J38: 0 | K38: 0 | L38: 0 | M38: 0 | N38: 0 | O38: 0
A39: DPA0211 | B39: Underground 132 kV | C39: km | D39: 0 | E39: 0 | F39: 0 | G39: 0 | H39: 0 | I39: 0 | J39: 0 | K39: 0 | L39: 0 | M39: 0 | N39: 0 | O39: 0
A40: DPA0212 | B40: Other | C40: km | D40: 0 | E40: 0 | F40: 0 | G40: 0 | H40: 0 | I40: 0 | J40: 0 | K40: 0 | L40: 0 | M40: 0 | N40: 0 | O40: 0
A41: DPA02 | B41: Total underground circuit km | C41: km | D41: =SUM(D29:D40) -> 1322.610361 | E41: =SUM(E29:E40) -> 1380.003302 | F41: 1439.471254 | G41: 1485.2127 | H41: 1536.396833 | I41: 1597.822243 | J41: 1654.64488 | K41: 1702.172751 | L41: 1763.245666 | M41: 1826.367192 | N41: 1871.602113 | O41: 1984.997716
B43: Circuit Capacity MVA
B44: 3.5.1.3 - Estimated overhead network weighted average MVA capacity by voltage class
A45: DPA0301 | B45: Overhead low voltage distribution | C45: MVA | D45: 0.1363041809 | E45: 0.1364222274 | F45: 0.1365792023 | G45: 0.1367371606 | H45: 0.136923071 | I45: 0.1371515259 | J45: 0.1373959177 | K45: 0.1407619874 | L45: 0.1420949806 | M45: 0.1401754633 | N45: 0.1379863402 | O45: 0.1356058574
A46: DPA0302 | B46: Overhead 6.6 kV | C46: MVA | D46: 3.552 | E46: 3.552 | F46: 3.553 | G46: 3.554 | H46: 3.5545 | I46: 3.5555 | J46: 3.5655 | K46: 3.576026885 | L46: 3.603368477 | M46: 3.583896095 | N46: 3.545381128 | O46: 3.560178047
A47: DPA0303 | B47: Overhead 7.6 kV | C47: MVA | D47: 0 | E47: 0 | F47: 0 | G47: 0 | H47: 0 | I47: 0 | J47: 0 | K47: 0 | L47: 0 | M47: 0 | N47: 0 | O47: 0
A48: DPA0304 | B48: Overhead 11 kV | C48: MVA | D48: 5.263 | E48: 5.269 | F48: 5.279 | G48: 5.2945 | H48: 5.304 | I48: 5.307 | J48: 5.308 | K48: 5.317211452 | L48: 5.332973983 | M48: 5.356754895 | N48: 5.372912687 | O48: 5.390800175
A49: DPA0305 | B49: Overhead SWER | C49: MVA | D49: 0.36 | E49: 0.36 | F49: 0.36 | G49: 0.36 | H49: 0.36 | I49: 0.36 | J49: 0.18 | K49: 0 | L49: 0 | M49: 0 | N49: 0 | O49: 0
A50: DPA0306 | B50: Overhead 22 kV | C50: MVA | D50: 9.135 | E50: 9.155 | F50: 9.164 | G50: 9.12 | H50: 8.996 | I50: 8.8715 | J50: 8.816 | K50: 8.838919982 | L50: 8.824814065 | M50: 8.827261279 | N50: 8.901798117 | O50: 8.924953921
A51: DPA0307 | B51: Overhead 33 kV | C51: MVA | D51: 0 | E51: 0 | F51: 0 | G51: 0 | H51: 0 | I51: 0 | J51: 0 | K51: 0 | L51: 0 | M51: 0 | N51: 0 | O51: 0
A52: DPA0308 | B52: Overhead 44 kV | C52: MVA | D52: 0 | E52: 0 | F52: 0 | G52: 0 | H52: 0 | I52: 0 | J52: 0 | K52: 0 | L52: 0 | M52: 0 | N52: 0 | O52: 0
A53: DPA0309 | B53: Overhead 66 kV | C53: MVA | D53: 95.35 | E53: 95.89 | F53: 95.885 | G53: 96.585 | H53: 97.295 | I53: 97.34 | J53: 97.38 | K53: 98.72588412 | L53: 105.8298451 | M53: 111.6044867 | N53: 111.6210514 | O53: 111.9384807
A54: DPA0310 | B54: Overhead 110 kV | C54: MVA | D54: 0 | E54: 0 | F54: 0 | G54: 0 | H54: 0 | I54: 0 | J54: 0 | K54: 0 | L54: 0 | M54: 0 | N54: 0 | O54: 0
A55: DPA0311 | B55: Overhead 132 kV | C55: MVA | D55: 0 | E55: 0 | F55: 0 | G55: 0 | H55: 0 | I55: 0 | J55: 0 | K55: 0 | L55: 0 | M55: 0 | N55: 0 | O55: 0
A56: DPA0312 | B56: Overhead 220 kV | C56: MVA | D56: 0 | E56: 0 | F56: 0 | G56: 0 | H56: 0 | I56: 0 | J56: 0 | K56: 0 | L56: 0 | M56: 0 | N56: 0 | O56: 0
A57: DPA0313 | B57: Other | C57: MVA | D57: 0 | E57: 0 | F57: 0 | G57: 0 | H57: 0 | I57: 0 | J57: 0 | K57: 0 | L57: 0 | M57: 0 | N57: 0 | O57: 0
B58: 3.5.1.4 - Estimated underground network weighted average MVA capacity by voltage class
A59: DPA0401 | B59: Underground low voltage distribution | C59: MVA | D59: 0.272122748 | E59: 0.2726608354 | F59: 0.273136875 | G59: 0.2736844536 | H59: 0.2743631632 | I59: 0.2749832734 | J59: 0.275475226 | K59: 0.2763578713 | L59: 0.2749078892 | M59: 0.2737898184 | N59: 0.2750970322 | O59: 0.276165103
A60: DPA0402 | B60: Underground 5 kV | C60: MVA | D60: 0 | E60: 0 | F60: 0 | G60: 0 | H60: 0 | I60: 0 | J60: 0 | K60: 0 | L60: 0 | M60: 0 | N60: 0 | O60: 0
A61: DPA0403 | B61: Underground 6.6 kV | C61: MVA | D61: 3.787 | E61: 3.8995 | F61: 3.932 | G61: 3.938 | H61: 3.955 | I61: 4.01 | J61: 4.0535 | K61: 4.271495155 | L61: 4.488672465 | M61: 4.444912909 | N61: 4.40691404 | O61: 4.452178183
A62: DPA0404 | B62: Underground 7.6 kV | C62: MVA | D62: 0 | E62: 0 | F62: 0 | G62: 0 | H62: 0 | I62: 0 | J62: 0 | K62: 0 | L62: 0 | M62: 0 | N62: 0 | O62: 0
A63: DPA0405 | B63: Underground 11 kV | C63: MVA | D63: 5.7485 | E63: 5.866 | F63: 6.009 | G63: 6.1595 | H63: 6.261 | I63: 6.301 | J63: 6.3425 | K63: 6.91484228 | L63: 7.472772583 | M63: 7.533370035 | N63: 7.554201705 | O63: 7.689444265
A64: DPA0406 | B64: Underground SWER | C64: MVA | D64: 1.842 | E64: 1.842 | F64: 1.842 | G64: 1.842 | H64: 1.842 | I64: 1.842 | J64: 0.921 | K64: 0 | L64: 0 | M64: 0 | N64: 0 | O64: 0
A65: DPA0407 | B65: Underground 12.7 kV | C65: MVA | D65: 0 | E65: 0 | F65: 0 | G65: 0 | H65: 0 | I65: 0 | J65: 0 | K65: 0 | L65: 0 | M65: 0 | N65: 0 | O65: 0
A66: DPA0408 | B66: Underground 22 kV | C66: MVA | D66: 13.295 | E66: 13.385 | F66: 13.445 | G66: 13.5 | H66: 13.57 | I66: 13.645 | J66: 13.685 | K66: 13.94110305 | L66: 14.3624296 | M66: 14.46886359 | N66: 14.33441593 | O66: 14.42464159
A67: DPA0409 | B67: Underground 33 kV | C67: MVA | D67: 0 | E67: 0 | F67: 0 | G67: 0 | H67: 0 | I67: 0 | J67: 0 | K67: 0 | L67: 0 | M67: 0 | N67: 0 | O67: 0
A68: DPA0410 | B68: Underground 66 kV | C68: MVA | D68: 94.54176231 | E68: 99.62705087 | F68: 99.62705087 | G68: 99.86759528 | H68: 100.1191286 | I68: 100.1338221 | J68: 100.1375266 | K68: 100.5548473 | L68: 108.8217545 | M68: 116.6713411 | N68: 116.6713411 | O68: 111.0415475
A69: DPA0411 | B69: Underground 110 kV | C69: MVA | D69: 0 | E69: 0 | F69: 0 | G69: 0 | H69: 0 | I69: 0 | J69: 0 | K69: 0 | L69: 0 | M69: 0 | N69: 0 | O69: 0
A70: DPA0412 | B70: Underground 132 kV | C70: MVA | D70: 0 | E70: 0 | F70: 0 | G70: 0 | H70: 0 | I70: 0 | J70: 0 | K70: 0 | L70: 0 | M70: 0 | N70: 0 | O70: 0
A71: DPA0413 | B71: Other | C71: MVA | D71: 0 | E71: 0 | F71: 0 | G71: 0 | H71: 0 | I71: 0 | J71: 0 | K71: 0 | L71: 0 | M71: 0 | N71: 0 | O71: 0
B75: 3.5.2 - TRANSFORMER CAPACITIES
D76: VOLUMES (0's)
D77: =dms_y1 -> 2006-07 | E77: =dms_y2 -> 2007-08 | F77: =dms_y3 -> 2008-09 | G77: =dms_y4 -> 2009-10 | H77: =dms_y5 -> 2010-11 | I77: =dms_y6 -> 2011-12 | J77: =dms_y7 -> 2012-13 | K77: =dms_y8 -> 2013-14 | L77: =dms_y9 -> 2014-15 | M77: =dms_y10 -> 2015-16 | N77: =dms_y11 -> 2016-17 | O77: =dms_y12 -> 2017-18
B78: Distribution transformer total installed capacity
A79: DPA0501 | B79: Distribution transformer capacity owned by utility | C79: MVA | D79: 1845.02325 | E79: 1935.84975 | F79: 2064.7745 | G79: 2103.3545 | H79: 2230.2915 | I79: 2380.173 | J79: 2423.6175 | K79: 2495.0895 | L79: 2569.565 | M79: 2644.89 | N79: 2701.8395 | O79: 2752.9495
A80: DPA0502 | B80: Distribution transformer capacity owned by High Voltage Customers | C80: MVA | D80: 176.2684065 | E80: 195.9458602 | F80: 208.2845333 | G80: 204.4504667 | H80: 197.4161833 | I80: 193.8077667 | J80: 195.8274278 | K80: 192.1567778 | L80: 184.1231444 | M80: 176.4641523 | N80: 172.8906635 | O80: 171.5664474
A81: DPA0503 | B81: Cold spare capacity included in DPA0501 | C81: MVA | D81: 14.52325 | E81: 16.34975 | F81: 19.7745 | G81: 24.8545 | H81: 28.2915 | I81: 25.673 | J81: 24.6175 | K81: 27.5895 | L81: 28.4125 | M81: 29.7375 | N81: 30.5825 | O81: 29.3045
B82: Zone substation transformer capacity
A83: DPA0601 | B83: Total installed capacity for first step transformation where there are two steps to reach distribution voltage | C83: MVA | D83: 0 | E83: 0 | F83: 0 | G83: 0 | H83: 0 | I83: 0 | J83: 0 | K83: 0 | L83: 0 | M83: 0 | N83: 0 | O83: 0
A84: DPA0602 | B84: Total installed capacity for second step transformation where there are two steps to reach distribution voltage | C84: MVA | D84: 0 | E84: 0 | F84: 0 | G84: 0 | H84: 0 | I84: 0 | J84: 0 | K84: 0 | L84: 0 | M84: 0 | N84: 0 | O84: 0
A85: DPA0603 | B85: Total zone substation transformer capacity where there is only a single step transformation to reach distribution voltage | C85: MVA | D85: 1466 | E85: 1491 | F85: 1540.5 | G85: 1560 | H85: 1578.15 | I85: 1613.3 | J85: 1633.3 | K85: 1638.8 | L85: 1704.15 | M85: 1754 | N85: 1740.75 | O85: 1768.75
A86: DPA0604 | B86: Total zone substation transformer capacity | C86: MVA | D86: 1466 | E86: 1491 | F86: 1540.5 | G86: 1560 | H86: 1578.15 | I86: 1613.3 | J86: 1633.3 | K86: 1638.8 | L86: 1717.65 | M86: 1791 | N86: 1777.75 | O86: 1795.75
A87: DPA0605 | B87: Cold spare capacity of zone substation transformers included in DPA0604 | C87: MVA | D87: 0 | E87: 0 | F87: 0 | G87: 0 | H87: 0 | I87: 0 | J87: 0 | K87: 0 | L87: 13.5 | M87: 37 | N87: 37 | O87: 27
B88: Distribution - other transformer capacity
B89: Distribution other - transformer capacity owned by utility | C89: MVA
B93: 3.5.3 - PUBLIC LIGHTING
D94: VOLUMES (0's)
D95: =dms_y1 -> 2006-07 | E95: =dms_y2 -> 2007-08 | F95: =dms_y3 -> 2008-09 | G95: =dms_y4 -> 2009-10 | H95: =dms_y5 -> 2010-11 | I95: =dms_y6 -> 2011-12 | J95: =dms_y7 -> 2012-13 | K95: =dms_y8 -> 2013-14 | L95: =dms_y9 -> 2014-15 | M95: =dms_y10 -> 2015-16 | N95: =dms_y11 -> 2016-17 | O95: =dms_y12 -> 2017-18
A96: DPA0701 | B96: Public lighting luminaires | C96: Number | D96: 64207.5 | E96: 64583 | F96: 64819 | G96: 66121 | H96: 67437.5 | I96: 68223.5 | J96: 68998.5 | K96: 69891.5 | L96: 71249 | M96: 72140.5 | N96: 73439.5 | O96: 74563
A97: DPA0702 | B97: Public lighting poles | C97: Number | D97: 17401 | E97: 18084.5 | F97: 18578 | G97: 19243 | H97: 19757 | I97: 20514.5 | J97: 21514.5 | K97: 22470.5 | L97: 23584.5 | M97: 24649.5 | N97: 25648.5 | O97: 26425
A98: DPA0703 | B98: Public lighting columns | C98: Number

Sheet 3.6 Quality of service
B1: =INDEX(dms_Worksheet_List,MATCH(dms_Model,dms_Model_List)) -> HISTORICAL ECONOMIC BENCHMARKING - FINANCIAL YEARS
B2: =INDEX(dms_TradingNameFull_List,MATCH(dms_TradingName,dms_TradingName_List)) -> Jemena Electricity
B3: =dms_Header_Span -> 2006-07 to 2018-19
B4: 3.6 QUALITY OF SERVICE DATA
B6: There are THREE tables on this worksheet. Each table has been grouped (and sub-grouped) for ease of navigation. See the Instructions sheet on how to group or ungroup tables.
B8: 3.6.1 - RELIABILITY
D9: (0's)
C10: Units | D10: =dms_y1 -> 2006-07 | E10: =dms_y2 -> 2007-08 | F10: =dms_y3 -> 2008-09 | G10: =dms_y4 -> 2009-10 | H10: =dms_y5 -> 2010-11 | I10: =dms_y6 -> 2011-12 | J10: =dms_y7 -> 2012-13 | K10: =dms_y8 -> 2013-14 | L10: =dms_y9 -> 2014-15 | M10: =dms_y10 -> 2015-16 | N10: =dms_y11 -> 2016-17 | O10: =dms_y12 -> 2017-18
B11: INCLUSIVE OF MEDs
A12: DQS0101 | B12: Whole of network unplanned SAIDI | C12: minutes/customer | D12: 101.1956045 | E12: 114.8050048 | F12: 124.4740849 | G12: 96.49179959 | H12: 63.45322389 | I12: 57.40080594 | J12: 58.45217932 | K12: 65.46173931 | L12: 55.60463831 | M12: 52.7475562 | N12: 50.46067317 | O12: 42.78330263
A13: DQS0102 | B13: Whole of network unplanned SAIDI excluding excluded outages | C13: minutes/customer | D13: 84.5431451 | E13: 98.01419734 | F13: 104.1729239 | G13: 76.32898668 | H13: 63.45322389 | I13: 57.40080594 | J13: 58.45217932 | K13: 65.46173931 | L13: 55.60463831 | M13: 52.7475562 | N13: 50.46067317 | O13: 42.78330263
A14: DQS0103 | B14: Whole of network unplanned SAIFI | C14: interruptions/customer | D14: 1.593130547 | E14: 1.567086912 | F14: 1.671650855 | G14: 1.480099577 | H14: 0.9534189368 | I14: 0.9467482307 | J14: 1.049482493 | K14: 1.098543872 | L14: 0.8969255305 | M14: 0.8579141933 | N14: 0.866405069 | O14: 0.7607832924
A15: DQS0104 | B15: Whole of network unplanned SAIFI excluding excluded outages | C15: interruptions/customer | D15: 1.431485851 | E15: 1.382384203 | F15: 1.285018576 | G15: 1.11652531 | H15: 0.9534189368 | I15: 0.9467482307 | J15: 1.049482493 | K15: 1.098543872 | L15: 0.8969255305 | M15: 0.8579141933 | N15: 0.866405069 | O15: 0.7607832924
B16: EXCLUSIVE OF MEDs
A17: DQS0105 | B17: Whole of network unplanned SAIDI | C17: minutes/customer | D17: 85.06874671 | E17: 82.13557162 | F17: 87.38009116 | G17: 86.97598105 | H17: 58.79271783 | I17: 52.74029988 | J17: 55.01679839 | K17: 62.02635838 | L17: 55.60463831 | M17: 46.27224266 | N17: 43.98535962 | O17: 42.78330263
A18: DQS0106 | B18: Whole of network unplanned SAIDI excluding excluded outages | C18: minutes/customer | D18: 68.41628733 | E18: 65.34476416 | F18: 67.07893018 | G18: 66.81316814 | H18: 58.79271783 | I18: 52.74029988 | J18: 55.01679839 | K18: 59.20653356 | L18: 52.78481349 | M18: 46.27224266 | N18: 43.98535962 | O18: 42.78330263
A19: DQS0107 | B19: Whole of network unplanned SAIFI | C19: interruptions/customer | D19: 1.415629821 | E19: 1.345915308 | F19: 1.474780178 | G19: 1.417988407 | H19: 0.9196161783 | I19: 0.9129454723 | J19: 1.017553252 | K19: 1.06661463 | L19: 0.8969255305 | M19: 0.824882848 | N19: 0.8333737237 | O19: 0.7607832924
A20: DQS0108 | B20: Whole of network unplanned SAIFI excluding excluded outages | C20: interruptions/customer | D20: 1.253985124 | E20: 1.1612126 | F20: 1.088147899 | G20: 1.05441414 | H20: 0.9196161783 | I20: 0.9129454723 | J20: 1.017553252 | K20: 1.03418982 | L20: 0.86450072 | M20: 0.824882848 | N20: 0.8333737237 | O20: 0.7607832924
B23: 3.6.2 - ENERGY NOT SUPPLIED
D24: (0's)
C25: Unit | D25: =dms_y1 -> 2006-07 | E25: =dms_y2 -> 2007-08 | F25: =dms_y3 -> 2008-09 | G25: =dms_y4 -> 2009-10 | H25: =dms_y5 -> 2010-11 | I25: =dms_y6 -> 2011-12 | J25: =dms_y7 -> 2012-13 | K25: =dms_y8 -> 2013-14 | L25: =dms_y9 -> 2014-15 | M25: =dms_y10 -> 2015-16 | N25: =dms_y11 -> 2016-17 | O25: =dms_y12 -> 2017-18
A26: DQS0201 | B26: Energy Not Supplied (planned) | C26: GWh | D26: 19.36015581 | E26: 24.31215783 | F26: 23.79190206 | G26: 25.87726999 | H26: 36.25197483 | I26: 43.2563233 | J26: 53.41131688 | K26: 30.05385804 | L26: 0.06603795313 | M26: 0.05932964363 | N26: 0.05286159334 | O26: 0.05703762667
A27: DQS0202 | B27: Energy Not Supplied (unplanned) | C27: GWh | D27: 615.9257388 | E27: 733.1494346 | F27: 753.7140498 | G27: 546.9743478 | H27: 460.5995869 | I27: 399.4239524 | J27: 451.8985964 | K27: 276.5004757 | L27: 0.3868380022 | M27: 0.3660077361 | N27: 0.3443094064 | O27: 0.3005688332
A28: DQS02 | B28: Total | D28: =SUM(D26:D27) -> 635.2858947 | E28: =SUM(E26:E27) -> 757.4615924 | F28: 777.5059518 | G28: 572.8516178 | H28: 496.8515617 | I28: 442.6802757 | J28: 505.3099132 | K28: 306.5543337 | L28: 0.4528759554 | M28: 0.4253373797 | N28: 0.3971709998 | O28: 0.3576064599
B30: 3.6.3 - SYSTEM LOSSES
D31: (0's)
C32: Unit | D32: =dms_y1 -> 2006-07 | E32: =dms_y2 -> 2007-08 | F32: =dms_y3 -> 2008-09 | G32: =dms_y4 -> 2009-10 | H32: =dms_y5 -> 2010-11 | I32: =dms_y6 -> 2011-12 | J32: =dms_y7 -> 2012-13 | K32: =dms_y8 -> 2013-14 | L32: =dms_y9 -> 2014-15 | M32: =dms_y10 -> 2015-16 | N32: =dms_y11 -> 2016-17 | O32: =dms_y12 -> 2017-18
A33: DQS03 | B33: System losses | C33: % | D33: 0.0393742549 | E33: 0.03757768392 | F33: 0.03793603563 | G33: 0.03762989099 | H33: 0.03766272677 | I33: 0.03803501637 | J33: 0.03894735764 | K33: 0.04061469128 | L33: 0.03965006882 | M33: 0.03708258813 | N33: 0.03848923181 | O33: 0.03725
B35: 3.6.4 - CAPACITY UTILISATION
D36: (0's)
C37: Unit | D37: =dms_y1 -> 2006-07 | E37: =dms_y2 -> 2007-08 | F37: =dms_y3 -> 2008-09 | G37: =dms_y4 -> 2009-10 | H37: =dms_y5 -> 2010-11 | I37: =dms_y6 -> 2011-12 | J37: =dms_y7 -> 2012-13 | K37: =dms_y8 -> 2013-14 | L37: =dms_y9 -> 2014-15 | M37: =dms_y10 -> 2015-16 | N37: =dms_y11 -> 2016-17 | O37: =dms_y12 -> 2017-18
A38: DQS04 | B38: Overall utilisation | C38: % | D38: 0.5930399304 | E38: 0.6274777699 | F38: 0.6586757691 | G38: 0.6636710055 | H38: 0.6417168668 | I38: 0.5985562902 | J38: 0.5880608212 | K38: 0.6233664723 | L38: 0.5836991224 | M38: 0.5606226565 | N38: 0.5878048892 | O38: 0.5933725115

Sheet 3.7 Operating environment
B1: =INDEX(dms_Worksheet_List,MATCH(dms_Model,dms_Model_List)) -> HISTORICAL ECONOMIC BENCHMARKING - FINANCIAL YEARS
B2: =INDEX(dms_TradingNameFull_List,MATCH(dms_TradingName,dms_TradingName_List)) -> Jemena Electricity
B3: =dms_Header_Span -> 2006-07 to 2018-19
B4: 3.7 OPERATING ENVIRONMENT FACTORS
B6: There are THREE tables on this worksheet. Each table has been grouped for ease of navigation. See the Instructions sheet on how to group or ungroup tables.
B8: 3.7.1 - DENSITY FACTORS
D9: (0's)
C10: Units | D10: =dms_y1 -> 2006-07 | E10: =dms_y2 -> 2007-08 | F10: =dms_y3 -> 2008-09 | G10: =dms_y4 -> 2009-10 | H10: =dms_y5 -> 2010-11 | I10: =dms_y6 -> 2011-12 | J10: =dms_y7 -> 2012-13 | K10: =dms_y8 -> 2013-14 | L10: =dms_y9 -> 2014-15 | M10: =dms_y10 -> 2015-16 | N10: =dms_y11 -> 2016-17 | O10: =dms_y12 -> 2017-18
A11: DOEF0101 | B11: Customer density | C11: Customer / km | D11: 72.60036701 | E11: 72.85795187 | F11: 72.66193507 | G11: 72.89290889 | H11: 73.18794362 | I11: 73.30698012 | J11: 73.42493473 | K11: 72.30295793 | L11: 71.40709239 | M11: 71.74244147 | N11: 72.01 | O11: 73.0283
A12: DOEF0102 | B12: Energy density | C12: MWh/customer | D12: 14.61581265 | E12: 14.73820232 | F12: 14.5864204 | G12: 14.35479848 | H12: 14.2313072 | I12: 13.92834054 | J12: 13.55503909 | K12: 13.16489962 | L12: 13.04589669 | M12: 12.88726388 | N12: 12.70222016 | O12: 12.50522245
A13: DOEF0103 | B13: Demand density | C13: kVA / customer | D13: 2.934431613 | E13: 3.110193357 | F13: 3.339037218 | G13: 3.368280826 | H13: 3.25112342 | I13: 3.062252489 | J13: 3.020612592 | K13: 3.20636846 | L13: 3.10064996 | M13: 3.014234935 | N13: 3.075474854 | O13: 3.093639854
B15: 3.7.2 - TERRAIN FACTORS
D16: (0's)
C17: Units | D17: =dms_y1 -> 2006-07 | E17: =dms_y2 -> 2007-08 | F17: =dms_y3 -> 2008-09 | G17: =dms_y4 -> 2009-10 | H17: =dms_y5 -> 2010-11 | I17: =dms_y6 -> 2011-12 | J17: =dms_y7 -> 2012-13 | K17: =dms_y8 -> 2013-14 | L17: =dms_y9 -> 2014-15 | M17: =dms_y10 -> 2015-16 | N17: =dms_y11 -> 2016-17 | O17: =dms_y12 -> 2017-18
A18: DOEF0201 | B18: Rural proportion | C18: % | G18: 0.2702453128 | H18: 0.2738696609 | I18: 0.2711831327 | J18: 0.2538262033 | K18: 0.2457280546 | L18: 0.2537521286 | M18: 0.2552047069 | N18: 0.2550560546 | O18: 0.2561060546
A19: DOEF0202 | B19: Urban and CBD vegetation maintenance spans | C19: Number of spans | G19: 40529 | H19: 52136 | I19: 58048 | J19: 59504 | K19: 36500 | L19: 8290 | M19: 7240.5 | N19: 6366.5 | O19: 6341.5
A20: DOEF0203 | B20: Rural vegetation maintenance spans | C20: Number of spans | G20: 4283.5 | H20: 3626 | I20: 4170 | J20: 4504.5 | K20: 2933 | L20: 1313.5 | M20: 1116.5 | N20: 1243 | O20: 824.5
A21: DOEF0204 | B21: Total vegetation maintenance spans | C21: Number of spans | G21: 44812.5 | H21: 55762 | I21: 62218 | J21: 64008.5 | K21: 39433 | L21: 9603.5 | M21: 8357 | N21: 7609.5 | O21: 7196.5
A22: DOEF0205 | B22: Total number of spans | C22: Number of spans | G22: 91717 | H22: 95604 | I22: 99478.5 | J22: 100502.5 | K22: 102424 | L22: 105804.5 | M22: 107627 | N22: 107870.5 | O22: 99779.5
A23: DOEF0206 | B23: Average urban and CBD vegetation maintenance span cycle | C23: Years | G23: 3 | H23: 2.5 | I23: 2 | J23: 2 | K23: 2 | L23: 2 | M23: 2 | N23: 2 | O23: 2
A24: DOEF0207 | B24: Average rural vegetation maintenance span cycle | C24: Years | G24: 1 | H24: 1 | I24: 1 | J24: 1 | K24: 1 | L24: 1 | M24: 1 | N24: 1 | O24: 1
A25: DOEF0208 | B25: Average number of trees per urban and CBD vegetation maintenance span | C25: Trees | G25: 1.42 | H25: 1.42 | I25: 1.42 | J25: 1.42 | K25: 2.6375 | L25: 2.6375 | M25: 1.598561127 | N25: 1.826146966 | O25: 2.937585839
A26: DOEF0209 | B26: Average number of trees per rural vegetation maintenance span | C26: Trees | G26: 5.3 | H26: 5.3 | I26: 5.3 | J26: 5.3 | K26: 7.915 | L26: 7.915 | M26: 5.761643836 | N26: 5.527119025 | O26: 6.725475189
A27: DOEF0210 | B27: Average number of defects per urban and CBD vegetation maintenance span | C27: Defects | G27: 0.09103759924 | H27: 0.0947887456 | I27: 0.1545928329 | J27: 0.1511942182 | K27: 0.1236762134 | L27: 0.1229996463 | M27: 0.07378629081 | N27: 0.03336542154 | O27: 0.01891113892
A28: DOEF0211 | B28: Average number of defects per rural vegetation maintenance span | C28: Defects | G28: 0.2102940918 | H28: 0.2926521509 | I28: 0.3700982133 | J28: 0.3260284066 | K28: 0.2907296179 | L28: 0.2402777012 | M28: 0.1426282051 | N28: 0.09012515263 | O28: 0.1307875458
A29: DOEF0212 | B29: Tropical proportion | C29: Spans | G29: 0 | H29: 0 | I29: 0 | J29: 0 | K29: 0 | L29: 0 | M29: 0 | N29: 0 | O29: 0
A30: DOEF0213 | B30: Standard vehicle access | C30: km | G30: 3115.165 | H30: 3118.945 | I30: 3122.55 | J30: 3115.985 | K30: 3730.065969 | L30: 4355.948064 | M30: 4398.194095 | N30: 3842.712 | O30: 3301.78
A31: DOEF0214 | B31: Bushfire risk | C31: Spans | G31: 2342 | H31: 2331.5 | I31: 3220 | J31: 3903 | K31: 2768.5 | L31: 1252 | M31: 1067 | N31: 1208.5 | O31: 1176.5
B33: 3.7.3 - SERVICE AREA FACTORS
D34: (0's)
C35: Units | D35: =dms_y1 -> 2006-07 | E35: =dms_y2 -> 2007-08 | F35: =dms_y3 -> 2008-09 | G35: =dms_y4 -> 2009-10 | H35: =dms_y5 -> 2010-11 | I35: =dms_y6 -> 2011-12 | J35: =dms_y7 -> 2012-13 | K35: =dms_y8 -> 2013-14 | L35: =dms_y9 -> 2014-15 | M35: =dms_y10 -> 2015-16 | N35: =dms_y11 -> 2016-17 | O35: =dms_y12 -> 2017-18
A36: DOEF0301 | B36: Route Line length | C36: km | D36: 4079.039095 | E36: 4129.659107 | F36: 4182.876074 | G36: 4217.373812 | H36: 4255.881564 | I36: 4299.785175 | J36: 4330.132214 | K36: 4407.944703 | L36: 4480.252106 | M36: 4521.59535 | N36: 4596.39636 | O36: 4642.98101

Sheet NSP Amendments
B1: =CONCATENATE(dms_TradingName," data amendments") -> Jemena Electricity data amendments
B2: Amended Table | C2: Comments
